Organisation Code,Organisation Label,Effective Date,Organisational Unit,Service Division Label,Category Internal Name,Purpose,Detailed Expenditure Code,Payment Date,Transaction Number,Irrecoverable VAT Amount,Amount,Capital Or Revenue,Beneficiary Name,Procurement Card
Http://opendatacommunities.org/id/metropolitan-district-council/leeds,Leeds City Council,30/11/2023,Adults and Health,Services For Older People Under 65 P/Dis,Agency Payments,Sheltered Accommodation,569,08/11/2023,2311-00001,0.00,5400.00,R,A & V TRANSITIONAL HOMES,No
Http://opendatacommunities.org/id/metropolitan-district-council/leeds,Leeds City Council,30/11/2023,Children and Families,Learning,Supplies and Services,Bought In Professional Services,277,27/11/2023,2311-00002,0.00,200.00,R,A Ash,No
Http://opendatacommunities.org/id/metropolitan-district-council/leeds,Leeds City Council,30/11/2023,Children and Families,Social Care,Agency Payments,Section 17,551,03/11/2023,2311-00003,0.00,257.72,R,REDACTED PERSONAL DATA,No
Http://opendatacommunities.org/id/metropolitan-district-council/leeds,Leeds City Council,30/11/2023,Children and Families,Social Care,Agency Payments,Section 17,551,17/11/2023,2311-00004,0.00,128.86,R,REDACTED PERSONAL DATA,No
Http://opendatacommunities.org/id/metropolitan-district-council/leeds,Leeds City Council,30/11/2023,Children and Families,Social Care,Agency Payments,Section 17,551,24/11/2023,2311-00005,0.00,128.86,R,REDACTED PERSONAL DATA,No
Http://opendatacommunities.org/id/metropolitan-district-council/leeds,Leeds City Council,30/11/2023,Strategic Landlord,HRA Housing Leeds,Capital,CONSTRUCTION,3,02/11/2023,2311-00006,0.00,35832.99,C,A Connolly Limited,No
Http://opendatacommunities.org/id/metropolitan-district-council/leeds,Leeds City Council,30/11/2023,Strategic Landlord,HRA Housing Leeds,Capital,CONSTRUCTION,3,02/11/2023,2311-00007,0.00,69613.63,C,A Connolly Limited,No
Http://opendatacommunities.org/id/metropolitan-district-council/leeds,Leeds City Council,30/11/2023,Strategy and Resources,Leeds Building Services,Supplies and Services,Other Hired And Contracted Services,265,08/11/2023,2311-00008,0.00,19677.76,R,A Coole Electrical Ltd,No
Http://opendatacommunities.org/id/metropolitan-district-council/leeds,Leeds City Council,30/11/2023,Strategy and Resources,Leeds Building Services,Supplies and Services,Other Hired And Contracted Services,265,17/11/2023,2311-00009,0.00,10706.47,R,A Coole Electrical Ltd,No
Http://opendatacommunities.org/id/metropolitan-district-council/leeds,Leeds City Council,30/11/2023,Strategy and Resources,Leeds Building Services,Supplies and Services,Other Hired And Contracted Services,265,24/11/2023,2311-00010,0.00,17648.26,R,A Coole Electrical Ltd,No
Http://opendatacommunities.org/id/metropolitan-district-council/leeds,Leeds City Council,30/11/2023,Communities Housing and Environment,Customer Access,Supplies and Services,Bought In Professional Services,277,01/11/2023,2311-00011,0.00,84.00,R,REDACTED COMMERCIAL CONFIDENTIALITY,No
Http://opendatacommunities.org/id/metropolitan-district-council/leeds,Leeds City Council,30/11/2023,Communities Housing and Environment,Customer Access,Supplies and Services,Bought In Professional Services,277,01/11/2023,2311-00012,0.00,27.00,R,REDACTED COMMERCIAL CONFIDENTIALITY,No
Http://opendatacommunities.org/id/metropolitan-district-council/leeds,Leeds City Council,30/11/2023,Communities Housing and Environment,Customer Access,Supplies and Services,Bought In Professional Services,277,01/11/2023,2311-00013,0.00,27.00,R,REDACTED COMMERCIAL CONFIDENTIALITY,No
Http://opendatacommunities.org/id/metropolitan-district-council/leeds,Leeds City Council,30/11/2023,Communities Housing and Environment,Customer Access,Supplies and Services,Bought In Professional Services,277,01/11/2023,2311-00014,0.00,36.00,R,REDACTED COMMERCIAL CONFIDENTIALITY,No
Http://opendatacommunities.org/id/metropolitan-district-council/leeds,Leeds City Council,30/11/2023,Communities Housing and Environment,Customer Access,Supplies and Services,Bought In Professional Services,277,01/11/2023,2311-00015,0.00,18.00,R,REDACTED COMMERCIAL CONFIDENTIALITY,No
Http://opendatacommunities.org/id/metropolitan-district-council/leeds,Leeds City Council,30/11/2023,Communities Housing and Environment,Customer Access,Supplies and Services,Bought In Professional Services,277,01/11/2023,2311-00016,0.00,21.00,R,REDACTED COMMERCIAL CONFIDENTIALITY,No
Http://opendatacommunities.org/id/metropolitan-district-council/leeds,Leeds City Council,30/11/2023,Communities Housing and Environment,Customer Access,Supplies and Services,Bought In Professional Services,277,08/11/2023,2311-00017,0.00,102.00,R,REDACTED COMMERCIAL CONFIDENTIALITY,No
Http://opendatacommunities.org/id/metropolitan-district-council/leeds,Leeds City Council,30/11/2023,Communities Housing and Environment,Customer Access,Supplies and Services,Bought In Professional Services,277,08/11/2023,2311-00018,0.00,120.00,R,REDACTED COMMERCIAL CONFIDENTIALITY,No
Http://opendatacommunities.org/id/metropolitan-district-council/leeds,Leeds City Council,30/11/2023,Communities Housing and Environment,Customer Access,Supplies and Services,Bought In Professional Services,277,22/11/2023,2311-00019,0.00,27.00,R,REDACTED COMMERCIAL CONFIDENTIALITY,No
Http://opendatacommunities.org/id/metropolitan-district-council/leeds,Leeds City Council,30/11/2023,Communities Housing and Environment,Customer Access,Supplies and Services,Bought In Professional Services,277,22/11/2023,2311-00020,0.00,87.00,R,REDACTED COMMERCIAL CONFIDENTIALITY,No
Http://opendatacommunities.org/id/metropolitan-district-council/leeds,Leeds City Council,30/11/2023,Communities Housing and Environment,Customer Access,Supplies and Services,Bought In Professional Services,277,22/11/2023,2311-00021,0.00,9.00,R,REDACTED COMMERCIAL CONFIDENTIALITY,No
Http://opendatacommunities.org/id/metropolitan-district-council/leeds,Leeds City Council,30/11/2023,Communities Housing and Environment,Customer Access,Supplies and Services,Bought In Professional Services,277,22/11/2023,2311-00022,0.00,27.00,R,REDACTED COMMERCIAL CONFIDENTIALITY,No
Http://opendatacommunities.org/id/metropolitan-district-council/leeds,Leeds City Council,30/11/2023,Communities Housing and Environment,Customer Access,Supplies and Services,Bought In Professional Services,277,22/11/2023,2311-00023,0.00,27.00,R,REDACTED COMMERCIAL CONFIDENTIALITY,No
Http://opendatacommunities.org/id/metropolitan-district-council/leeds,Leeds City Council,30/11/2023,Communities Housing and Environment,Customer Access,Supplies and Services,Bought In Professional Services,277,29/11/2023,2311-00024,0.00,84.00,R,REDACTED COMMERCIAL CONFIDENTIALITY,No
Http://opendatacommunities.org/id/metropolitan-district-council/leeds,Leeds City Council,30/11/2023,Communities Housing and Environment,Customer Access,Supplies and Services,Bought In Professional Services,277,29/11/2023,2311-00025,0.00,87.00,R,REDACTED COMMERCIAL CONFIDENTIALITY,No
Http://opendatacommunities.org/id/metropolitan-district-council/leeds,Leeds City Council,30/11/2023,Communities Housing and Environment,Customer Access,Supplies and Services,Bought In Professional Services,277,29/11/2023,2311-00026,0.00,18.00,R,REDACTED COMMERCIAL CONFIDENTIALITY,No
Http://opendatacommunities.org/id/metropolitan-district-council/leeds,Leeds City Council,30/11/2023,Communities Housing and Environment,Customer Access,Supplies and Services,Bought In Professional Services,277,29/11/2023,2311-00027,0.00,84.00,R,REDACTED COMMERCIAL CONFIDENTIALITY,No
Http://opendatacommunities.org/id/metropolitan-district-council/leeds,Leeds City Council,30/11/2023,Strategic Landlord,HRA Housing Leeds,Capital,OTHER COSTS,7,15/11/2023,2311-00028,0.00,100.00,C,REDACTED PERSONAL DATA,No
Http://opendatacommunities.org/id/metropolitan-district-council/leeds,Leeds City Council,30/11/2023,Children and Families,Social Care,Agency Payments,Services Rendered By Voluntary Sector,505,01/11/2023,2311-00029,0.00,2450.70,R,REDACTED PERSONAL DATA,No
Http://opendatacommunities.org/id/metropolitan-district-council/leeds,Leeds City Council,30/11/2023,Children and Families,Social Care,Agency Payments,Services Rendered By Voluntary Sector,505,03/11/2023,2311-00030,0.00,5292.00,R,REDACTED PERSONAL DATA,No
Http://opendatacommunities.org/id/metropolitan-district-council/leeds,Leeds City Council,30/11/2023,City Development,Libraries Arts & Heritage,Supplies and Services,Bought In Professional Services,277,09/11/2023,2311-00031,0.00,2702.50,R,A F Miller,No
Http://opendatacommunities.org/id/metropolitan-district-council/leeds,Leeds City Council,30/11/2023,Children and Families,Social Care,Agency Payments,Services Rendered By Other Organisations,511,01/11/2023,2311-00032,0.00,816.90,R,REDACTED PERSONAL DATA,No
Http://opendatacommunities.org/id/metropolitan-district-council/leeds,Leeds City Council,30/11/2023,Children and Families,Social Care,Agency Payments,Services Rendered By Other Organisations,511,03/11/2023,2311-00033,0.00,529.20,R,REDACTED PERSONAL DATA,No
Http://opendatacommunities.org/id/metropolitan-district-council/leeds,Leeds City Council,30/11/2023,Children and Families,Social Care,Agency Payments,Services Rendered By Other Organisations,511,03/11/2023,2311-00034,0.00,220.50,R,REDACTED PERSONAL DATA,No
Http://opendatacommunities.org/id/metropolitan-district-council/leeds,Leeds City Council,30/11/2023,Adults and Health,Other Generic Services,Agency Payments,Fees To Carers,563,03/11/2023,2311-00035,0.00,271.20,R,REDACTED PERSONAL DATA,No
Http://opendatacommunities.org/id/metropolitan-district-council/leeds,Leeds City Council,30/11/2023,Adults and Health,Other Generic Services,Agency Payments,Fees To Carers,563,03/11/2023,2311-00036,0.00,25.20,R,REDACTED PERSONAL DATA,No
Http://opendatacommunities.org/id/metropolitan-district-council/leeds,Leeds City Council,30/11/2023,Adults and Health,Other Generic Services,Agency Payments,Fees To Carers,563,03/11/2023,2311-00037,0.00,140.73,R,REDACTED PERSONAL DATA,No
Http://opendatacommunities.org/id/metropolitan-district-council/leeds,Leeds City Council,30/11/2023,Adults and Health,Other Generic Services,Agency Payments,Fees To Carers,563,17/11/2023,2311-00038,0.00,587.60,R,REDACTED PERSONAL DATA,No
Http://opendatacommunities.org/id/metropolitan-district-council/leeds,Leeds City Council,30/11/2023,Adults and Health,Other Generic Services,Agency Payments,Fees To Carers,563,17/11/2023,2311-00039,0.00,56.70,R,REDACTED PERSONAL DATA,No
Http://opendatacommunities.org/id/metropolitan-district-council/leeds,Leeds City Council,30/11/2023,Adults and Health,Other Generic Services,Agency Payments,Fees To Carers,563,17/11/2023,2311-00040,0.00,140.73,R,REDACTED PERSONAL DATA,No
Http://opendatacommunities.org/id/metropolitan-district-council/leeds,Leeds City Council,30/11/2023,Strategy and Resources,Leeds Building Services,Supplies and Services,Operational Materials,205,08/11/2023,2311-00041,0.00,875.00,R,A J H  Pump Supply & Repair Ltd,No
Http://opendatacommunities.org/id/metropolitan-district-council/leeds,Leeds City Council,30/11/2023,Strategy and Resources,Leeds Building Services,Supplies and Services,Operational Materials,205,08/11/2023,2311-00042,0.00,997.00,R,A J H  Pump Supply & Repair Ltd,No
Http://opendatacommunities.org/id/metropolitan-district-council/leeds,Leeds City Council,30/11/2023,Strategy and Resources,Leeds Building Services,Supplies and Services,Operational Materials,205,08/11/2023,2311-00043,0.00,43.00,R,A J H  Pump Supply & Repair Ltd,No
Http://opendatacommunities.org/id/metropolitan-district-council/leeds,Leeds City Council,30/11/2023,Strategy and Resources,Leeds Building Services,Supplies and Services,Operational Materials,205,10/11/2023,2311-00044,0.00,4216.00,R,A J H  Pump Supply & Repair Ltd,No
Http://opendatacommunities.org/id/metropolitan-district-council/leeds,Leeds City Council,30/11/2023,Strategy and Resources,Leeds Building Services,Supplies and Services,Operational Materials,205,10/11/2023,2311-00045,0.00,749.00,R,A J H  Pump Supply & Repair Ltd,No
Http://opendatacommunities.org/id/metropolitan-district-council/leeds,Leeds City Council,30/11/2023,Strategy and Resources,Leeds Building Services,Supplies and Services,Operational Materials,205,30/11/2023,2311-00046,0.00,7895.00,R,A J H  Pump Supply & Repair Ltd,No
Http://opendatacommunities.org/id/metropolitan-district-council/leeds,Leeds City Council,30/11/2023,Communities Housing and Environment,Climate Energy & Greenspaces,Supplies and Services,Resaleable Materials,204,13/11/2023,2311-00047,0.00,290.00,R,A J PROMOTIONS,No
Http://opendatacommunities.org/id/metropolitan-district-council/leeds,Leeds City Council,30/11/2023,Communities Housing and Environment,Customer Access,Supplies and Services,Other Hired And Contracted Services,265,17/11/2023,2311-00048,0.00,221.20,R,A J PROMOTIONS,No
Http://opendatacommunities.org/id/metropolitan-district-council/leeds,Leeds City Council,30/11/2023,Insurance,Insurance,Supplies and Services,Insurance Claims,248,13/11/2023,2311-00049,0.00,900.00,R,REDACTED PERSONAL DATA,No
Http://opendatacommunities.org/id/metropolitan-district-council/leeds,Leeds City Council,30/11/2023,Children and Families,Social Care,Agency Payments,Services Rendered By Other Organisations,511,03/11/2023,2311-00050,0.00,2646.00,R,REDACTED PERSONAL DATA,No
Http://opendatacommunities.org/id/metropolitan-district-council/leeds,Leeds City Council,30/11/2023,Children and Families,Social Care,Employees,Agency Staff,8,06/11/2023,2311-00051,0.00,624.00,R,A Little Something Extra Ltd,No
Http://opendatacommunities.org/id/metropolitan-district-council/leeds,Leeds City Council,30/11/2023,Children and Families,Social Care,Employees,Agency Staff,8,06/11/2023,2311-00052,0.00,858.00,R,A Little Something Extra Ltd,No
Http://opendatacommunities.org/id/metropolitan-district-council/leeds,Leeds City Council,30/11/2023,Communities Housing and Environment,Communities,Supplies and Services,Other Hired And Contracted Services,265,06/11/2023,2311-00053,0.00,264.00,R,A Little Something Extra Ltd,No
Http://opendatacommunities.org/id/metropolitan-district-council/leeds,Leeds City Council,30/11/2023,Children and Families,Social Care,Employees,Agency Staff,8,14/11/2023,2311-00054,0.00,482.62,R,A Little Something Extra Ltd,No
Http://opendatacommunities.org/id/metropolitan-district-council/leeds,Leeds City Council,30/11/2023,City Development,Employment & Skills,Supplies and Services,Other Hired And Contracted Services,265,22/11/2023,2311-00055,0.00,243.85,R,A Little Something Extra Ltd,No
Http://opendatacommunities.org/id/metropolitan-district-council/leeds,Leeds City Council,30/11/2023,Children and Families,Social Care,Agency Payments,Services Rendered By Other Organisations,511,01/11/2023,2311-00056,0.00,1225.35,R,REDACTED PERSONAL DATA,No
Http://opendatacommunities.org/id/metropolitan-district-council/leeds,Leeds City Council,30/11/2023,Children and Families,Social Care,Agency Payments,Services Rendered By Other Organisations,511,03/11/2023,2311-00057,0.00,793.80,R,REDACTED PERSONAL DATA,No
Http://opendatacommunities.org/id/metropolitan-district-council/leeds,Leeds City Council,30/11/2023,Communities Housing and Environment,Customer Access,Supplies and Services,Bought In Professional Services,277,01/11/2023,2311-00058,0.00,24.00,R,A NAMAKI,No
Http://opendatacommunities.org/id/metropolitan-district-council/leeds,Leeds City Council,30/11/2023,Communities Housing and Environment,Customer Access,Supplies and Services,Bought In Professional Services,277,01/11/2023,2311-00059,0.00,18.00,R,A NAMAKI,No
Http://opendatacommunities.org/id/metropolitan-district-council/leeds,Leeds City Council,30/11/2023,Communities Housing and Environment,Customer Access,Supplies and Services,Bought In Professional Services,277,01/11/2023,2311-00060,0.00,18.00,R,A NAMAKI,No
Http://opendatacommunities.org/id/metropolitan-district-council/leeds,Leeds City Council,30/11/2023,Communities Housing and Environment,Customer Access,Supplies and Services,Bought In Professional Services,277,01/11/2023,2311-00061,0.00,54.00,R,A NAMAKI,No
Http://opendatacommunities.org/id/metropolitan-district-council/leeds,Leeds City Council,30/11/2023,Communities Housing and Environment,Customer Access,Supplies and Services,Bought In Professional Services,277,08/11/2023,2311-00062,0.00,27.00,R,A NAMAKI,No
Http://opendatacommunities.org/id/metropolitan-district-council/leeds,Leeds City Council,30/11/2023,Communities Housing and Environment,Customer Access,Supplies and Services,Bought In Professional Services,277,15/11/2023,2311-00063,0.00,18.00,R,A NAMAKI,No
Http://opendatacommunities.org/id/metropolitan-district-council/leeds,Leeds City Council,30/11/2023,Communities Housing and Environment,Customer Access,Supplies and Services,Bought In Professional Services,277,15/11/2023,2311-00064,0.00,18.00,R,A NAMAKI,No
Http://opendatacommunities.org/id/metropolitan-district-council/leeds,Leeds City Council,30/11/2023,Communities Housing and Environment,Customer Access,Supplies and Services,Bought In Professional Services,277,15/11/2023,2311-00065,0.00,18.00,R,A NAMAKI,No
Http://opendatacommunities.org/id/metropolitan-district-council/leeds,Leeds City Council,30/11/2023,Communities Housing and Environment,Customer Access,Supplies and Services,Bought In Professional Services,277,15/11/2023,2311-00066,0.00,54.00,R,A NAMAKI,No
Http://opendatacommunities.org/id/metropolitan-district-council/leeds,Leeds City Council,30/11/2023,Communities Housing and Environment,Customer Access,Supplies and Services,Bought In Professional Services,277,22/11/2023,2311-00067,0.00,18.00,R,A NAMAKI,No
Http://opendatacommunities.org/id/metropolitan-district-council/leeds,Leeds City Council,30/11/2023,Communities Housing and Environment,Customer Access,Supplies and Services,Bought In Professional Services,277,22/11/2023,2311-00068,0.00,18.00,R,A NAMAKI,No
Http://opendatacommunities.org/id/metropolitan-district-council/leeds,Leeds City Council,30/11/2023,Communities Housing and Environment,Customer Access,Supplies and Services,Bought In Professional Services,277,22/11/2023,2311-00069,0.00,54.00,R,A NAMAKI,No
Http://opendatacommunities.org/id/metropolitan-district-council/leeds,Leeds City Council,30/11/2023,Communities Housing and Environment,Customer Access,Supplies and Services,Bought In Professional Services,277,22/11/2023,2311-00070,0.00,18.00,R,A NAMAKI,No
Http://opendatacommunities.org/id/metropolitan-district-council/leeds,Leeds City Council,30/11/2023,Communities Housing and Environment,Customer Access,Supplies and Services,Bought In Professional Services,277,29/11/2023,2311-00071,0.00,18.00,R,A NAMAKI,No
Http://opendatacommunities.org/id/metropolitan-district-council/leeds,Leeds City Council,30/11/2023,Children and Families,Social Care,Agency Payments,Services Rendered By Other Organisations,511,03/11/2023,2311-00072,0.00,264.60,R,REDACTED PERSONAL DATA,No
Http://opendatacommunities.org/id/metropolitan-district-council/leeds,Leeds City Council,30/11/2023,Communities Housing and Environment,Climate Energy & Greenspaces,Supplies and Services,Resaleable Materials,204,01/11/2023,2311-00073,0.00,1055.00,R,A NEWTON,No
Http://opendatacommunities.org/id/metropolitan-district-council/leeds,Leeds City Council,30/11/2023,Strategic Landlord,HRA Housing Leeds,Capital,OTHER COSTS,7,21/11/2023,2311-00074,0.00,80.00,C,REDACTED PERSONAL DATA,No
Http://opendatacommunities.org/id/metropolitan-district-council/leeds,Leeds City Council,30/11/2023,Communities Housing and Environment,Climate Energy & Greenspaces,Supplies and Services,Operational Furniture And Equipment,203,24/11/2023,2311-00075,0.00,461.00,R,A R Twigg & Son Limited,No
Http://opendatacommunities.org/id/metropolitan-district-council/leeds,Leeds City Council,30/11/2023,Children and Families,Social Care,Agency Payments,Services Rendered By Other Organisations,511,01/11/2023,2311-00076,0.00,816.90,R,REDACTED PERSONAL DATA,No
Http://opendatacommunities.org/id/metropolitan-district-council/leeds,Leeds City Council,30/11/2023,Children and Families,Social Care,Agency Payments,Services Rendered By Other Organisations,511,03/11/2023,2311-00077,0.00,264.60,R,REDACTED PERSONAL DATA,No
Http://opendatacommunities.org/id/metropolitan-district-council/leeds,Leeds City Council,30/11/2023,Strategy and Resources,Shared Services,Supplies and Services,Other Hired And Contracted Services,265,02/11/2023,2311-00078,0.00,100.00,R,A Star Couriers Ltd,No
Http://opendatacommunities.org/id/metropolitan-district-council/leeds,Leeds City Council,30/11/2023,Children and Families,Social Care ,Supplies and Services,General Amenity For Clients/Residents,285,30/10/2023,2311-00079,0.00,29.17,R,A Star Phones Limited,Yes
Http://opendatacommunities.org/id/metropolitan-district-council/leeds,Leeds City Council,30/11/2023,Communities Housing and Environment,Waste Management,Employees,Training & Development,70,17/11/2023,2311-00080,0.00,154.40,R,A T Nerac Ltd,No
Http://opendatacommunities.org/id/metropolitan-district-council/leeds,Leeds City Council,30/11/2023,Communities Housing and Environment,Waste Management,Employees,Training & Development,70,17/11/2023,2311-00081,0.00,211.80,R,A T Nerac Ltd,No
Http://opendatacommunities.org/id/metropolitan-district-council/leeds,Leeds City Council,30/11/2023,Adults and Health,Services For Older People Under 65 P/Dis,Agency Payments,Nursing Care Dementia,574,06/11/2023,2311-00082,0.00,2243.30,R,REDACTED PERSONAL DATA,No
Http://opendatacommunities.org/id/metropolitan-district-council/leeds,Leeds City Council,30/11/2023,Children and Families,Social Care,Agency Payments,Services Rendered By Other Organisations,511,03/11/2023,2311-00083,0.00,176.40,R,REDACTED PERSONAL DATA,No
Http://opendatacommunities.org/id/metropolitan-district-council/leeds,Leeds City Council,30/11/2023,Communities Housing and Environment,Benefits Wlefare and Poverty,Supplies and Services,Grant Related Expenditure,290,29/11/2023,2311-00084,0.00,75.00,R,REDACTED PERSONAL DATA,No
Http://opendatacommunities.org/id/metropolitan-district-council/leeds,Leeds City Council,30/11/2023,Children and Families,Social Care,Agency Payments,Services Rendered By Other Organisations,511,03/11/2023,2311-00085,0.00,264.60,R,REDACTED PERSONAL DATA,No
Http://opendatacommunities.org/id/metropolitan-district-council/leeds,Leeds City Council,30/11/2023,Children and Families,Social Care,Agency Payments,General External Residential Placements,507,01/11/2023,2311-00086,0.00,55146.00,R,A Wilderness Way Ltd,No
Http://opendatacommunities.org/id/metropolitan-district-council/leeds,Leeds City Council,30/11/2023,Communities Housing and Environment,Waste Management,Capital,FURNITURE AND EQUIPMENT,5,03/11/2023,2311-00087,0.00,811.50,C,A&C Weber Uk Ltd,No
Http://opendatacommunities.org/id/metropolitan-district-council/leeds,Leeds City Council,30/11/2023,Communities Housing and Environment,Waste Management,Capital,FURNITURE AND EQUIPMENT,5,09/11/2023,2311-00088,0.00,11800.00,C,A&C Weber Uk Ltd,No
Http://opendatacommunities.org/id/metropolitan-district-council/leeds,Leeds City Council,30/11/2023,Communities Housing and Environment,Waste Management,Capital,FURNITURE AND EQUIPMENT,5,09/11/2023,2311-00089,0.00,11800.00,C,A&C Weber Uk Ltd,No
Http://opendatacommunities.org/id/metropolitan-district-council/leeds,Leeds City Council,30/11/2023,Communities Housing and Environment,Waste Management,Capital,FURNITURE AND EQUIPMENT,5,09/11/2023,2311-00090,0.00,1606.00,C,A&C Weber Uk Ltd,No
Http://opendatacommunities.org/id/metropolitan-district-council/leeds,Leeds City Council,30/11/2023,Communities Housing and Environment,Waste Management,Capital,FURNITURE AND EQUIPMENT,5,16/11/2023,2311-00091,0.00,5125.00,C,A&C Weber Uk Ltd,No
Http://opendatacommunities.org/id/metropolitan-district-council/leeds,Leeds City Council,30/11/2023,Communities Housing and Environment,Waste Management,Capital,FURNITURE AND EQUIPMENT,5,16/11/2023,2311-00092,0.00,5125.00,C,A&C Weber Uk Ltd,No
Http://opendatacommunities.org/id/metropolitan-district-council/leeds,Leeds City Council,30/11/2023,Communities Housing and Environment,Waste Management,Capital,FURNITURE AND EQUIPMENT,5,16/11/2023,2311-00093,0.00,5900.00,C,A&C Weber Uk Ltd,No
Http://opendatacommunities.org/id/metropolitan-district-council/leeds,Leeds City Council,30/11/2023,Communities Housing and Environment,Waste Management,Capital,FURNITURE AND EQUIPMENT,5,16/11/2023,2311-00094,0.00,5900.00,C,A&C Weber Uk Ltd,No
Http://opendatacommunities.org/id/metropolitan-district-council/leeds,Leeds City Council,30/11/2023,Communities Housing and Environment,Waste Management,Capital,FURNITURE AND EQUIPMENT,5,29/11/2023,2311-00095,0.00,10250.00,C,A&C Weber Uk Ltd,No
Http://opendatacommunities.org/id/metropolitan-district-council/leeds,Leeds City Council,30/11/2023,Strategy and Resources,Leeds Building Services,Supplies and Services,Operational Materials,205,01/11/2023,2311-00096,0.00,59.40,R,A1 STAIR LIFT SERVICES,No
Http://opendatacommunities.org/id/metropolitan-district-council/leeds,Leeds City Council,30/11/2023,Strategy and Resources,Leeds Building Services,Supplies and Services,Operational Materials,205,01/11/2023,2311-00097,0.00,113.90,R,A1 STAIR LIFT SERVICES,No
Http://opendatacommunities.org/id/metropolitan-district-council/leeds,Leeds City Council,30/11/2023,Strategy and Resources,Leeds Building Services,Supplies and Services,Operational Materials,205,01/11/2023,2311-00098,0.00,85.00,R,A1 STAIR LIFT SERVICES,No
Http://opendatacommunities.org/id/metropolitan-district-council/leeds,Leeds City Council,30/11/2023,Strategy and Resources,Leeds Building Services,Supplies and Services,Other Hired And Contracted Services,265,01/11/2023,2311-00099,0.00,3550.00,R,A1 STAIR LIFT SERVICES,No
Http://opendatacommunities.org/id/metropolitan-district-council/leeds,Leeds City Council,30/11/2023,Communities Housing and Environment,Customer Access,Supplies and Services,Bought In Professional Services,277,29/11/2023,2311-00100,0.00,150.00,R,AA Global Language Services Ltd,No
Http://opendatacommunities.org/id/metropolitan-district-council/leeds,Leeds City Council,30/11/2023,Insurance,Insurance,Supplies and Services,Insurance Claims,248,09/11/2023,2311-00101,0.00,2046.93,R,AA Motor Claims,No
Http://opendatacommunities.org/id/metropolitan-district-council/leeds,Leeds City Council,30/11/2023,Children and Families,Social Care ,Supplies and Services,Subsistence,256,30/10/2023,2311-00102,0.00,50.00,R,Aagrah Skipton,Yes
Http://opendatacommunities.org/id/metropolitan-district-council/leeds,Leeds City Council,30/11/2023,Children and Families,Social Care,Internal Recharges,Legal Disbursements,411,20/11/2023,2311-00103,0.00,320.00,R,Aaqib Javed,No
Http://opendatacommunities.org/id/metropolitan-district-council/leeds,Leeds City Council,30/11/2023,Adults and Health,Services For Older People - 65 And Over,Agency Payments,Residential Care Dementia,571,08/11/2023,2311-00104,0.00,2469.52,R,Aaron Court Care Home,No
Http://opendatacommunities.org/id/metropolitan-district-council/leeds,Leeds City Council as Accountable Body,30/11/2023,Social Services Pooled Budgets,Leeds Community Equip Store Pooled Budgt,Supplies and Services,Other Equipment,203,17/11/2023,2311-00105,0.00,1409.00,R,AAT (GB) LTD,No
Http://opendatacommunities.org/id/metropolitan-district-council/leeds,Leeds City Council as Accountable Body,30/11/2023,Social Services Pooled Budgets,Leeds Community Equip Store Pooled Budgt,Supplies and Services,Other Equipment,203,17/11/2023,2311-00106,0.00,1347.00,R,AAT (GB) LTD,No
Http://opendatacommunities.org/id/metropolitan-district-council/leeds,Leeds City Council,30/11/2023,Communities Housing and Environment,Customer Access ,Supplies and Services,Books & Audio-Visual Materials,206,24/10/2023,2311-00107,0.00,32.97,R,Ab* Abebooks.Uk K4ga6z,Yes
Http://opendatacommunities.org/id/metropolitan-district-council/leeds,Leeds City Council,30/11/2023,Communities Housing and Environment,Customer Access,Supplies and Services,Bought In Professional Services,277,15/11/2023,2311-00108,0.00,18.00,R,Abadit Kiros,No
Http://opendatacommunities.org/id/metropolitan-district-council/leeds,Leeds City Council,30/11/2023,Communities Housing and Environment,Customer Access,Supplies and Services,Bought In Professional Services,277,15/11/2023,2311-00109,0.00,18.00,R,Abadit Kiros,No
Http://opendatacommunities.org/id/metropolitan-district-council/leeds,Leeds City Council,30/11/2023,Communities Housing and Environment,Customer Access,Supplies and Services,Bought In Professional Services,277,15/11/2023,2311-00110,0.00,27.00,R,Abadit Kiros,No
Http://opendatacommunities.org/id/metropolitan-district-council/leeds,Leeds City Council,30/11/2023,Communities Housing and Environment,Customer Access,Supplies and Services,Bought In Professional Services,277,15/11/2023,2311-00111,0.00,13.50,R,Abadit Kiros,No
Http://opendatacommunities.org/id/metropolitan-district-council/leeds,Leeds City Council,30/11/2023,Communities Housing and Environment,Customer Access,Supplies and Services,Bought In Professional Services,277,15/11/2023,2311-00112,0.00,18.00,R,Abadit Kiros,No
Http://opendatacommunities.org/id/metropolitan-district-council/leeds,Leeds City Council,30/11/2023,Communities Housing and Environment,Customer Access,Supplies and Services,Bought In Professional Services,277,15/11/2023,2311-00113,0.00,18.00,R,Abadit Kiros,No
Http://opendatacommunities.org/id/metropolitan-district-council/leeds,Leeds City Council,30/11/2023,Communities Housing and Environment,Customer Access,Supplies and Services,Bought In Professional Services,277,15/11/2023,2311-00114,0.00,36.00,R,Abadit Kiros,No
Http://opendatacommunities.org/id/metropolitan-district-council/leeds,Leeds City Council,30/11/2023,Communities Housing and Environment,Benefits Wlefare and Poverty,Supplies and Services,Grant Related Expenditure,290,29/11/2023,2311-00115,0.00,100.00,R,REDACTED PERSONAL DATA,No
Http://opendatacommunities.org/id/metropolitan-district-council/leeds,Leeds City Council,30/11/2023,Adults and Health,Public Health,Agency Payments,Public Health Commissioned Services,526,07/11/2023,2311-00116,0.00,963.20,R,Abbey Grange Medical Practice,No
Http://opendatacommunities.org/id/metropolitan-district-council/leeds,Leeds City Council,30/11/2023,Children and Families,Learning,Supplies and Services,Other Hired And Contracted Services,265,10/11/2023,2311-00117,0.00,525.00,R,Abbey Multi Academy Trust,No
Http://opendatacommunities.org/id/metropolitan-district-council/leeds,Leeds City Council,30/11/2023,Adults and Health,Services For Adults Under 65 Mental/Dis,Agency Payments,Home Care,568,03/11/2023,2311-00118,0.00,252.00,R,Abbeyfield The Dales Limited,No
Http://opendatacommunities.org/id/metropolitan-district-council/leeds,Leeds City Council,30/11/2023,Adults and Health,Services For Adults Under 65 Mental/Dis,Agency Payments,Home Care,568,16/11/2023,2311-00119,0.00,378.00,R,Abbeyfield The Dales Limited,No
Http://opendatacommunities.org/id/metropolitan-district-council/leeds,Leeds City Council,30/11/2023,Adults and Health,Services For Adults Under 65 Mental/Dis,Agency Payments,Home Care,568,30/11/2023,2311-00120,0.00,252.00,R,Abbeyfield The Dales Limited,No
Http://opendatacommunities.org/id/metropolitan-district-council/leeds,Leeds City Council,30/11/2023,Children and Families,Social Care,Agency Payments,Allowances,546,15/11/2023,2311-00121,0.00,617.76,R,REDACTED PERSONAL DATA,No
Http://opendatacommunities.org/id/metropolitan-district-council/leeds,Leeds City Council,30/11/2023,Children and Families,Social Care,Internal Recharges,Legal Disbursements,411,17/11/2023,2311-00122,0.00,81.68,R,Abbott Toxicology Ltd.,No
Http://opendatacommunities.org/id/metropolitan-district-council/leeds,Leeds City Council,30/11/2023,Children and Families,Social Care,Internal Recharges,Legal Disbursements,411,17/11/2023,2311-00123,0.00,81.68,R,Abbott Toxicology Ltd.,No
Http://opendatacommunities.org/id/metropolitan-district-council/leeds,Leeds City Council,30/11/2023,Children and Families,Social Care,Internal Recharges,Legal Disbursements,411,17/11/2023,2311-00124,0.00,23.75,R,Abbott Toxicology Ltd.,No
Http://opendatacommunities.org/id/metropolitan-district-council/leeds,Leeds City Council,30/11/2023,Children and Families,Social Care,Internal Recharges,Legal Disbursements,411,30/11/2023,2311-00125,0.00,23.75,R,Abbott Toxicology Ltd.,No
Http://opendatacommunities.org/id/metropolitan-district-council/leeds,Leeds City Council,30/11/2023,Communities Housing and Environment,Climate Energy & Greenspaces ,Supplies and Services,Other Hired And Contracted Services,265,05/10/2023,2311-00126,0.00,1200.00,R,Abbotts Memorial Compa,Yes
Http://opendatacommunities.org/id/metropolitan-district-council/leeds,Leeds City Council,30/11/2023,Communities Housing and Environment,Climate Energy & Greenspaces ,Supplies and Services,Other Hired And Contracted Services,265,16/10/2023,2311-00127,0.00,600.00,R,Abbotts Memorial Compa,Yes
Http://opendatacommunities.org/id/metropolitan-district-council/leeds,Leeds City Council,30/11/2023,Communities Housing and Environment,Climate Energy & Greenspaces ,Supplies and Services,Other Hired And Contracted Services,265,26/10/2023,2311-00128,0.00,3150.00,R,Abbotts Memorial Compa,Yes
Http://opendatacommunities.org/id/metropolitan-district-council/leeds,Leeds City Council,30/11/2023,Children and Families,Social Care,Agency Payments,General External Residential Placements,507,06/11/2023,2311-00129,0.00,17121.30,R,Abc Care And Education Ltd,No
Http://opendatacommunities.org/id/metropolitan-district-council/leeds,Leeds City Council,30/11/2023,Children and Families,Social Care,Agency Payments,General External Residential Placements,507,10/11/2023,2311-00130,0.00,17515.09,R,Abc Care And Education Ltd,No
Http://opendatacommunities.org/id/metropolitan-district-council/leeds,Leeds City Council,30/11/2023,Children and Families,Social Care,Agency Payments,Services Rendered By Other Organisations,511,01/11/2023,2311-00131,0.00,3676.05,R,ABC NURSERY AT LUFC,No
Http://opendatacommunities.org/id/metropolitan-district-council/leeds,Leeds City Council,30/11/2023,Children and Families,Social Care,Agency Payments,Services Rendered By Other Organisations,511,03/11/2023,2311-00132,0.00,5292.00,R,ABC NURSERY AT LUFC,No
Http://opendatacommunities.org/id/metropolitan-district-council/leeds,Leeds City Council,30/11/2023,Children and Families,Social Care,Agency Payments,Services Rendered By Voluntary Sector,505,08/11/2023,2311-00133,0.00,450.00,R,ABC NURSERY AT LUFC,No
Http://opendatacommunities.org/id/metropolitan-district-council/leeds,Leeds City Council,30/11/2023,Children and Families,Social Care,Agency Payments,Services Rendered By Other Organisations,511,01/11/2023,2311-00134,0.00,1312.88,R,Abc@D'S Childcare,No
Http://opendatacommunities.org/id/metropolitan-district-council/leeds,Leeds City Council,30/11/2023,Children and Families,Social Care,Agency Payments,Services Rendered By Other Organisations,511,03/11/2023,2311-00135,0.00,8505.00,R,Abc@D'S Childcare,No
Http://opendatacommunities.org/id/metropolitan-district-council/leeds,Leeds City Council,30/11/2023,Communities Housing and Environment,Customer Access,Supplies and Services,Bought In Professional Services,277,15/11/2023,2311-00136,0.00,22.50,R,Abdalla Ahmed,No
Http://opendatacommunities.org/id/metropolitan-district-council/leeds,Leeds City Council,30/11/2023,Communities Housing and Environment,Customer Access,Supplies and Services,Bought In Professional Services,277,15/11/2023,2311-00137,0.00,31.50,R,Abdalla Ahmed,No
Http://opendatacommunities.org/id/metropolitan-district-council/leeds,Leeds City Council,30/11/2023,Communities Housing and Environment,Customer Access,Supplies and Services,Bought In Professional Services,277,22/11/2023,2311-00138,0.00,25.50,R,Abdalla Ahmed,No
Http://opendatacommunities.org/id/metropolitan-district-council/leeds,Leeds City Council,30/11/2023,Communities Housing and Environment,Customer Access,Supplies and Services,Bought In Professional Services,277,22/11/2023,2311-00139,0.00,36.00,R,Abdalla Ahmed,No
Http://opendatacommunities.org/id/metropolitan-district-council/leeds,Leeds City Council,30/11/2023,Communities Housing and Environment,Customer Access,Supplies and Services,Bought In Professional Services,277,22/11/2023,2311-00140,0.00,18.00,R,Abdalla Ahmed,No
Http://opendatacommunities.org/id/metropolitan-district-council/leeds,Leeds City Council,30/11/2023,Communities Housing and Environment,Customer Access,Supplies and Services,Bought In Professional Services,277,29/11/2023,2311-00141,0.00,18.00,R,Abdalla Ahmed,No
Http://opendatacommunities.org/id/metropolitan-district-council/leeds,Leeds City Council,30/11/2023,Communities Housing and Environment,Customer Access,Supplies and Services,Bought In Professional Services,277,01/11/2023,2311-00142,0.00,18.00,R,Abdiqafar Abdullahi,No
Http://opendatacommunities.org/id/metropolitan-district-council/leeds,Leeds City Council,30/11/2023,Communities Housing and Environment,Customer Access,Supplies and Services,Bought In Professional Services,277,01/11/2023,2311-00143,0.00,18.00,R,Abdiqafar Abdullahi,No
Http://opendatacommunities.org/id/metropolitan-district-council/leeds,Leeds City Council,30/11/2023,Communities Housing and Environment,Customer Access,Supplies and Services,Bought In Professional Services,277,22/11/2023,2311-00144,0.00,18.00,R,Abdiqafar Abdullahi,No
Http://opendatacommunities.org/id/metropolitan-district-council/leeds,Leeds City Council,30/11/2023,Communities Housing and Environment,Customer Access,Supplies and Services,Bought In Professional Services,277,29/11/2023,2311-00145,0.00,9.00,R,Abdiqafar Abdullahi,No
Http://opendatacommunities.org/id/metropolitan-district-council/leeds,Leeds City Council,30/11/2023,Communities Housing and Environment,Customer Access,Supplies and Services,Bought In Professional Services,277,08/11/2023,2311-00146,0.00,27.00,R,Abdul Kalam,No
Http://opendatacommunities.org/id/metropolitan-district-council/leeds,Leeds City Council,30/11/2023,Communities Housing and Environment,Customer Access,Supplies and Services,Bought In Professional Services,277,15/11/2023,2311-00147,0.00,18.00,R,Abdul Kalam,No
Http://opendatacommunities.org/id/metropolitan-district-council/leeds,Leeds City Council,30/11/2023,Communities Housing and Environment,Customer Access,Supplies and Services,Bought In Professional Services,277,15/11/2023,2311-00148,0.00,18.00,R,Abdul Kalam,No
Http://opendatacommunities.org/id/metropolitan-district-council/leeds,Leeds City Council,30/11/2023,Communities Housing and Environment,Customer Access,Supplies and Services,Bought In Professional Services,277,15/11/2023,2311-00149,0.00,27.00,R,Abdul Kalam,No
Http://opendatacommunities.org/id/metropolitan-district-council/leeds,Leeds City Council,30/11/2023,Communities Housing and Environment,Customer Access,Supplies and Services,Bought In Professional Services,277,22/11/2023,2311-00150,0.00,18.00,R,Abdul Kalam,No
Http://opendatacommunities.org/id/metropolitan-district-council/leeds,Leeds City Council,30/11/2023,Communities Housing and Environment,Customer Access,Supplies and Services,Bought In Professional Services,277,22/11/2023,2311-00151,0.00,18.00,R,Abdul Kalam,No
Http://opendatacommunities.org/id/metropolitan-district-council/leeds,Leeds City Council,30/11/2023,Communities Housing and Environment,Customer Access,Supplies and Services,Bought In Professional Services,277,22/11/2023,2311-00152,0.00,18.00,R,Abdul Kalam,No
Http://opendatacommunities.org/id/metropolitan-district-council/leeds,Leeds City Council,30/11/2023,Communities Housing and Environment,Customer Access,Supplies and Services,Bought In Professional Services,277,22/11/2023,2311-00153,0.00,18.00,R,Abdul Kalam,No
Http://opendatacommunities.org/id/metropolitan-district-council/leeds,Leeds City Council,30/11/2023,Communities Housing and Environment,Customer Access,Supplies and Services,Bought In Professional Services,277,29/11/2023,2311-00154,0.00,18.00,R,Abdul Kalam,No
Http://opendatacommunities.org/id/metropolitan-district-council/leeds,Leeds City Council,30/11/2023,Communities Housing and Environment,Customer Access,Supplies and Services,Bought In Professional Services,277,01/11/2023,2311-00155,0.00,9.00,R,Abdulahad Denha,No
Http://opendatacommunities.org/id/metropolitan-district-council/leeds,Leeds City Council,30/11/2023,Communities Housing and Environment,Customer Access,Supplies and Services,Bought In Professional Services,277,01/11/2023,2311-00156,0.00,18.00,R,Abdulahad Denha,No
Http://opendatacommunities.org/id/metropolitan-district-council/leeds,Leeds City Council,30/11/2023,Communities Housing and Environment,Customer Access,Supplies and Services,Bought In Professional Services,277,01/11/2023,2311-00157,0.00,18.00,R,Abdulahad Denha,No
Http://opendatacommunities.org/id/metropolitan-district-council/leeds,Leeds City Council,30/11/2023,Communities Housing and Environment,Customer Access,Supplies and Services,Bought In Professional Services,277,08/11/2023,2311-00158,0.00,13.50,R,Abdulahad Denha,No
Http://opendatacommunities.org/id/metropolitan-district-council/leeds,Leeds City Council,30/11/2023,Communities Housing and Environment,Customer Access,Supplies and Services,Bought In Professional Services,277,08/11/2023,2311-00159,0.00,27.00,R,Abdulahad Denha,No
Http://opendatacommunities.org/id/metropolitan-district-council/leeds,Leeds City Council,30/11/2023,Communities Housing and Environment,Customer Access,Supplies and Services,Bought In Professional Services,277,08/11/2023,2311-00160,0.00,27.00,R,Abdulahad Denha,No
Http://opendatacommunities.org/id/metropolitan-district-council/leeds,Leeds City Council,30/11/2023,Communities Housing and Environment,Customer Access,Supplies and Services,Bought In Professional Services,277,08/11/2023,2311-00161,0.00,18.00,R,Abdulahad Denha,No
Http://opendatacommunities.org/id/metropolitan-district-council/leeds,Leeds City Council,30/11/2023,Communities Housing and Environment,Customer Access,Supplies and Services,Bought In Professional Services,277,15/11/2023,2311-00162,0.00,18.00,R,Abdulahad Denha,No
Http://opendatacommunities.org/id/metropolitan-district-council/leeds,Leeds City Council,30/11/2023,Communities Housing and Environment,Customer Access,Supplies and Services,Bought In Professional Services,277,15/11/2023,2311-00163,0.00,27.00,R,Abdulahad Denha,No
Http://opendatacommunities.org/id/metropolitan-district-council/leeds,Leeds City Council,30/11/2023,Communities Housing and Environment,Customer Access,Supplies and Services,Bought In Professional Services,277,15/11/2023,2311-00164,0.00,18.00,R,Abdulahad Denha,No
Http://opendatacommunities.org/id/metropolitan-district-council/leeds,Leeds City Council,30/11/2023,Communities Housing and Environment,Customer Access,Supplies and Services,Bought In Professional Services,277,22/11/2023,2311-00165,0.00,27.00,R,Abdulahad Denha,No
Http://opendatacommunities.org/id/metropolitan-district-council/leeds,Leeds City Council,30/11/2023,Communities Housing and Environment,Customer Access,Supplies and Services,Bought In Professional Services,277,22/11/2023,2311-00166,0.00,18.00,R,Abdulahad Denha,No
Http://opendatacommunities.org/id/metropolitan-district-council/leeds,Leeds City Council,30/11/2023,Communities Housing and Environment,Customer Access,Supplies and Services,Bought In Professional Services,277,22/11/2023,2311-00167,0.00,18.00,R,Abdulahad Denha,No
Http://opendatacommunities.org/id/metropolitan-district-council/leeds,Leeds City Council,30/11/2023,Communities Housing and Environment,Customer Access,Supplies and Services,Bought In Professional Services,277,22/11/2023,2311-00168,0.00,18.00,R,Abdulahad Denha,No
Http://opendatacommunities.org/id/metropolitan-district-council/leeds,Leeds City Council,30/11/2023,Communities Housing and Environment,Customer Access,Supplies and Services,Bought In Professional Services,277,22/11/2023,2311-00169,0.00,27.00,R,Abdulahad Denha,No
Http://opendatacommunities.org/id/metropolitan-district-council/leeds,Leeds City Council,30/11/2023,Communities Housing and Environment,Customer Access,Supplies and Services,Bought In Professional Services,277,29/11/2023,2311-00170,0.00,18.00,R,Abdulahad Denha,No
Http://opendatacommunities.org/id/metropolitan-district-council/leeds,Leeds City Council,30/11/2023,Communities Housing and Environment,Customer Access,Supplies and Services,Bought In Professional Services,277,29/11/2023,2311-00171,0.00,18.00,R,Abdulahad Denha,No
Http://opendatacommunities.org/id/metropolitan-district-council/leeds,Leeds City Council,30/11/2023,Communities Housing and Environment,Customer Access,Supplies and Services,Bought In Professional Services,277,29/11/2023,2311-00172,0.00,18.00,R,Abdulahad Denha,No
Http://opendatacommunities.org/id/metropolitan-district-council/leeds,Leeds City Council,30/11/2023,Communities Housing and Environment,Customer Access,Supplies and Services,Bought In Professional Services,277,29/11/2023,2311-00173,0.00,27.00,R,Abdulahad Denha,No
Http://opendatacommunities.org/id/metropolitan-district-council/leeds,Leeds City Council,30/11/2023,Communities Housing and Environment,Customer Access,Supplies and Services,Bought In Professional Services,277,29/11/2023,2311-00174,0.00,22.50,R,Abdulahad Denha,No
Http://opendatacommunities.org/id/metropolitan-district-council/leeds,Leeds City Council,30/11/2023,Communities Housing and Environment,Customer Access,Supplies and Services,Bought In Professional Services,277,29/11/2023,2311-00175,0.00,18.00,R,Abdulahad Denha,No
Http://opendatacommunities.org/id/metropolitan-district-council/leeds,Leeds City Council,30/11/2023,Communities Housing and Environment,Customer Access,Supplies and Services,Bought In Professional Services,277,01/11/2023,2311-00176,0.00,18.00,R,Abdulrahim Dastyar,No
Http://opendatacommunities.org/id/metropolitan-district-council/leeds,Leeds City Council,30/11/2023,Communities Housing and Environment,Customer Access,Supplies and Services,Bought In Professional Services,277,08/11/2023,2311-00177,0.00,18.00,R,Abdulrahim Dastyar,No
Http://opendatacommunities.org/id/metropolitan-district-council/leeds,Leeds City Council,30/11/2023,Communities Housing and Environment,Customer Access,Supplies and Services,Bought In Professional Services,277,08/11/2023,2311-00178,0.00,18.00,R,Abdulrahim Dastyar,No
Http://opendatacommunities.org/id/metropolitan-district-council/leeds,Leeds City Council,30/11/2023,Communities Housing and Environment,Customer Access,Supplies and Services,Bought In Professional Services,277,15/11/2023,2311-00179,0.00,18.00,R,Abdulrahim Dastyar,No
Http://opendatacommunities.org/id/metropolitan-district-council/leeds,Leeds City Council,30/11/2023,Communities Housing and Environment,Customer Access,Supplies and Services,Bought In Professional Services,277,15/11/2023,2311-00180,0.00,27.00,R,Abdulrahim Dastyar,No
Http://opendatacommunities.org/id/metropolitan-district-council/leeds,Leeds City Council,30/11/2023,Communities Housing and Environment,Customer Access,Supplies and Services,Bought In Professional Services,277,22/11/2023,2311-00181,0.00,18.00,R,Abdulrahim Dastyar,No
Http://opendatacommunities.org/id/metropolitan-district-council/leeds,Leeds City Council,30/11/2023,Communities Housing and Environment,Customer Access,Supplies and Services,Bought In Professional Services,277,22/11/2023,2311-00182,0.00,18.00,R,Abdulrahim Dastyar,No
Http://opendatacommunities.org/id/metropolitan-district-council/leeds,Leeds City Council,30/11/2023,Communities Housing and Environment,Customer Access,Supplies and Services,Bought In Professional Services,277,29/11/2023,2311-00183,0.00,18.00,R,Abdulrahim Dastyar,No
Http://opendatacommunities.org/id/metropolitan-district-council/leeds,Leeds City Council,30/11/2023,Children and Families,Social Care,Agency Payments,Placement Support,550,30/11/2023,2311-00184,0.00,626.00,R,Aberford Childcare Services,No
Http://opendatacommunities.org/id/metropolitan-district-council/leeds,Leeds City Council,30/11/2023,Adults and Health,Services For Older People - 65 And Over,Agency Payments,Nursing Home,570,08/11/2023,2311-00185,0.00,54028.37,R,Aberford Hall,No
Http://opendatacommunities.org/id/metropolitan-district-council/leeds,Leeds City Council,30/11/2023,Adults and Health,Services For Older People Under 65 P/Dis,Agency Payments,Nursing Home,570,08/11/2023,2311-00186,0.00,3016.00,R,Aberford Hall,No
Http://opendatacommunities.org/id/metropolitan-district-council/leeds,Leeds City Council,30/11/2023,Strategy and Resources,Leeds Building Services,Supplies and Services,Operational Materials,205,03/11/2023,2311-00187,0.00,420.90,R,ABI GARAGE DOORS LTD,No
Http://opendatacommunities.org/id/metropolitan-district-council/leeds,Leeds City Council,30/11/2023,Strategy and Resources,Leeds Building Services,Supplies and Services,Operational Materials,205,24/11/2023,2311-00188,0.00,420.90,R,ABI GARAGE DOORS LTD,No
Http://opendatacommunities.org/id/metropolitan-district-council/leeds,Leeds City Council,30/11/2023,Communities Housing and Environment,Elections Licensing and Registration,External Income,Admissions Booking Fees & Ticket Sales,933,30/11/2023,2311-00189,0.00,95.00,R,REDACTED PERSONAL DATA,No
Http://opendatacommunities.org/id/metropolitan-district-council/leeds,Leeds City Council,30/11/2023,Communities Housing and Environment,Customer Access,Supplies and Services,Bought In Professional Services,277,29/11/2023,2311-00190,0.00,9.00,R,Abida Begum,No
Http://opendatacommunities.org/id/metropolitan-district-council/leeds,Leeds City Council,30/11/2023,Children and Families,Social Care,Agency Payments,Services Rendered By Other Organisations,511,03/11/2023,2311-00191,0.00,1058.40,R,REDACTED PERSONAL DATA,No
Http://opendatacommunities.org/id/metropolitan-district-council/leeds,Leeds City Council,30/11/2023,Children and Families,Social Care,Agency Payments,Placement Support,550,24/11/2023,2311-00192,0.00,14.77,R,REDACTED PERSONAL DATA,No
Http://opendatacommunities.org/id/metropolitan-district-council/leeds,Leeds City Council,30/11/2023,Strategy and Resources,Leeds Building Services ,Supplies and Services,Office Consumables,210,26/10/2023,2311-00193,0.00,53.00,R,Abode Window Films,Yes
Http://opendatacommunities.org/id/metropolitan-district-council/leeds,Leeds City Council,30/11/2023,Children and Families,Social Care ,Supplies and Services,Operational Furniture And Equipment,203,19/09/2023,2311-00194,0.00,127.07,R,Absolute,Yes
Http://opendatacommunities.org/id/metropolitan-district-council/leeds,Leeds City Council,30/11/2023,Children and Families,Social Care ,Supplies and Services,Food & Drink,231,01/10/2023,2311-00195,0.00,16.67,R,Abu Bakr Supermarket,Yes
Http://opendatacommunities.org/id/metropolitan-district-council/leeds,Leeds City Council,30/11/2023,Communities Housing and Environment,Communities,Supplies and Services,Other Hired And Contracted Services,265,24/11/2023,2311-00196,0.00,99.75,R,ACCESS DISPLAYS LTD,No
Http://opendatacommunities.org/id/metropolitan-district-council/leeds,Leeds City Council,30/11/2023,Strategy and Resources,Technology,Supplies and Services,Computer Software & Equipment,214,28/11/2023,2311-00197,0.00,67783.34,R,Access Uk Ltd,No
Http://opendatacommunities.org/id/metropolitan-district-council/leeds,Leeds City Council,30/11/2023,City Development,Recreation,Transport,External Hire -Occasional,304,01/11/2023,2311-00198,0.00,128.65,R,ACE CONTAINER SERVICES LIMITED,No
Http://opendatacommunities.org/id/metropolitan-district-council/leeds,Leeds City Council,30/11/2023,Communities Housing and Environment,Climate Energy and Greenspaces,Capital,FURNITURE AND EQUIPMENT,5,15/11/2023,2311-00199,0.00,3100.00,C,ACE CONTAINER SERVICES LIMITED,No
Http://opendatacommunities.org/id/metropolitan-district-council/leeds,Leeds City Council,30/11/2023,Strategy and Resources,Leeds Building Services,Supplies and Services,Other Hired And Contracted Services,265,01/11/2023,2311-00200,0.00,960.00,R,Ace Elevators Limited,No
Http://opendatacommunities.org/id/metropolitan-district-council/leeds,Leeds City Council,30/11/2023,Strategy and Resources,Leeds Building Services,Supplies and Services,Other Hired And Contracted Services,265,28/11/2023,2311-00201,0.00,2000.00,R,Ace Elevators Limited,No
Http://opendatacommunities.org/id/metropolitan-district-council/leeds,Leeds City Council,30/11/2023,Strategy and Resources,Leeds Building Services,Supplies and Services,Other Hired And Contracted Services,265,28/11/2023,2311-00202,0.00,1200.00,R,Ace Elevators Limited,No
Http://opendatacommunities.org/id/metropolitan-district-council/leeds,Leeds City Council as Accountable Body,30/11/2023,Social Services Pooled Budgets,Jcs For People With Learning Disabilitie,Agency Payments,Residential,580,08/11/2023,2311-00203,0.00,103912.96,R,Acorn Care & Education Limited,No
Http://opendatacommunities.org/id/metropolitan-district-council/leeds,Leeds City Council as Accountable Body,30/11/2023,Social Services Pooled Budgets,Jcs For People With Learning Disabilitie,Agency Payments,Residential,580,08/11/2023,2311-00204,0.00,21536.80,R,Acorn Care & Education Limited (Ofg),No
Http://opendatacommunities.org/id/metropolitan-district-council/leeds,Leeds City Council,30/11/2023,Children and Families,Social Care,Agency Payments,General External Residential Placements,507,03/11/2023,2311-00205,0.00,14211.83,R,Acorn Care & Education Ltd (Sales),No
Http://opendatacommunities.org/id/metropolitan-district-council/leeds,Leeds City Council,30/11/2023,Children and Families,Learning,Agency Payments,SEN Placements,566,07/11/2023,2311-00206,0.00,13852.83,R,Acorn Care & Education Ltd (Sales),No
Http://opendatacommunities.org/id/metropolitan-district-council/leeds,Leeds City Council,30/11/2023,Children and Families,Learning,Agency Payments,SEN Placements,566,09/11/2023,2311-00207,0.00,20831.10,R,Acorn Care & Education Ltd (Sales),No
Http://opendatacommunities.org/id/metropolitan-district-council/leeds,Leeds City Council,30/11/2023,Children and Families,Learning,Agency Payments,SEN Placements,566,09/11/2023,2311-00208,0.00,20256.74,R,Acorn Care & Education Ltd (Sales),No
Http://opendatacommunities.org/id/metropolitan-district-council/leeds,Leeds City Council,30/11/2023,Children and Families,Learning,Agency Payments,SEN Placements,566,09/11/2023,2311-00209,0.00,20414.59,R,Acorn Care & Education Ltd (Sales),No
Http://opendatacommunities.org/id/metropolitan-district-council/leeds,Leeds City Council,30/11/2023,Children and Families,Learning,Agency Payments,SEN Placements,566,09/11/2023,2311-00210,0.00,23333.34,R,Acorn Care & Education Ltd (Sales),No
Http://opendatacommunities.org/id/metropolitan-district-council/leeds,Leeds City Council,30/11/2023,Children and Families,Learning,Agency Payments,SEN Placements,566,09/11/2023,2311-00211,0.00,23333.34,R,Acorn Care & Education Ltd (Sales),No
Http://opendatacommunities.org/id/metropolitan-district-council/leeds,Leeds City Council,30/11/2023,Children and Families,Learning,Agency Payments,SEN Placements,566,09/11/2023,2311-00212,0.00,20330.00,R,Acorn Care & Education Ltd (Sales),No
Http://opendatacommunities.org/id/metropolitan-district-council/leeds,Leeds City Council,30/11/2023,Children and Families,Learning,Agency Payments,SEN Placements,566,09/11/2023,2311-00213,0.00,20000.00,R,Acorn Care & Education Ltd (Sales),No
Http://opendatacommunities.org/id/metropolitan-district-council/leeds,Leeds City Council,30/11/2023,Children and Families,Learning,Agency Payments,SEN Placements,566,09/11/2023,2311-00214,0.00,23333.34,R,Acorn Care & Education Ltd (Sales),No
Http://opendatacommunities.org/id/metropolitan-district-council/leeds,Leeds City Council,30/11/2023,Children and Families,Learning,Agency Payments,SEN Placements,566,09/11/2023,2311-00215,0.00,25666.66,R,Acorn Care & Education Ltd (Sales),No
Http://opendatacommunities.org/id/metropolitan-district-council/leeds,Leeds City Council,30/11/2023,Children and Families,Learning,Agency Payments,SEN Placements,566,09/11/2023,2311-00216,0.00,20000.00,R,Acorn Care & Education Ltd (Sales),No
Http://opendatacommunities.org/id/metropolitan-district-council/leeds,Leeds City Council,30/11/2023,Children and Families,Learning,Agency Payments,SEN Placements,566,09/11/2023,2311-00217,0.00,20000.00,R,Acorn Care & Education Ltd (Sales),No
Http://opendatacommunities.org/id/metropolitan-district-council/leeds,Leeds City Council,30/11/2023,Children and Families,Learning,Agency Payments,SEN Placements,566,09/11/2023,2311-00218,0.00,23333.34,R,Acorn Care & Education Ltd (Sales),No
Http://opendatacommunities.org/id/metropolitan-district-council/leeds,Leeds City Council,30/11/2023,Children and Families,Social Care,Agency Payments,General External Residential Placements,507,09/11/2023,2311-00219,0.00,12920.32,R,Acorn Care & Education Ltd (Sales),No
Http://opendatacommunities.org/id/metropolitan-district-council/leeds,Leeds City Council,30/11/2023,Children and Families,Social Care,Agency Payments,General External Residential Placements,507,09/11/2023,2311-00220,0.00,9184.84,R,Acorn Care & Education Ltd (Sales),No
Http://opendatacommunities.org/id/metropolitan-district-council/leeds,Leeds City Council,30/11/2023,Children and Families,Social Care,Agency Payments,General External Residential Placements,507,09/11/2023,2311-00221,0.00,-12920.32,R,Acorn Care & Education Ltd (Sales),No
Http://opendatacommunities.org/id/metropolitan-district-council/leeds,Leeds City Council,30/11/2023,Children and Families,Social Care,Agency Payments,General External Residential Placements,507,09/11/2023,2311-00222,0.00,-9184.84,R,Acorn Care & Education Ltd (Sales),No
Http://opendatacommunities.org/id/metropolitan-district-council/leeds,Leeds City Council,30/11/2023,Children and Families,Learning,Agency Payments,SEN Placements,566,13/11/2023,2311-00223,0.00,21864.61,R,Acorn Care & Education Ltd (Sales),No
Http://opendatacommunities.org/id/metropolitan-district-council/leeds,Leeds City Council,30/11/2023,Children and Families,Learning,Agency Payments,SEN Placements,566,14/11/2023,2311-00224,0.00,23559.96,R,Acorn Care & Education Ltd (Sales),No
Http://opendatacommunities.org/id/metropolitan-district-council/leeds,Leeds City Council,30/11/2023,Children and Families,Learning,Agency Payments,SEN Placements,566,14/11/2023,2311-00225,0.00,21797.45,R,Acorn Care & Education Ltd (Sales),No
Http://opendatacommunities.org/id/metropolitan-district-council/leeds,Leeds City Council,30/11/2023,Children and Families,Learning,Agency Payments,SEN Placements,566,14/11/2023,2311-00226,0.00,37658.85,R,Acorn Care & Education Ltd (Sales),No
Http://opendatacommunities.org/id/metropolitan-district-council/leeds,Leeds City Council,30/11/2023,Children and Families,Learning,Agency Payments,SEN Placements,566,16/11/2023,2311-00227,0.00,20414.66,R,Acorn Care & Education Ltd (Sales),No
Http://opendatacommunities.org/id/metropolitan-district-council/leeds,Leeds City Council,30/11/2023,Children and Families,Learning,Agency Payments,SEN Placements,566,16/11/2023,2311-00228,0.00,30390.66,R,Acorn Care & Education Ltd (Sales),No
Http://opendatacommunities.org/id/metropolitan-district-council/leeds,Leeds City Council,30/11/2023,Children and Families,Learning,Agency Payments,SEN Placements,566,16/11/2023,2311-00229,0.00,20330.00,R,Acorn Care & Education Ltd (Sales),No
Http://opendatacommunities.org/id/metropolitan-district-council/leeds,Leeds City Council,30/11/2023,Children and Families,Learning,Agency Payments,SEN Placements,566,20/11/2023,2311-00230,0.00,1948.00,R,Acorn Care & Education Ltd (Sales),No
Http://opendatacommunities.org/id/metropolitan-district-council/leeds,Leeds City Council,30/11/2023,Children and Families,Learning,Agency Payments,SEN Placements,566,20/11/2023,2311-00231,0.00,51131.11,R,Acorn Care & Education Ltd (Sales),No
Http://opendatacommunities.org/id/metropolitan-district-council/leeds,Leeds City Council,30/11/2023,Children and Families,Learning,Agency Payments,SEN Placements,566,23/11/2023,2311-00232,0.00,16693.77,R,Acorn Care & Education Ltd (Sales),No
Http://opendatacommunities.org/id/metropolitan-district-council/leeds,Leeds City Council,30/11/2023,Children and Families,Learning,Agency Payments,SEN Placements,566,23/11/2023,2311-00233,0.00,21246.61,R,Acorn Care & Education Ltd (Sales),No
Http://opendatacommunities.org/id/metropolitan-district-council/leeds,Leeds City Council,30/11/2023,Children and Families,Learning,Agency Payments,SEN Placements,566,23/11/2023,2311-00234,0.00,12682.93,R,Acorn Care & Education Ltd (Sales),No
Http://opendatacommunities.org/id/metropolitan-district-council/leeds,Leeds City Council,30/11/2023,Children and Families,Learning,Agency Payments,SEN Placements,566,23/11/2023,2311-00235,0.00,15365.85,R,Acorn Care & Education Ltd (Sales),No
Http://opendatacommunities.org/id/metropolitan-district-council/leeds,Leeds City Council,30/11/2023,Children and Families,Learning,Agency Payments,SEN Placements,566,23/11/2023,2311-00236,0.00,7479.67,R,Acorn Care & Education Ltd (Sales),No
Http://opendatacommunities.org/id/metropolitan-district-council/leeds,Leeds City Council,30/11/2023,Children and Families,Learning,Agency Payments,SEN Placements,566,23/11/2023,2311-00237,0.00,4666.67,R,Acorn Care & Education Ltd (Sales),No
Http://opendatacommunities.org/id/metropolitan-district-council/leeds,Leeds City Council,30/11/2023,Children and Families,Learning,Agency Payments,SEN Placements,566,23/11/2023,2311-00238,0.00,20000.00,R,Acorn Care & Education Ltd (Sales),No
Http://opendatacommunities.org/id/metropolitan-district-council/leeds,Leeds City Council,30/11/2023,Children and Families,Learning,Agency Payments,SEN Placements,566,23/11/2023,2311-00239,0.00,21797.46,R,Acorn Care & Education Ltd (Sales),No
Http://opendatacommunities.org/id/metropolitan-district-council/leeds,Leeds City Council,30/11/2023,Adults and Health,Services For Older People Under 65 P/Dis,Agency Payments,Nursing Home,570,08/11/2023,2311-00240,0.00,3500.00,R,Acorn Care Home,No
Http://opendatacommunities.org/id/metropolitan-district-council/leeds,Leeds City Council,30/11/2023,Children and Families,Social Care,Agency Payments,Services Rendered By Other Organisations,511,01/11/2023,2311-00241,0.00,350.10,R,ACORNS NURSERY,No
Http://opendatacommunities.org/id/metropolitan-district-council/leeds,Leeds City Council,30/11/2023,Children and Families,Social Care,Agency Payments,Services Rendered By Other Organisations,511,03/11/2023,2311-00242,0.00,9790.20,R,ACORNS NURSERY,No
Http://opendatacommunities.org/id/metropolitan-district-council/leeds,Leeds City Council,30/11/2023,Children and Families,Social Care,Agency Payments,Services Rendered By Voluntary Sector,505,08/11/2023,2311-00243,0.00,450.00,R,ACORNS NURSERY,No
Http://opendatacommunities.org/id/metropolitan-district-council/leeds,Leeds City Council,30/11/2023,Adults and Health,Services For Older People - 65 And Over,Agency Payments,Nursing Home,570,08/11/2023,2311-00244,0.00,23617.62,R,Acre Green,No
Http://opendatacommunities.org/id/metropolitan-district-council/leeds,Leeds City Council,30/11/2023,Adults and Health,Services For Older People - 65 And Over,Agency Payments,Residential,580,08/11/2023,2311-00245,0.00,4548.80,R,Acre Green,No
Http://opendatacommunities.org/id/metropolitan-district-council/leeds,Leeds City Council,30/11/2023,Adults and Health,Services For Older People Under 65 P/Dis,Agency Payments,Nursing Home,570,08/11/2023,2311-00246,0.00,2479.64,R,Acre Green,No
Http://opendatacommunities.org/id/metropolitan-district-council/leeds,Leeds City Council,30/11/2023,Adults and Health,Services For Older People Under 65 P/Dis,Agency Payments,Residential,580,08/11/2023,2311-00247,0.00,2071.00,R,Acre Green,No
Http://opendatacommunities.org/id/metropolitan-district-council/leeds,Leeds City Council,30/11/2023,Children and Families,Social Care,Agency Payments,Services Rendered By Other Organisations,511,01/11/2023,2311-00248,0.00,1633.80,R,Acre Wood Day Nursery,No
Http://opendatacommunities.org/id/metropolitan-district-council/leeds,Leeds City Council,30/11/2023,Children and Families,Social Care,Agency Payments,Services Rendered By Other Organisations,511,03/11/2023,2311-00249,0.00,6350.40,R,Acre Wood Day Nursery,No
Http://opendatacommunities.org/id/metropolitan-district-council/leeds,Leeds City Council as Accountable Body,30/11/2023,Social Services Pooled Budgets,Jcs For People With Learning Disabilitie,Supplies and Services,Other Equipment,203,24/11/2023,2311-00250,0.00,580.00,R,Action Assist Ltd,No
Http://opendatacommunities.org/id/metropolitan-district-council/leeds,Leeds City Council as Accountable Body,30/11/2023,Social Services Pooled Budgets,Jcs For People With Learning Disabilitie,Agency Payments,Residential,580,08/11/2023,2311-00251,0.00,11613.36,R,Action For Care Contracts Limited,No
Http://opendatacommunities.org/id/metropolitan-district-council/leeds,Leeds City Council,30/11/2023,Children and Families,Social Care,Agency Payments,Independent Fostering Agencies,509,02/11/2023,2311-00252,0.00,4897.20,R,Action For Children Services Ltd,No
Http://opendatacommunities.org/id/metropolitan-district-council/leeds,Leeds City Council,30/11/2023,City Development,Markets & City Centre Management,Supplies and Services,Publication And Promotion,267,21/11/2023,2311-00253,0.00,1260.00,R,ACTIVE HIRE (LEEDS) LTD,No
Http://opendatacommunities.org/id/metropolitan-district-council/leeds,Leeds City Council,30/11/2023,City Development,Markets & City Centre Management,Supplies and Services,Publication And Promotion,267,21/11/2023,2311-00254,0.00,1560.00,R,ACTIVE HIRE (LEEDS) LTD,No
Http://opendatacommunities.org/id/metropolitan-district-council/leeds,Leeds City Council,30/11/2023,Children and Families,Social Care,Agency Payments,Services Rendered By Other Organisations,511,01/11/2023,2311-00255,0.00,1225.35,R,ACTIVE KIDS YEADON LLP,No
Http://opendatacommunities.org/id/metropolitan-district-council/leeds,Leeds City Council,30/11/2023,Children and Families,Social Care,Agency Payments,Services Rendered By Other Organisations,511,03/11/2023,2311-00256,0.00,3704.40,R,ACTIVE KIDS YEADON LLP,No
Http://opendatacommunities.org/id/metropolitan-district-council/leeds,Leeds City Council,30/11/2023,City Development,Recreation ,Supplies and Services,Other Hired And Contracted Services,265,06/10/2023,2311-00257,0.00,34.89,R,Active Leeds,Yes
Http://opendatacommunities.org/id/metropolitan-district-council/leeds,Leeds City Council,30/11/2023,City Development,Recreation ,Supplies and Services,Other Hired And Contracted Services,265,12/10/2023,2311-00258,0.00,-34.89,R,Active Leeds,Yes
Http://opendatacommunities.org/id/metropolitan-district-council/leeds,Leeds City Council,30/11/2023,City Development,Recreation ,Supplies and Services,Other Hired And Contracted Services,265,24/10/2023,2311-00259,0.00,28.94,R,Active Leeds,Yes
Http://opendatacommunities.org/id/metropolitan-district-council/leeds,Leeds City Council,30/11/2023,City Development,Recreation ,Supplies and Services,Other Hired And Contracted Services,265,27/10/2023,2311-00260,0.00,-28.94,R,Active Leeds,Yes
Http://opendatacommunities.org/id/metropolitan-district-council/leeds,Leeds City Council,30/11/2023,Adults and Health,Services For Adults Under 65 Mental/Dis,Agency Payments,Sheltered Accommodation,569,08/11/2023,2311-00261,0.00,42286.92,R,Active Pathways,No
Http://opendatacommunities.org/id/metropolitan-district-council/leeds,Leeds City Council,30/11/2023,Adults and Health,Services For Older People - 65 And Over,Agency Payments,Sheltered Accommodation,569,08/11/2023,2311-00262,0.00,2821.36,R,Active Pathways,No
Http://opendatacommunities.org/id/metropolitan-district-council/leeds,Leeds City Council as Accountable Body,30/11/2023,Social Services Pooled Budgets,Jcs For People With Learning Disabilitie,Agency Payments,Sheltered Accommodation,569,08/11/2023,2311-00263,0.00,9404.48,R,Active Pathways,No
Http://opendatacommunities.org/id/metropolitan-district-council/leeds,Leeds City Council,30/11/2023,Adults and Health,Services For Adults Under 65 Mental/Dis,Agency Payments,Residential,580,08/11/2023,2311-00264,0.00,14697.36,R,Active Pathways Limited,No
Http://opendatacommunities.org/id/metropolitan-district-council/leeds,Leeds City Council,30/11/2023,Adults and Health,Services For Older People - 65 And Over,Agency Payments,Residential,580,08/11/2023,2311-00265,0.00,4899.08,R,Active Pathways Limited,No
Http://opendatacommunities.org/id/metropolitan-district-council/leeds,Leeds City Council,30/11/2023,Communities Housing and Environment,Waste Management,Supplies and Services,Recycling & Reuse Charges,234,02/11/2023,2311-00266,0.00,4728.96,R,Acumen Waste Services Ltd,No
Http://opendatacommunities.org/id/metropolitan-district-council/leeds,Leeds City Council,30/11/2023,Communities Housing and Environment,Waste Management,Supplies and Services,Recycling & Reuse Charges,234,02/11/2023,2311-00267,0.00,1003.68,R,Acumen Waste Services Ltd,No
Http://opendatacommunities.org/id/metropolitan-district-council/leeds,Leeds City Council,30/11/2023,Communities Housing and Environment,Waste Management,Supplies and Services,Waste Disposal Charges,236,08/11/2023,2311-00268,0.00,2375.00,R,Acumen Waste Services Ltd,No
Http://opendatacommunities.org/id/metropolitan-district-council/leeds,Leeds City Council,30/11/2023,Communities Housing and Environment,Waste Management,Supplies and Services,Recycling & Reuse Charges,234,24/11/2023,2311-00269,0.00,7465.68,R,Acumen Waste Services Ltd,No
Http://opendatacommunities.org/id/metropolitan-district-council/leeds,Leeds City Council,30/11/2023,Communities Housing and Environment,Waste Management,Supplies and Services,Recycling & Reuse Charges,234,24/11/2023,2311-00270,0.00,5883.84,R,Acumen Waste Services Ltd,No
Http://opendatacommunities.org/id/metropolitan-district-council/leeds,Leeds City Council,30/11/2023,Communities Housing and Environment,Waste Management,Supplies and Services,Waste Disposal Charges,236,29/11/2023,2311-00271,0.00,1256.20,R,Acumen Waste Services Ltd,No
Http://opendatacommunities.org/id/metropolitan-district-council/leeds,Leeds City Council,30/11/2023,Communities Housing and Environment,Waste Management,Supplies and Services,Waste Disposal Charges,236,29/11/2023,2311-00272,0.00,828.55,R,Acumen Waste Services Ltd,No
Http://opendatacommunities.org/id/metropolitan-district-council/leeds,Leeds City Council,30/11/2023,Communities Housing and Environment,Waste Management,Supplies and Services,Waste Disposal Charges,236,29/11/2023,2311-00273,0.00,1186.00,R,Acumen Waste Services Ltd,No
Http://opendatacommunities.org/id/metropolitan-district-council/leeds,Leeds City Council,30/11/2023,Communities Housing and Environment,Waste Management,Supplies and Services,Waste Disposal Charges,236,29/11/2023,2311-00274,0.00,1034.20,R,Acumen Waste Services Ltd,No
Http://opendatacommunities.org/id/metropolitan-district-council/leeds,Leeds City Council,30/11/2023,Communities Housing and Environment,Waste Management,Supplies and Services,Waste Disposal Charges,236,29/11/2023,2311-00275,0.00,1204.75,R,Acumen Waste Services Ltd,No
Http://opendatacommunities.org/id/metropolitan-district-council/leeds,Leeds City Council,30/11/2023,Communities Housing and Environment,Waste Management,Supplies and Services,Waste Disposal Charges,236,29/11/2023,2311-00276,0.00,1133.60,R,Acumen Waste Services Ltd,No
Http://opendatacommunities.org/id/metropolitan-district-council/leeds,Leeds City Council,30/11/2023,Communities Housing and Environment,Climate Energy & Greenspaces ,Supplies and Services,Resaleable Materials,204,23/10/2023,2311-00277,0.00,1774.50,R,Acushnet Europe Ltd,Yes
Http://opendatacommunities.org/id/metropolitan-district-council/leeds,Leeds City Council,30/11/2023,Strategy and Resources,Shared Services,Supplies and Services,Operational Materials,205,10/11/2023,2311-00278,0.00,1497.00,R,AD3 Envelope Printers Limited,No
Http://opendatacommunities.org/id/metropolitan-district-council/leeds,Leeds City Council,30/11/2023,Children and Families,Social Care ,Supplies and Services,Telephones,213,26/10/2023,2311-00279,0.00,180.00,R,Adams Phones,Yes
Http://opendatacommunities.org/id/metropolitan-district-council/leeds,Leeds City Council,30/11/2023,City Development,Libraries Arts & Heritage,Supplies and Services,Other Hired And Contracted Services,265,02/11/2023,2311-00280,0.00,790.80,R,ADDPLANT Limited,No
Http://opendatacommunities.org/id/metropolitan-district-council/leeds,Leeds City Council,30/11/2023,Adults and Health,Services For Older People - 65 And Over,Agency Payments,Nursing Home,570,08/11/2023,2311-00281,0.00,2388.20,R,Adel Manor Care Centre,No
Http://opendatacommunities.org/id/metropolitan-district-council/leeds,Leeds City Council,30/11/2023,Adults and Health,Services For Older People - 65 And Over,Agency Payments,Residential,580,08/11/2023,2311-00282,0.00,5717.51,R,Adel Manor Care Centre,No
Http://opendatacommunities.org/id/metropolitan-district-council/leeds,Leeds City Council,30/11/2023,Adults and Health,Services For Older People Under 65 P/Dis,Agency Payments,Residential,580,08/11/2023,2311-00283,0.00,5000.00,R,Adel Manor Care Centre,No
Http://opendatacommunities.org/id/metropolitan-district-council/leeds,Leeds City Council,30/11/2023,Children and Families,Social Care,Agency Payments,Services Rendered By Voluntary Sector,505,01/11/2023,2311-00284,0.00,758.55,R,ADEL PRE SCHOOL,No
Http://opendatacommunities.org/id/metropolitan-district-council/leeds,Leeds City Council,30/11/2023,Children and Families,Social Care,Agency Payments,Services Rendered By Voluntary Sector,505,03/11/2023,2311-00285,0.00,3194.10,R,ADEL PRE SCHOOL,No
Http://opendatacommunities.org/id/metropolitan-district-council/leeds,Leeds City Council,30/11/2023,City Development,Recreation,Supplies and Services,Bought In Professional Services,277,29/11/2023,2311-00286,0.00,240.00,R,Adele Battersby,No
Http://opendatacommunities.org/id/metropolitan-district-council/leeds,Leeds City Council,30/11/2023,City Development,Recreation,Supplies and Services,Bought In Professional Services,277,29/11/2023,2311-00287,0.00,185.00,R,Adele Battersby,No
Http://opendatacommunities.org/id/metropolitan-district-council/leeds,Leeds City Council,30/11/2023,Children and Families,Social Care,Agency Payments,Services Rendered By Other Organisations,511,01/11/2023,2311-00288,0.00,408.45,R,REDACTED PERSONAL DATA,No
Http://opendatacommunities.org/id/metropolitan-district-council/leeds,Leeds City Council,30/11/2023,Strategy and Resources,Commercial Services,Supplies and Services,Other Hired And Contracted Services,265,24/11/2023,2311-00289,0.00,60.87,R,REDACTED PERSONAL DATA,No
Http://opendatacommunities.org/id/metropolitan-district-council/leeds,Leeds City Council,30/11/2023,Strategy and Resources,Leeds Building Services,Supplies and Services,Operational Materials,205,10/11/2023,2311-00290,0.00,642.77,R,ADI-Gardiner Ltd,No
Http://opendatacommunities.org/id/metropolitan-district-council/leeds,Leeds City Council,30/11/2023,Strategy and Resources,Leeds Building Services,Supplies and Services,Operational Materials,205,15/11/2023,2311-00291,0.00,124.75,R,ADI-Gardiner Ltd,No
Http://opendatacommunities.org/id/metropolitan-district-council/leeds,Leeds City Council,30/11/2023,Strategy and Resources,Leeds Building Services,Supplies and Services,Operational Materials,205,24/11/2023,2311-00292,0.00,332.88,R,ADI-Gardiner Ltd,No
Http://opendatacommunities.org/id/metropolitan-district-council/leeds,Leeds City Council,30/11/2023,Strategy and Resources,Leeds Building Services,Supplies and Services,Operational Materials,205,30/11/2023,2311-00293,0.00,315.61,R,ADI-Gardiner Ltd,No
Http://opendatacommunities.org/id/metropolitan-district-council/leeds,Leeds City Council,30/11/2023,City Development,Libraries Arts & Heritage ,Supplies and Services,Advertising,211,07/10/2023,2311-00294,0.00,43.32,R,Adobe Creative Cloud,Yes
Http://opendatacommunities.org/id/metropolitan-district-council/leeds,Leeds City Council,30/11/2023,Children and Families,Social Care,Agency Payments,Independent Fostering Agencies,509,02/11/2023,2311-00295,0.00,3643.00,R,Adolescent And Childrens Trust,No
Http://opendatacommunities.org/id/metropolitan-district-council/leeds,Leeds City Council,30/11/2023,Children and Families,Social Care,Agency Payments,Independent Fostering Agencies,509,10/11/2023,2311-00296,0.00,3630.00,R,Adolescent And Childrens Trust,No
Http://opendatacommunities.org/id/metropolitan-district-council/leeds,Leeds City Council,30/11/2023,Children and Families,Social Care,Agency Payments,Independent Fostering Agencies,509,10/11/2023,2311-00297,0.00,3450.00,R,Adolescent And Childrens Trust,No
Http://opendatacommunities.org/id/metropolitan-district-council/leeds,Leeds City Council,30/11/2023,Children and Families,Social Care,Agency Payments,Independent Fostering Agencies,509,10/11/2023,2311-00298,0.00,3630.00,R,Adolescent And Childrens Trust,No
Http://opendatacommunities.org/id/metropolitan-district-council/leeds,Leeds City Council,30/11/2023,Children and Families,Social Care,Agency Payments,Independent Fostering Agencies,509,10/11/2023,2311-00299,0.00,3630.00,R,Adolescent And Childrens Trust,No
Http://opendatacommunities.org/id/metropolitan-district-council/leeds,Leeds City Council,30/11/2023,Children and Families,Social Care,Agency Payments,Independent Fostering Agencies,509,10/11/2023,2311-00300,0.00,3797.10,R,Adolescent And Childrens Trust,No
Http://opendatacommunities.org/id/metropolitan-district-council/leeds,Leeds City Council,30/11/2023,Children and Families,Social Care,Agency Payments,Independent Fostering Agencies,509,10/11/2023,2311-00301,0.00,3630.00,R,Adolescent And Childrens Trust,No
Http://opendatacommunities.org/id/metropolitan-district-council/leeds,Leeds City Council,30/11/2023,Children and Families,Social Care,Agency Payments,Independent Fostering Agencies,509,10/11/2023,2311-00302,0.00,3417.39,R,Adolescent And Childrens Trust,No
Http://opendatacommunities.org/id/metropolitan-district-council/leeds,Leeds City Council,30/11/2023,Children and Families,Social Care,Agency Payments,Independent Fostering Agencies,509,10/11/2023,2311-00303,0.00,3417.39,R,Adolescent And Childrens Trust,No
Http://opendatacommunities.org/id/metropolitan-district-council/leeds,Leeds City Council,30/11/2023,Children and Families,Social Care,Agency Payments,Independent Fostering Agencies,509,10/11/2023,2311-00304,0.00,3267.00,R,Adolescent And Childrens Trust,No
Http://opendatacommunities.org/id/metropolitan-district-council/leeds,Leeds City Council,30/11/2023,Children and Families,Social Care,Agency Payments,Independent Fostering Agencies,509,10/11/2023,2311-00305,0.00,3510.00,R,Adolescent And Childrens Trust,No
Http://opendatacommunities.org/id/metropolitan-district-council/leeds,Leeds City Council as Accountable Body,30/11/2023,Social Services Pooled Budgets,Jcs For People With Learning Disabilitie,Agency Payments,Residential,580,08/11/2023,2311-00306,0.00,2609.36,R,ADRIAN HOUSE,No
Http://opendatacommunities.org/id/metropolitan-district-council/leeds,Leeds City Council,30/11/2023,Communities Housing and Environment,Strategic Housing Partnership & Support,Capital,CONSTRUCTION,3,03/11/2023,2311-00307,0.00,3000.00,C,REDACTED PERSONAL DATA,No
Http://opendatacommunities.org/id/metropolitan-district-council/leeds,Leeds City Council,30/11/2023,Children and Families,Social Care,Agency Payments,Placement Support,550,06/11/2023,2311-00308,0.00,15.00,R,REDACTED PERSONAL DATA,No
Http://opendatacommunities.org/id/metropolitan-district-council/leeds,Leeds City Council,30/11/2023,Children and Families,Social Care,Agency Payments,Placement Support,550,13/11/2023,2311-00309,0.00,15.00,R,REDACTED PERSONAL DATA,No
Http://opendatacommunities.org/id/metropolitan-district-council/leeds,Leeds City Council,30/11/2023,Children and Families,Social Care,Agency Payments,Placement Support,550,20/11/2023,2311-00310,0.00,15.00,R,REDACTED PERSONAL DATA,No
Http://opendatacommunities.org/id/metropolitan-district-council/leeds,Leeds City Council,30/11/2023,Children and Families,Social Care,Agency Payments,Placement Support,550,27/11/2023,2311-00311,0.00,15.00,R,REDACTED PERSONAL DATA,No
Http://opendatacommunities.org/id/metropolitan-district-council/leeds,Leeds City Council,30/11/2023,City Development,Recreation,Supplies and Services,External Audit Fees,261,07/11/2023,2311-00312,0.00,140.00,R,ADVANCE STOCKS LTD,No
Http://opendatacommunities.org/id/metropolitan-district-council/leeds,Leeds City Council,30/11/2023,City Development,Libraries Arts & Heritage,Supplies and Services,External Audit Fees,261,07/11/2023,2311-00313,0.00,100.00,R,ADVANCE STOCKS LTD,No
Http://opendatacommunities.org/id/metropolitan-district-council/leeds,Leeds City Council,30/11/2023,Children and Families,Social Care,Internal Recharges,Legal Disbursements,411,03/11/2023,2311-00314,0.00,24.75,R,ADVANCED CHILD CARE ASSESSMENTS LTD,No
Http://opendatacommunities.org/id/metropolitan-district-council/leeds,Leeds City Council,30/11/2023,Strategy and Resources,Legal Services,Internal Recharges,Legal Disbursements,411,22/11/2023,2311-00315,0.00,314.58,R,ADVANCED CHILD CARE ASSESSMENTS LTD,No
Http://opendatacommunities.org/id/metropolitan-district-council/leeds,Leeds City Council,30/11/2023,Children and Families,Social Care,Internal Recharges,Legal Disbursements,411,24/11/2023,2311-00316,0.00,2704.20,R,ADVANCED CHILD CARE ASSESSMENTS LTD,No
Http://opendatacommunities.org/id/metropolitan-district-council/leeds,Leeds City Council,30/11/2023,Children and Families,Social Care,Internal Recharges,Legal Disbursements,411,24/11/2023,2311-00317,0.00,41.25,R,ADVANCED CHILD CARE ASSESSMENTS LTD,No
Http://opendatacommunities.org/id/metropolitan-district-council/leeds,Leeds City Council,30/11/2023,Children and Families,Social Care,Internal Recharges,Legal Disbursements,411,29/11/2023,2311-00318,0.00,4139.30,R,ADVANCED CHILD CARE ASSESSMENTS LTD,No
Http://opendatacommunities.org/id/metropolitan-district-council/leeds,Leeds City Council,30/11/2023,Adults and Health,Assessment And Care Management,Agency Payments,Home Care,568,08/11/2023,2311-00319,0.00,2300.93,R,Advanced Medcare Ltd,No
Http://opendatacommunities.org/id/metropolitan-district-council/leeds,Leeds City Council,30/11/2023,Adults and Health,Assessment And Care Management,Agency Payments,HCAIT Community Support,575,08/11/2023,2311-00320,0.00,536.40,R,Advanced Medcare Ltd,No
Http://opendatacommunities.org/id/metropolitan-district-council/leeds,Leeds City Council,30/11/2023,Adults and Health,Services For Adults Under 65 Learn/Dis,Agency Payments,Home Care,568,08/11/2023,2311-00321,0.00,625.80,R,Advanced Medcare Ltd,No
Http://opendatacommunities.org/id/metropolitan-district-council/leeds,Leeds City Council,30/11/2023,Adults and Health,Services For Adults Under 65 Mental/Dis,Agency Payments,Home Care,568,08/11/2023,2311-00322,0.00,357.60,R,Advanced Medcare Ltd,No
Http://opendatacommunities.org/id/metropolitan-district-council/leeds,Leeds City Council,30/11/2023,Adults and Health,Services For Older People - 65 And Over,Agency Payments,Home Care,568,08/11/2023,2311-00323,0.00,43337.58,R,Advanced Medcare Ltd,No
Http://opendatacommunities.org/id/metropolitan-district-council/leeds,Leeds City Council,30/11/2023,Adults and Health,Services For Older People - 65 And Over,Agency Payments,HCAIT Community Support,575,08/11/2023,2311-00324,0.00,843.71,R,Advanced Medcare Ltd,No
Http://opendatacommunities.org/id/metropolitan-district-council/leeds,Leeds City Council,30/11/2023,Adults and Health,Services For Older People Under 65 P/Dis,Agency Payments,Home Care,568,08/11/2023,2311-00325,0.00,25008.58,R,Advanced Medcare Ltd,No
Http://opendatacommunities.org/id/metropolitan-district-council/leeds,Leeds City Council,30/11/2023,Adults and Health,Services For Older People Under 65 P/Dis,Agency Payments,HCAIT Community Support,575,08/11/2023,2311-00326,0.00,894.00,R,Advanced Medcare Ltd,No
Http://opendatacommunities.org/id/metropolitan-district-council/leeds,Leeds City Council as Accountable Body,30/11/2023,Social Services Pooled Budgets,Jcs For People With Learning Disabilitie,Agency Payments,Home Care,568,08/11/2023,2311-00327,0.00,5207.57,R,Advanced Medcare Ltd,No
Http://opendatacommunities.org/id/metropolitan-district-council/leeds,Leeds City Council,30/11/2023,Adults and Health,Assessment And Care Management,Agency Payments,Home Care,568,29/11/2023,2311-00328,0.00,2302.04,R,Advanced Medcare Ltd,No
Http://opendatacommunities.org/id/metropolitan-district-council/leeds,Leeds City Council,30/11/2023,Adults and Health,Assessment And Care Management,Agency Payments,HCAIT Community Support,575,29/11/2023,2311-00329,0.00,536.40,R,Advanced Medcare Ltd,No
Http://opendatacommunities.org/id/metropolitan-district-council/leeds,Leeds City Council,30/11/2023,Adults and Health,Services For Adults Under 65 Learn/Dis,Agency Payments,Home Care,568,29/11/2023,2311-00330,0.00,625.80,R,Advanced Medcare Ltd,No
Http://opendatacommunities.org/id/metropolitan-district-council/leeds,Leeds City Council,30/11/2023,Adults and Health,Services For Adults Under 65 Mental/Dis,Agency Payments,Home Care,568,29/11/2023,2311-00331,0.00,268.20,R,Advanced Medcare Ltd,No
Http://opendatacommunities.org/id/metropolitan-district-council/leeds,Leeds City Council,30/11/2023,Adults and Health,Services For Adults Under 65 Mental/Dis,Agency Payments,HCAIT Community Support,575,29/11/2023,2311-00332,0.00,268.20,R,Advanced Medcare Ltd,No
Http://opendatacommunities.org/id/metropolitan-district-council/leeds,Leeds City Council,30/11/2023,Adults and Health,Services For Older People - 65 And Over,Agency Payments,Home Care,568,29/11/2023,2311-00333,0.00,42427.36,R,Advanced Medcare Ltd,No
Http://opendatacommunities.org/id/metropolitan-district-council/leeds,Leeds City Council,30/11/2023,Adults and Health,Services For Older People - 65 And Over,Agency Payments,HCAIT Community Support,575,29/11/2023,2311-00334,0.00,1139.84,R,Advanced Medcare Ltd,No
Http://opendatacommunities.org/id/metropolitan-district-council/leeds,Leeds City Council,30/11/2023,Adults and Health,Services For Older People Under 65 P/Dis,Agency Payments,Home Care,568,29/11/2023,2311-00335,0.00,24484.48,R,Advanced Medcare Ltd,No
Http://opendatacommunities.org/id/metropolitan-district-council/leeds,Leeds City Council,30/11/2023,Adults and Health,Services For Older People Under 65 P/Dis,Agency Payments,HCAIT Community Support,575,29/11/2023,2311-00336,0.00,1072.80,R,Advanced Medcare Ltd,No
Http://opendatacommunities.org/id/metropolitan-district-council/leeds,Leeds City Council as Accountable Body,30/11/2023,Social Services Pooled Budgets,Jcs For People With Learning Disabilitie,Agency Payments,Home Care,568,29/11/2023,2311-00337,0.00,2553.49,R,Advanced Medcare Ltd,No
Http://opendatacommunities.org/id/metropolitan-district-council/leeds,Leeds City Council as Accountable Body,30/11/2023,Social Services Pooled Budgets,Jcs For People With Learning Disabilitie,Agency Payments,Home Care,568,29/11/2023,2311-00338,0.00,2324.40,R,Advanced Medcare Ltd,No
Http://opendatacommunities.org/id/metropolitan-district-council/leeds,Leeds City Council as Accountable Body,30/11/2023,Social Services Pooled Budgets,Jcs For People With Learning Disabilitie,Agency Payments,Home Care,568,23/11/2023,2311-00339,0.00,7496.55,R,Advantage Healthcare Ltd,No
Http://opendatacommunities.org/id/metropolitan-district-council/leeds,Leeds City Council,30/11/2023,Strategic Landlord,HRA Council Housing Growth Programme,Capital,OTHER COSTS,7,23/11/2023,2311-00340,0.00,15200.00,C,Advantage Property Lawyers,No
Http://opendatacommunities.org/id/metropolitan-district-council/leeds,Leeds City Council,30/11/2023,Strategic Landlord,HRA Council Housing Growth Programme,Capital,OTHER COSTS,7,29/11/2023,2311-00341,0.00,136800.00,C,Advantage Property Lawyers,No
Http://opendatacommunities.org/id/metropolitan-district-council/leeds,Leeds City Council,30/11/2023,Adults and Health,Services For Adults Under 65 Mental/Dis,Agency Payments,Home Care,568,17/11/2023,2311-00342,0.00,45.00,R,Advocacy Focus,No
Http://opendatacommunities.org/id/metropolitan-district-council/leeds,Leeds City Council as Accountable Body,30/11/2023,Social Services Pooled Budgets,Jcs For People With Learning Disabilitie,Supplies and Services,Other Hired And Contracted Services,265,10/11/2023,2311-00343,0.00,9.90,R,Advonet,No
Http://opendatacommunities.org/id/metropolitan-district-council/leeds,Leeds City Council as Accountable Body,30/11/2023,Social Services Pooled Budgets,Jcs For People With Learning Disabilitie,Supplies and Services,Other Hired And Contracted Services,265,10/11/2023,2311-00344,0.00,137.40,R,Advonet,No
Http://opendatacommunities.org/id/metropolitan-district-council/leeds,Leeds City Council,30/11/2023,Children and Families,Social Care,Agency Payments,Placement Support,550,10/11/2023,2311-00345,0.00,102.00,R,Advonet,No
Http://opendatacommunities.org/id/metropolitan-district-council/leeds,Leeds City Council,30/11/2023,Adults and Health,Services For Adults Under 65 Mental/Dis,Agency Payments,Home Care,568,10/11/2023,2311-00346,0.00,17.40,R,Advonet,No
Http://opendatacommunities.org/id/metropolitan-district-council/leeds,Leeds City Council,30/11/2023,Children and Families,Social Care,Agency Payments,Placement Support,550,10/11/2023,2311-00347,0.00,23.80,R,Advonet,No
Http://opendatacommunities.org/id/metropolitan-district-council/leeds,Leeds City Council,30/11/2023,Children and Families,Social Care,Agency Payments,Placement Support,550,10/11/2023,2311-00348,0.00,128.45,R,Advonet,No
Http://opendatacommunities.org/id/metropolitan-district-council/leeds,Leeds City Council,30/11/2023,Children and Families,Social Care,Agency Payments,Placement Support,550,10/11/2023,2311-00349,0.00,75.00,R,Advonet,No
Http://opendatacommunities.org/id/metropolitan-district-council/leeds,Leeds City Council,30/11/2023,Adults and Health,Services For Adults Under 65 Learn/Dis,Agency Payments,Home Care,568,24/11/2023,2311-00350,0.00,15.00,R,Advonet,No
Http://opendatacommunities.org/id/metropolitan-district-council/leeds,Leeds City Council,30/11/2023,City Development,Highways,Capital,OTHER COSTS,7,06/11/2023,2311-00351,0.00,12687.21,C,Aecom Limited,No
Http://opendatacommunities.org/id/metropolitan-district-council/leeds,Leeds City Council,30/11/2023,City Development,Highways,Capital,OTHER COSTS,7,07/11/2023,2311-00352,0.00,78322.56,C,Aecom Limited,No
Http://opendatacommunities.org/id/metropolitan-district-council/leeds,Leeds City Council,30/11/2023,City Development,Highways,Capital,OTHER COSTS,7,07/11/2023,2311-00353,0.00,89261.71,C,Aecom Limited,No
Http://opendatacommunities.org/id/metropolitan-district-council/leeds,Leeds City Council,30/11/2023,City Development,Highways,Capital,CONSTRUCTION,3,20/11/2023,2311-00354,0.00,3894.52,C,Aecom Limited,No
Http://opendatacommunities.org/id/metropolitan-district-council/leeds,Leeds City Council,30/11/2023,City Development,Highways,Capital,OTHER COSTS,7,30/11/2023,2311-00355,0.00,85355.69,C,Aecom Limited,No
Http://opendatacommunities.org/id/metropolitan-district-council/leeds,Leeds City Council,30/11/2023,City Development,Highways,Capital,CONSTRUCTION,3,30/11/2023,2311-00356,0.00,9605.39,C,Aecom Limited,No
Http://opendatacommunities.org/id/metropolitan-district-council/leeds,Leeds City Council,30/11/2023,Adults and Health,Services For Adults Under 65 Mental/Dis,Agency Payments,HCAIT Community Support,575,01/11/2023,2311-00357,0.00,1933.28,R,Aegis Care Solutions Ltd,No
Http://opendatacommunities.org/id/metropolitan-district-council/leeds,Leeds City Council,30/11/2023,Adults and Health,Services For Older People - 65 And Over,Agency Payments,Home Care,568,01/11/2023,2311-00358,0.00,42822.52,R,Aegis Care Solutions Ltd,No
Http://opendatacommunities.org/id/metropolitan-district-council/leeds,Leeds City Council,30/11/2023,Adults and Health,Services For Older People - 65 And Over,Agency Payments,HCAIT Community Support,575,01/11/2023,2311-00359,0.00,357.60,R,Aegis Care Solutions Ltd,No
Http://opendatacommunities.org/id/metropolitan-district-council/leeds,Leeds City Council,30/11/2023,Adults and Health,Services For Older People - 65 And Over,Agency Payments,HCAIT Other,577,01/11/2023,2311-00360,0.00,665.84,R,Aegis Care Solutions Ltd,No
Http://opendatacommunities.org/id/metropolitan-district-council/leeds,Leeds City Council,30/11/2023,Adults and Health,Services For Older People Under 65 P/Dis,Agency Payments,Home Care,568,01/11/2023,2311-00361,0.00,7443.27,R,Aegis Care Solutions Ltd,No
Http://opendatacommunities.org/id/metropolitan-district-council/leeds,Leeds City Council as Accountable Body,30/11/2023,Social Services Pooled Budgets,Jcs For People With Learning Disabilitie,Agency Payments,Home Care,568,01/11/2023,2311-00362,0.00,4425.32,R,Aegis Care Solutions Ltd,No
Http://opendatacommunities.org/id/metropolitan-district-council/leeds,Leeds City Council,30/11/2023,Adults and Health,Services For Adults Under 65 Mental/Dis,Agency Payments,Home Care,568,03/11/2023,2311-00363,0.00,894.00,R,Aegis Care Solutions Ltd,No
Http://opendatacommunities.org/id/metropolitan-district-council/leeds,Leeds City Council,30/11/2023,Adults and Health,Services For Adults Under 65 Mental/Dis,Agency Payments,Home Care,568,03/11/2023,2311-00364,0.00,670.50,R,Aegis Care Solutions Ltd,No
Http://opendatacommunities.org/id/metropolitan-district-council/leeds,Leeds City Council,30/11/2023,Adults and Health,Services For Adults Under 65 Mental/Dis,Agency Payments,Home Care,568,03/11/2023,2311-00365,0.00,1410.75,R,Aegis Care Solutions Ltd,No
Http://opendatacommunities.org/id/metropolitan-district-council/leeds,Leeds City Council,30/11/2023,Adults and Health,Services For Adults Under 65 Mental/Dis,Agency Payments,Home Care,568,03/11/2023,2311-00366,0.00,5028.60,R,Aegis Care Solutions Ltd,No
Http://opendatacommunities.org/id/metropolitan-district-council/leeds,Leeds City Council,30/11/2023,Adults and Health,Services For Adults Under 65 Mental/Dis,Agency Payments,Home Care,568,03/11/2023,2311-00367,0.00,1215.00,R,Aegis Care Solutions Ltd,No
Http://opendatacommunities.org/id/metropolitan-district-council/leeds,Leeds City Council,30/11/2023,Adults and Health,Services For Adults Under 65 Mental/Dis,Agency Payments,Home Care,568,03/11/2023,2311-00368,0.00,2550.52,R,Aegis Care Solutions Ltd,No
Http://opendatacommunities.org/id/metropolitan-district-council/leeds,Leeds City Council,30/11/2023,Adults and Health,Services For Adults Under 65 Mental/Dis,Agency Payments,Home Care,568,03/11/2023,2311-00369,0.00,1991.64,R,Aegis Care Solutions Ltd,No
Http://opendatacommunities.org/id/metropolitan-district-council/leeds,Leeds City Council,30/11/2023,Adults and Health,Services For Adults Under 65 Mental/Dis,Agency Payments,Home Care,568,03/11/2023,2311-00370,0.00,715.20,R,Aegis Care Solutions Ltd,No
Http://opendatacommunities.org/id/metropolitan-district-council/leeds,Leeds City Council,30/11/2023,Adults and Health,Services For Adults Under 65 Mental/Dis,Agency Payments,Home Care,568,03/11/2023,2311-00371,0.00,1341.00,R,Aegis Care Solutions Ltd,No
Http://opendatacommunities.org/id/metropolitan-district-council/leeds,Leeds City Council,30/11/2023,Adults and Health,Services For Adults Under 65 Mental/Dis,Agency Payments,Home Care,568,03/11/2023,2311-00372,0.00,357.60,R,Aegis Care Solutions Ltd,No
Http://opendatacommunities.org/id/metropolitan-district-council/leeds,Leeds City Council,30/11/2023,Adults and Health,Services For Adults Under 65 Mental/Dis,Agency Payments,Home Care,568,03/11/2023,2311-00373,0.00,670.50,R,Aegis Care Solutions Ltd,No
Http://opendatacommunities.org/id/metropolitan-district-council/leeds,Leeds City Council as Accountable Body,30/11/2023,Social Services Pooled Budgets,Jcs For People With Learning Disabilitie,Agency Payments,Home Care,568,03/11/2023,2311-00374,0.00,1452.75,R,Aegis Care Solutions Ltd,No
Http://opendatacommunities.org/id/metropolitan-district-council/leeds,Leeds City Council,30/11/2023,Adults and Health,Services For Older People - 65 And Over,Agency Payments,Home Care,568,15/11/2023,2311-00375,0.00,44.70,R,Aegis Care Solutions Ltd,No
Http://opendatacommunities.org/id/metropolitan-district-council/leeds,Leeds City Council,30/11/2023,Adults and Health,Services For Older People - 65 And Over,Agency Payments,Home Care,568,15/11/2023,2311-00376,0.00,150.86,R,Aegis Care Solutions Ltd,No
Http://opendatacommunities.org/id/metropolitan-district-council/leeds,Leeds City Council,30/11/2023,City Development,Employment & Skills ,Employees,Training & Development,70,12/10/2023,2311-00377,0.00,198.00,R,Aelp.Org.Uk,Yes
Http://opendatacommunities.org/id/metropolitan-district-council/leeds,Leeds City Council,30/11/2023,City Development,Libraries Arts & Heritage,Supplies and Services,Other Hired And Contracted Services,265,16/11/2023,2311-00378,0.00,6170.80,R,Aesg Ltd,No
Http://opendatacommunities.org/id/metropolitan-district-council/leeds,Leeds City Council,30/11/2023,Adults and Health,Services For Older People - 65 And Over,Agency Payments,Home Care,568,02/11/2023,2311-00379,0.00,579.60,R,Affinity Trust,No
Http://opendatacommunities.org/id/metropolitan-district-council/leeds,Leeds City Council,30/11/2023,Adults and Health,Services For Older People - 65 And Over,Agency Payments,Home Care,568,02/11/2023,2311-00380,0.00,615.36,R,Affinity Trust,No
Http://opendatacommunities.org/id/metropolitan-district-council/leeds,Leeds City Council,30/11/2023,Adults and Health,Services For Older People - 65 And Over,Agency Payments,Home Care,568,02/11/2023,2311-00381,0.00,538.44,R,Affinity Trust,No
Http://opendatacommunities.org/id/metropolitan-district-council/leeds,Leeds City Council,30/11/2023,Adults and Health,Services For Older People - 65 And Over,Agency Payments,Home Care,568,02/11/2023,2311-00382,0.00,576.90,R,Affinity Trust,No
Http://opendatacommunities.org/id/metropolitan-district-council/leeds,Leeds City Council,30/11/2023,Adults and Health,Services For Older People - 65 And Over,Agency Payments,Home Care,568,02/11/2023,2311-00383,0.00,557.67,R,Affinity Trust,No
Http://opendatacommunities.org/id/metropolitan-district-council/leeds,Leeds City Council,30/11/2023,Adults and Health,Services For Older People - 65 And Over,Agency Payments,Home Care,568,02/11/2023,2311-00384,0.00,442.29,R,Affinity Trust,No
Http://opendatacommunities.org/id/metropolitan-district-council/leeds,Leeds City Council,30/11/2023,Adults and Health,Services For Older People - 65 And Over,Agency Payments,Home Care,568,02/11/2023,2311-00385,0.00,615.36,R,Affinity Trust,No
Http://opendatacommunities.org/id/metropolitan-district-council/leeds,Leeds City Council,30/11/2023,Adults and Health,Services For Older People - 65 And Over,Agency Payments,Home Care,568,02/11/2023,2311-00386,0.00,567.68,R,Affinity Trust,No
Http://opendatacommunities.org/id/metropolitan-district-council/leeds,Leeds City Council,30/11/2023,Adults and Health,Services For Older People Under 65 P/Dis,Agency Payments,Home Care,568,03/11/2023,2311-00387,0.00,216.00,R,Affinity Trust,No
Http://opendatacommunities.org/id/metropolitan-district-council/leeds,Leeds City Council,30/11/2023,Adults and Health,Services For Older People Under 65 P/Dis,Agency Payments,Home Care,568,03/11/2023,2311-00388,0.00,432.00,R,Affinity Trust,No
Http://opendatacommunities.org/id/metropolitan-district-council/leeds,Leeds City Council,30/11/2023,Adults and Health,Services For Older People Under 65 P/Dis,Agency Payments,Home Care,568,03/11/2023,2311-00389,0.00,462.24,R,Affinity Trust,No
Http://opendatacommunities.org/id/metropolitan-district-council/leeds,Leeds City Council,30/11/2023,Adults and Health,Services For Older People Under 65 P/Dis,Agency Payments,Home Care,568,03/11/2023,2311-00390,0.00,462.24,R,Affinity Trust,No
Http://opendatacommunities.org/id/metropolitan-district-council/leeds,Leeds City Council,30/11/2023,Adults and Health,Services For Adults Under 65 Mental/Dis,Agency Payments,HCAIT Community Support,575,08/11/2023,2311-00391,0.00,999.96,R,Affinity Trust,No
Http://opendatacommunities.org/id/metropolitan-district-council/leeds,Leeds City Council,30/11/2023,Adults and Health,Services For Older People - 65 And Over,Agency Payments,HCAIT Community Support,575,08/11/2023,2311-00392,0.00,692.28,R,Affinity Trust,No
Http://opendatacommunities.org/id/metropolitan-district-council/leeds,Leeds City Council,30/11/2023,Adults and Health,Services For Older People Under 65 P/Dis,Agency Payments,HCAIT Community Support,575,08/11/2023,2311-00393,0.00,1701.86,R,Affinity Trust,No
Http://opendatacommunities.org/id/metropolitan-district-council/leeds,Leeds City Council,30/11/2023,Adults and Health,Services For Adults Under 65 Mental/Dis,Agency Payments,Home Care,568,10/11/2023,2311-00394,0.00,307.68,R,Affinity Trust,No
Http://opendatacommunities.org/id/metropolitan-district-council/leeds,Leeds City Council as Accountable Body,30/11/2023,Social Services Pooled Budgets,Jcs For People With Learning Disabilitie,Agency Payments,Day Centre,564,24/11/2023,2311-00395,0.00,-19865.89,R,Affinity Trust,No
Http://opendatacommunities.org/id/metropolitan-district-council/leeds,Leeds City Council,30/11/2023,Adults and Health,Services For Older People Under 65 P/Dis,Agency Payments,Home Care,568,24/11/2023,2311-00396,0.00,462.24,R,Affinity Trust,No
Http://opendatacommunities.org/id/metropolitan-district-council/leeds,Leeds City Council,30/11/2023,Adults and Health,Services For Older People Under 65 P/Dis,Agency Payments,Home Care,568,24/11/2023,2311-00397,0.00,462.24,R,Affinity Trust,No
Http://opendatacommunities.org/id/metropolitan-district-council/leeds,Leeds City Council,30/11/2023,Adults and Health,Services For Adults Under 65 Mental/Dis,Agency Payments,Home Care,568,24/11/2023,2311-00398,0.00,153.84,R,Affinity Trust,No
Http://opendatacommunities.org/id/metropolitan-district-council/leeds,Leeds City Council,30/11/2023,Adults and Health,Services For Older People - 65 And Over,Agency Payments,Home Care,568,24/11/2023,2311-00399,0.00,615.36,R,Affinity Trust,No
Http://opendatacommunities.org/id/metropolitan-district-council/leeds,Leeds City Council as Accountable Body,30/11/2023,Social Services Pooled Budgets,Jcs For People With Learning Disabilitie,Agency Payments,Day Centre,564,24/11/2023,2311-00400,0.00,19865.89,R,Affinity Trust,No
Http://opendatacommunities.org/id/metropolitan-district-council/leeds,Leeds City Council as Accountable Body,30/11/2023,Social Services Pooled Budgets,Jcs For People With Learning Disabilitie,Agency Payments,Sheltered Accommodation,569,08/11/2023,2311-00401,0.00,128575.47,R,Affinity Trust North Divisional Office,No
Http://opendatacommunities.org/id/metropolitan-district-council/leeds,Leeds City Council,30/11/2023,Insurance,Insurance,Supplies and Services,Insurance Claims,248,13/11/2023,2311-00402,0.00,3980.00,R,Affirm Legal,No
Http://opendatacommunities.org/id/metropolitan-district-council/leeds,Leeds City Council,30/11/2023,Communities Housing and Environment,Climate Energy & Greenspaces ,Transport,Hire Of Movable Plant & Machinery,315,09/10/2023,2311-00403,0.00,3800.00,R,Afi Uplift,Yes
Http://opendatacommunities.org/id/metropolitan-district-council/leeds,Leeds City Council,30/11/2023,Communities Housing and Environment,Communities,Supplies and Services,Other Hired And Contracted Services,265,03/11/2023,2311-00404,0.00,145.00,R,Age Uk Leeds,No
Http://opendatacommunities.org/id/metropolitan-district-council/leeds,Leeds City Council,30/11/2023,Communities Housing and Environment,Communities,Supplies and Services,Other Hired And Contracted Services,265,23/11/2023,2311-00405,0.00,145.00,R,Age Uk Leeds,No
Http://opendatacommunities.org/id/metropolitan-district-council/leeds,Leeds City Council,30/11/2023,Insurance,Insurance,Supplies and Services,Insurance Claims,248,20/11/2023,2311-00406,0.00,824.88,R,Ageas Insurance Ltd,No
Http://opendatacommunities.org/id/metropolitan-district-council/leeds,Leeds City Council,30/11/2023,City Development,Highways,Supplies and Services,Operational Materials,205,03/11/2023,2311-00407,0.00,2758.35,R,AGGREGATE INDUSTRIES UK LTD,No
Http://opendatacommunities.org/id/metropolitan-district-council/leeds,Leeds City Council,30/11/2023,City Development,Highways,Supplies and Services,Operational Materials,205,10/11/2023,2311-00408,0.00,2405.54,R,AGGREGATE INDUSTRIES UK LTD,No
Http://opendatacommunities.org/id/metropolitan-district-council/leeds,Leeds City Council,30/11/2023,City Development,Highways,Supplies and Services,Operational Materials,205,10/11/2023,2311-00409,0.00,2425.79,R,AGGREGATE INDUSTRIES UK LTD,No
Http://opendatacommunities.org/id/metropolitan-district-council/leeds,Leeds City Council,30/11/2023,City Development,Highways,Supplies and Services,Operational Materials,205,17/11/2023,2311-00410,0.00,998.01,R,AGGREGATE INDUSTRIES UK LTD,No
Http://opendatacommunities.org/id/metropolitan-district-council/leeds,Leeds City Council,30/11/2023,Communities Housing and Environment,Customer Access,Supplies and Services,Bought In Professional Services,277,01/11/2023,2311-00411,0.00,18.00,R,Agnieszka J Collier,No
Http://opendatacommunities.org/id/metropolitan-district-council/leeds,Leeds City Council,30/11/2023,Communities Housing and Environment,Customer Access,Supplies and Services,Bought In Professional Services,277,01/11/2023,2311-00412,0.00,9.00,R,Agnieszka J Collier,No
Http://opendatacommunities.org/id/metropolitan-district-council/leeds,Leeds City Council,30/11/2023,Communities Housing and Environment,Customer Access,Supplies and Services,Bought In Professional Services,277,01/11/2023,2311-00413,0.00,13.50,R,Agnieszka J Collier,No
Http://opendatacommunities.org/id/metropolitan-district-council/leeds,Leeds City Council,30/11/2023,Communities Housing and Environment,Customer Access,Supplies and Services,Bought In Professional Services,277,08/11/2023,2311-00414,0.00,23.40,R,Agnieszka J Collier,No
Http://opendatacommunities.org/id/metropolitan-district-council/leeds,Leeds City Council,30/11/2023,Communities Housing and Environment,Customer Access,Supplies and Services,Bought In Professional Services,277,08/11/2023,2311-00415,0.00,22.50,R,Agnieszka J Collier,No
Http://opendatacommunities.org/id/metropolitan-district-council/leeds,Leeds City Council,30/11/2023,Communities Housing and Environment,Customer Access,Supplies and Services,Bought In Professional Services,277,29/11/2023,2311-00416,0.00,18.00,R,Agnieszka J Collier,No
Http://opendatacommunities.org/id/metropolitan-district-council/leeds,Leeds City Council,30/11/2023,Communities Housing and Environment,Customer Access,Supplies and Services,Bought In Professional Services,277,01/11/2023,2311-00417,0.00,18.00,R,Agnieszka Jablonska,No
Http://opendatacommunities.org/id/metropolitan-district-council/leeds,Leeds City Council,30/11/2023,Communities Housing and Environment,Customer Access,Supplies and Services,Bought In Professional Services,277,01/11/2023,2311-00418,0.00,18.00,R,Agnieszka Jablonska,No
Http://opendatacommunities.org/id/metropolitan-district-council/leeds,Leeds City Council,30/11/2023,Communities Housing and Environment,Customer Access,Supplies and Services,Bought In Professional Services,277,22/11/2023,2311-00419,0.00,18.00,R,Agnieszka Jablonska,No
Http://opendatacommunities.org/id/metropolitan-district-council/leeds,Leeds City Council,30/11/2023,Communities Housing and Environment,Customer Access,Supplies and Services,Bought In Professional Services,277,22/11/2023,2311-00420,0.00,18.00,R,Agnieszka Jablonska,No
Http://opendatacommunities.org/id/metropolitan-district-council/leeds,Leeds City Council,30/11/2023,Communities Housing and Environment,Customer Access,Supplies and Services,Bought In Professional Services,277,22/11/2023,2311-00421,0.00,18.00,R,Agnieszka Jablonska,No
Http://opendatacommunities.org/id/metropolitan-district-council/leeds,Leeds City Council,30/11/2023,Communities Housing and Environment,Customer Access,Supplies and Services,Bought In Professional Services,277,29/11/2023,2311-00422,0.00,18.00,R,Agnieszka Jablonska,No
Http://opendatacommunities.org/id/metropolitan-district-council/leeds,Leeds City Council,30/11/2023,Communities Housing and Environment,Customer Access,Supplies and Services,Bought In Professional Services,277,29/11/2023,2311-00423,0.00,18.00,R,Agnieszka Jablonska,No
Http://opendatacommunities.org/id/metropolitan-district-council/leeds,Leeds City Council,30/11/2023,Communities Housing and Environment,Customer Access,Supplies and Services,Bought In Professional Services,277,29/11/2023,2311-00424,0.00,18.00,R,Agnieszka Jablonska,No
Http://opendatacommunities.org/id/metropolitan-district-council/leeds,Leeds City Council,30/11/2023,Communities Housing and Environment,Customer Access,Supplies and Services,Bought In Professional Services,277,29/11/2023,2311-00425,0.00,18.00,R,Agnieszka Jablonska,No
Http://opendatacommunities.org/id/metropolitan-district-council/leeds,Leeds City Council,30/11/2023,Communities Housing and Environment,Customer Access,Supplies and Services,Bought In Professional Services,277,29/11/2023,2311-00426,0.00,18.00,R,Agnieszka Jablonska,No
Http://opendatacommunities.org/id/metropolitan-district-council/leeds,Leeds City Council,30/11/2023,Communities Housing and Environment,Climate Energy & Greenspaces,Supplies and Services,Operational Materials,205,23/11/2023,2311-00427,0.00,1411.32,R,Agrovista UK Ltd,No
Http://opendatacommunities.org/id/metropolitan-district-council/leeds,Leeds City Council,30/11/2023,Communities Housing and Environment,Customer Access,Supplies and Services,Bought In Professional Services,277,15/11/2023,2311-00428,0.00,54.00,R,Ahamat Hassan,No
Http://opendatacommunities.org/id/metropolitan-district-council/leeds,Leeds City Council,30/11/2023,Communities Housing and Environment,Customer Access,Supplies and Services,Bought In Professional Services,277,22/11/2023,2311-00429,0.00,54.00,R,Ahamat Hassan,No
Http://opendatacommunities.org/id/metropolitan-district-council/leeds,Leeds City Council,30/11/2023,City Development,Asset Management,Capital,OTHER COSTS,7,10/11/2023,2311-00430,0.00,5000.00,C,Ahead Partnership Ltd,No
Http://opendatacommunities.org/id/metropolitan-district-council/leeds,Leeds City Council,30/11/2023,Children and Families,Social Care,Appropriations,Leaving Care Allowances,634,27/11/2023,2311-00431,0.00,300.00,R,REDACTED PERSONAL DATA,No
Http://opendatacommunities.org/id/metropolitan-district-council/leeds,Leeds City Council,30/11/2023,Communities Housing and Environment,Customer Access,Supplies and Services,Bought In Professional Services,277,08/11/2023,2311-00432,0.00,27.00,R,Ahmed Moustafa Moustafa Mousa,No
Http://opendatacommunities.org/id/metropolitan-district-council/leeds,Leeds City Council,30/11/2023,Communities Housing and Environment,Customer Access,Supplies and Services,Bought In Professional Services,277,22/11/2023,2311-00433,0.00,18.00,R,Ahmed Moustafa Moustafa Mousa,No
Http://opendatacommunities.org/id/metropolitan-district-council/leeds,Leeds City Council,30/11/2023,Communities Housing and Environment,Customer Access,Supplies and Services,Bought In Professional Services,277,29/11/2023,2311-00434,0.00,20.60,R,Ahmed T. Al-Hamdi,No
Http://opendatacommunities.org/id/metropolitan-district-council/leeds,Leeds City Council,30/11/2023,Children and Families,Social Care,Agency Payments,Independent Fostering Agencies,509,24/11/2023,2311-00435,0.00,33800.00,R,AHT Care Ltd,No
Http://opendatacommunities.org/id/metropolitan-district-council/leeds,Leeds City Council as Accountable Body,30/11/2023,Social Services Pooled Budgets,Leeds Community Equip Store Pooled Budgt,Supplies and Services,Other Equipment,203,06/11/2023,2311-00436,0.00,5430.00,R,AIDAPT BATHROOMS LTD,No
Http://opendatacommunities.org/id/metropolitan-district-council/leeds,Leeds City Council as Accountable Body,30/11/2023,Social Services Pooled Budgets,Leeds Community Equip Store Pooled Budgt,Supplies and Services,Other Equipment,203,06/11/2023,2311-00437,0.00,491.50,R,AIDAPT BATHROOMS LTD,No
Http://opendatacommunities.org/id/metropolitan-district-council/leeds,Leeds City Council as Accountable Body,30/11/2023,Social Services Pooled Budgets,Leeds Community Equip Store Pooled Budgt,Supplies and Services,Other Equipment,203,06/11/2023,2311-00438,0.00,1625.00,R,AIDAPT BATHROOMS LTD,No
Http://opendatacommunities.org/id/metropolitan-district-council/leeds,Leeds City Council as Accountable Body,30/11/2023,Social Services Pooled Budgets,Leeds Community Equip Store Pooled Budgt,Supplies and Services,Other Equipment,203,17/11/2023,2311-00439,0.00,1020.00,R,AIDAPT BATHROOMS LTD,No
Http://opendatacommunities.org/id/metropolitan-district-council/leeds,Leeds City Council as Accountable Body,30/11/2023,Social Services Pooled Budgets,Leeds Community Equip Store Pooled Budgt,Supplies and Services,Other Equipment,203,17/11/2023,2311-00440,0.00,1050.00,R,AIDAPT BATHROOMS LTD,No
Http://opendatacommunities.org/id/metropolitan-district-council/leeds,Leeds City Council as Accountable Body,30/11/2023,Social Services Pooled Budgets,Leeds Community Equip Store Pooled Budgt,Supplies and Services,Other Equipment,203,17/11/2023,2311-00441,0.00,5328.00,R,AIDAPT BATHROOMS LTD,No
Http://opendatacommunities.org/id/metropolitan-district-council/leeds,Leeds City Council,30/11/2023,City Development,Markets & City Centre Management,Supplies and Services,City Centre Enhancement,295,10/11/2023,2311-00442,0.00,250.00,R,Ainjiel Clark,No
Http://opendatacommunities.org/id/metropolitan-district-council/leeds,Leeds City Council,30/11/2023,Strategic Accounts,Miscellaneous,Appropriations,Land Drainage Levies,665,01/11/2023,2311-00443,0.00,4329.64,R,Ainsty (2008) Internal Drainage Board,No
Http://opendatacommunities.org/id/metropolitan-district-council/leeds,Leeds City Council,30/11/2023,Strategy and Resources,Leeds Building Services,Supplies and Services,Operational Materials,205,02/11/2023,2311-00444,0.00,346.90,R,Air Conditioning Accessories,No
Http://opendatacommunities.org/id/metropolitan-district-council/leeds,Leeds City Council,30/11/2023,Communities Housing and Environment,Environmental Health,Supplies and Services,Other Hired And Contracted Services,265,02/11/2023,2311-00445,0.00,11.75,R,AIR LIQUIDE UK,No
Http://opendatacommunities.org/id/metropolitan-district-council/leeds,Leeds City Council,30/11/2023,Communities Housing and Environment,Environmental Health,Supplies and Services,Other Hired And Contracted Services,265,02/11/2023,2311-00446,0.00,11.75,R,AIR LIQUIDE UK,No
Http://opendatacommunities.org/id/metropolitan-district-council/leeds,Leeds City Council,30/11/2023,Communities Housing and Environment,Environmental Health,Supplies and Services,Other Hired And Contracted Services,265,02/11/2023,2311-00447,0.00,11.75,R,AIR LIQUIDE UK,No
Http://opendatacommunities.org/id/metropolitan-district-council/leeds,Leeds City Council,30/11/2023,Communities Housing and Environment,Environmental Health,Supplies and Services,Other Hired And Contracted Services,265,02/11/2023,2311-00448,0.00,94.00,R,AIR LIQUIDE UK,No
Http://opendatacommunities.org/id/metropolitan-district-council/leeds,Leeds City Council,30/11/2023,Children and Families,Social Care ,Supplies and Services,Computer Software & Equipment,214,18/10/2023,2311-00449,0.00,29.99,R,Air Up Gmbh,Yes
Http://opendatacommunities.org/id/metropolitan-district-council/leeds,Leeds City Council,30/11/2023,Children and Families,Social Care ,Agency Payments,Section 17,551,17/10/2023,2311-00450,0.00,1494.45,R,Airbnb * Hmb82nrne4,Yes
Http://opendatacommunities.org/id/metropolitan-district-council/leeds,Leeds City Council,30/11/2023,Children and Families,Social Care ,Supplies and Services,Holidays-  Service Users,284,30/10/2023,2311-00451,0.00,208.74,R,Airbnb * Hmkb4d9daj,Yes
Http://opendatacommunities.org/id/metropolitan-district-council/leeds,Leeds City Council,30/11/2023,Children and Families,Social Care ,Agency Payments,Section 17,551,03/10/2023,2311-00452,0.00,587.20,R,Airbnb * Hmm8xxw3yk,Yes
Http://opendatacommunities.org/id/metropolitan-district-council/leeds,Leeds City Council,30/11/2023,Children and Families,Social Care ,Agency Payments,Section 17,551,10/10/2023,2311-00453,0.00,569.15,R,Airbnb * Hmp834dph2,Yes
Http://opendatacommunities.org/id/metropolitan-district-council/leeds,Leeds City Council,30/11/2023,City Development,Libraries Arts & Heritage ,Supplies and Services,Conference Meetings,253,19/10/2023,2311-00454,0.00,325.83,R,Airbnb * Hmsjaajzwa,Yes
Http://opendatacommunities.org/id/metropolitan-district-council/leeds,Leeds City Council,30/11/2023,Children and Families,Social Care ,Supplies and Services,Holidays-  Service Users,284,05/10/2023,2311-00455,0.00,350.82,R,Airbnb * Hmz5fafj4f,Yes
Http://opendatacommunities.org/id/metropolitan-district-council/leeds,Leeds City Council,30/11/2023,Adults and Health,Public Health,Agency Payments,Public Health Commissioned Services,526,07/11/2023,2311-00456,0.00,2824.44,R,Aire Valley Surgery,No
Http://opendatacommunities.org/id/metropolitan-district-council/leeds,Leeds City Council,30/11/2023,Communities Housing and Environment,Climate Energy & Greenspaces,Supplies and Services,Other Hired And Contracted Services,265,03/11/2023,2311-00457,0.00,1710.00,R,Aire Valley Tree Services Ltd,No
Http://opendatacommunities.org/id/metropolitan-district-council/leeds,Leeds City Council,30/11/2023,Communities Housing and Environment,Climate Energy & Greenspaces,Supplies and Services,Other Hired And Contracted Services,265,17/11/2023,2311-00458,0.00,764.00,R,Aire Valley Tree Services Ltd,No
Http://opendatacommunities.org/id/metropolitan-district-council/leeds,Leeds City Council,30/11/2023,Adults and Health,Services For Older People - 65 And Over,Agency Payments,Residential Care Dementia,571,08/11/2023,2311-00459,0.00,67411.71,R,Aire View Residential Home,No
Http://opendatacommunities.org/id/metropolitan-district-council/leeds,Leeds City Council,30/11/2023,Adults and Health,Services For Older People - 65 And Over,Agency Payments,Residential,580,08/11/2023,2311-00460,0.00,14746.08,R,Aire View Residential Home,No
Http://opendatacommunities.org/id/metropolitan-district-council/leeds,Leeds City Council,30/11/2023,Adults and Health,Public Health,Agency Payments,Public Health Commissioned Services,526,07/11/2023,2311-00461,0.00,913.28,R,Aireborough Family Practice,No
Http://opendatacommunities.org/id/metropolitan-district-council/leeds,Leeds City Council,30/11/2023,Communities Housing and Environment,Customer Access ,Supplies and Services,Office Consumables,210,05/10/2023,2311-00462,0.00,6.08,R,Aireborough Leisure Centr,Yes
Http://opendatacommunities.org/id/metropolitan-district-council/leeds,Leeds City Council,30/11/2023,Communities Housing and Environment,Customer Access ,Supplies and Services,Office Consumables,210,05/10/2023,2311-00463,0.00,7.67,R,Aireborough Leisure Centr,Yes
Http://opendatacommunities.org/id/metropolitan-district-council/leeds,Leeds City Council,30/11/2023,City Development,Recreation ,Premises,Removal Of Workplace Waste,126,04/10/2023,2311-00464,0.00,220.83,R,Aireborough Skip Hire Lim,Yes
Http://opendatacommunities.org/id/metropolitan-district-council/leeds,Leeds City Council,30/11/2023,Adults and Health,Assessment And Care Management,Agency Payments,Residential,580,16/11/2023,2311-00465,0.00,3696.00,R,Airedale No1 LTD,No
Http://opendatacommunities.org/id/metropolitan-district-council/leeds,Leeds City Council,30/11/2023,Adults and Health,Assessment And Care Management,Agency Payments,Residential,580,08/11/2023,2311-00466,0.00,4395.40,R,Airedale Residential Home,No
Http://opendatacommunities.org/id/metropolitan-district-council/leeds,Leeds City Council,30/11/2023,Adults and Health,Services For Older People - 65 And Over,Agency Payments,Residential Care Dementia,571,08/11/2023,2311-00467,0.00,31328.92,R,Airedale Residential Home,No
Http://opendatacommunities.org/id/metropolitan-district-council/leeds,Leeds City Council,30/11/2023,Adults and Health,Services For Older People - 65 And Over,Agency Payments,Residential,580,08/11/2023,2311-00468,0.00,16619.20,R,Airedale Residential Home,No
Http://opendatacommunities.org/id/metropolitan-district-council/leeds,Leeds City Council,30/11/2023,Communities Housing and Environment,Environmental Health,Supplies and Services,Other Hired And Contracted Services,265,03/11/2023,2311-00469,0.00,347.57,R,Aireworth Vets,No
Http://opendatacommunities.org/id/metropolitan-district-council/leeds,Leeds City Council,30/11/2023,Children and Families,Social Care ,Agency Payments,Contact,548,09/10/2023,2311-00470,0.00,33.50,R,Airpay 44051109-Roadrunne,Yes
Http://opendatacommunities.org/id/metropolitan-district-council/leeds,Leeds City Council,30/11/2023,Strategic Landlord,Housing Management ,Transport,Public Transport Expenses,310,11/10/2023,2311-00471,0.00,8.00,R,Airpay 44071772-Roadrunne,Yes
Http://opendatacommunities.org/id/metropolitan-district-council/leeds,Leeds City Council,30/11/2023,Strategic Landlord,Housing Management ,Transport,Public Transport Expenses,310,13/10/2023,2311-00472,0.00,9.50,R,Airpay 44088722-Roadrunne,Yes
Http://opendatacommunities.org/id/metropolitan-district-council/leeds,Leeds City Council,30/11/2023,Children and Families,Social Care ,Transport,Public Transport Expenses,310,20/10/2023,2311-00473,0.00,9.50,R,Airpay 44159028-Roadrunne,Yes
Http://opendatacommunities.org/id/metropolitan-district-council/leeds,Leeds City Council,30/11/2023,Children and Families,Social Care ,Transport,Public Transport Expenses,310,01/10/2023,2311-00474,0.00,6.17,R,Airpay 48448613-Amber Car,Yes
Http://opendatacommunities.org/id/metropolitan-district-council/leeds,Leeds City Council,30/11/2023,Children and Families,Social Care ,Transport,Public Transport Expenses,310,01/10/2023,2311-00475,0.00,6.25,R,Airpay 48448643-Amber Car,Yes
Http://opendatacommunities.org/id/metropolitan-district-council/leeds,Leeds City Council,30/11/2023,Children and Families,Social Care ,Transport,Public Transport Expenses,310,01/10/2023,2311-00476,0.00,6.67,R,Airpay 48448687-Amber Car,Yes
Http://opendatacommunities.org/id/metropolitan-district-council/leeds,Leeds City Council,30/11/2023,Children and Families,Social Care ,Transport,Public Transport Expenses,310,01/10/2023,2311-00477,0.00,7.92,R,Airpay 48448865-Amber Car,Yes
Http://opendatacommunities.org/id/metropolitan-district-council/leeds,Leeds City Council,30/11/2023,Children and Families,Social Care ,Transport,Public Transport Expenses,310,01/10/2023,2311-00478,0.00,8.67,R,Airpay 48481759-Amber Car,Yes
Http://opendatacommunities.org/id/metropolitan-district-council/leeds,Leeds City Council,30/11/2023,Children and Families,Social Care ,Transport,Public Transport Expenses,310,01/10/2023,2311-00479,0.00,6.75,R,Airpay 48481769-Amber Car,Yes
Http://opendatacommunities.org/id/metropolitan-district-council/leeds,Leeds City Council,30/11/2023,Children and Families,Social Care ,Agency Payments,Placement Support,550,03/10/2023,2311-00480,0.00,30.50,R,Airpay 48503515-Amber Car,Yes
Http://opendatacommunities.org/id/metropolitan-district-council/leeds,Leeds City Council,30/11/2023,Adults and Health,Assessment And Care Management ,Transport,Public Transport Expenses,310,05/10/2023,2311-00481,0.00,19.10,R,Airpay 48532054-Amber Car,Yes
Http://opendatacommunities.org/id/metropolitan-district-council/leeds,Leeds City Council,30/11/2023,Children and Families,Social Care ,Agency Payments,Placement Support,550,06/10/2023,2311-00482,0.00,22.10,R,Airpay 48540345-Amber Car,Yes
Http://opendatacommunities.org/id/metropolitan-district-council/leeds,Leeds City Council,30/11/2023,Children and Families,Social Care ,Agency Payments,Placement Support,550,06/10/2023,2311-00483,0.00,19.90,R,Airpay 48540368-Amber Car,Yes
Http://opendatacommunities.org/id/metropolitan-district-council/leeds,Leeds City Council,30/11/2023,Children and Families,Social Care ,Agency Payments,Section 17,551,09/10/2023,2311-00484,0.00,27.80,R,Airpay 48541360-Amber Car,Yes
Http://opendatacommunities.org/id/metropolitan-district-council/leeds,Leeds City Council,30/11/2023,Children and Families,Social Care ,Transport,Public Transport Expenses,310,06/10/2023,2311-00485,0.00,17.50,R,Airpay 48546868-Amber Car,Yes
Http://opendatacommunities.org/id/metropolitan-district-council/leeds,Leeds City Council,30/11/2023,Children and Families,Social Care ,Agency Payments,Placement Support,550,10/10/2023,2311-00486,0.00,25.81,R,Airpay 48595424-Amber Car,Yes
Http://opendatacommunities.org/id/metropolitan-district-council/leeds,Leeds City Council,30/11/2023,Children and Families,Social Care ,Agency Payments,Placement Support,550,10/10/2023,2311-00487,0.00,25.40,R,Airpay 48595438-Amber Car,Yes
Http://opendatacommunities.org/id/metropolitan-district-council/leeds,Leeds City Council,30/11/2023,Children and Families,Social Care ,Transport,Public Transport Expenses,310,11/10/2023,2311-00488,0.00,6.00,R,Airpay 48615704-Amber Car,Yes
Http://opendatacommunities.org/id/metropolitan-district-council/leeds,Leeds City Council,30/11/2023,Children and Families,Social Care ,Agency Payments,Contact,548,12/10/2023,2311-00489,0.00,16.90,R,Airpay 48623593-Amber Car,Yes
Http://opendatacommunities.org/id/metropolitan-district-council/leeds,Leeds City Council,30/11/2023,Children and Families,Social Care ,Agency Payments,Placement Support,550,16/10/2023,2311-00490,0.00,30.90,R,Airpay 48675059-Amber Car,Yes
Http://opendatacommunities.org/id/metropolitan-district-council/leeds,Leeds City Council,30/11/2023,Children and Families,Social Care ,Transport,Miscellaneous Transport Related Costs,324,23/10/2023,2311-00491,0.00,7.30,R,Airpay 48688838-Amber Car,Yes
Http://opendatacommunities.org/id/metropolitan-district-council/leeds,Leeds City Council,30/11/2023,Children and Families,Social Care ,Agency Payments,Placement Support,550,17/10/2023,2311-00492,0.00,24.20,R,Airpay 48690420-Amber Car,Yes
Http://opendatacommunities.org/id/metropolitan-district-council/leeds,Leeds City Council,30/11/2023,Children and Families,Social Care ,Agency Payments,Placement Support,550,17/10/2023,2311-00493,0.00,27.90,R,Airpay 48690440-Amber Car,Yes
Http://opendatacommunities.org/id/metropolitan-district-council/leeds,Leeds City Council,30/11/2023,Children and Families,Social Care ,Agency Payments,Contact,548,17/10/2023,2311-00494,0.00,17.70,R,Airpay 48691952-Amber Car,Yes
Http://opendatacommunities.org/id/metropolitan-district-council/leeds,Leeds City Council,30/11/2023,Children and Families,Social Care ,Agency Payments,Contact,548,18/10/2023,2311-00495,0.00,7.70,R,Airpay 48700942-Amber Car,Yes
Http://opendatacommunities.org/id/metropolitan-district-council/leeds,Leeds City Council,30/11/2023,Children and Families,Social Care ,Agency Payments,Placement Support,550,20/10/2023,2311-00496,0.00,26.70,R,Airpay 48731889-Amber Car,Yes
Http://opendatacommunities.org/id/metropolitan-district-council/leeds,Leeds City Council,30/11/2023,Children and Families,Social Care ,Agency Payments,Section 17,551,23/10/2023,2311-00497,0.00,15.20,R,Airpay 48776031-Amber Car,Yes
Http://opendatacommunities.org/id/metropolitan-district-council/leeds,Leeds City Council,30/11/2023,Adults and Health,Services For Adults Under 65 Mental/Dis,Internal Recharges,Legal Disbursements,411,23/11/2023,2311-00498,0.00,787.50,R,Aisling Campbell,No
Http://opendatacommunities.org/id/metropolitan-district-council/leeds,Leeds City Council,30/11/2023,Adults and Health,Services For Adults Under 65 Mental/Dis,Internal Recharges,Legal Disbursements,411,23/11/2023,2311-00499,0.00,150.00,R,Aisling Campbell,No
Http://opendatacommunities.org/id/metropolitan-district-council/leeds,Leeds City Council,30/11/2023,Children and Families,Social Care,Agency Payments,Allowance Enhancements,547,29/11/2023,2311-00500,0.00,23432.00,R,REDACTED PERSONAL DATA,No
Http://opendatacommunities.org/id/metropolitan-district-council/leeds,Leeds City Council as Accountable Body,30/11/2023,Social Services Pooled Budgets,Jcs For People With Learning Disabilitie,Agency Payments,Residential,580,08/11/2023,2311-00501,0.00,7677.84,R,AITCH care homes,No
Http://opendatacommunities.org/id/metropolitan-district-council/leeds,Leeds City Council,30/11/2023,Communities Housing and Environment,Climate Energy & Greenspaces ,Premises,Grounds Maintenance Work,111,04/10/2023,2311-00502,0.00,816.00,R,Aitkens Sportsturf Limite,Yes
Http://opendatacommunities.org/id/metropolitan-district-council/leeds,Leeds City Council,30/11/2023,Communities Housing and Environment,Benefits Wlefare and Poverty,Supplies and Services,Advertising,211,01/11/2023,2311-00503,0.00,35.00,R,AJ Media Services Ltd,No
Http://opendatacommunities.org/id/metropolitan-district-council/leeds,Leeds City Council,30/11/2023,Communities Housing and Environment,Benefits Wlefare and Poverty,Supplies and Services,Advertising,211,17/11/2023,2311-00504,0.00,35.00,R,AJ Media Services Ltd,No
Http://opendatacommunities.org/id/metropolitan-district-council/leeds,Leeds City Council,30/11/2023,Strategy and Resources,Leeds Building Services,Supplies and Services,Operational Furniture And Equipment,203,13/11/2023,2311-00505,0.00,66.40,R,AJM FIXINGS & POWER TOOLS LTD,No
Http://opendatacommunities.org/id/metropolitan-district-council/leeds,Leeds City Council,30/11/2023,Strategy and Resources,Leeds Building Services,Premises,Cleaning Maintenance & Toiletries,127,13/11/2023,2311-00506,0.00,24.25,R,AJM FIXINGS & POWER TOOLS LTD,No
Http://opendatacommunities.org/id/metropolitan-district-council/leeds,Leeds City Council,30/11/2023,Strategy and Resources,Leeds Building Services,Supplies and Services,Operational Furniture And Equipment,203,13/11/2023,2311-00507,0.00,65.16,R,AJM FIXINGS & POWER TOOLS LTD,No
Http://opendatacommunities.org/id/metropolitan-district-council/leeds,Leeds City Council,30/11/2023,Strategy and Resources,Leeds Building Services,Supplies and Services,Operational Furniture And Equipment,203,13/11/2023,2311-00508,0.00,142.00,R,AJM FIXINGS & POWER TOOLS LTD,No
Http://opendatacommunities.org/id/metropolitan-district-council/leeds,Leeds City Council,30/11/2023,Strategy and Resources,Leeds Building Services,Supplies and Services,Operational Furniture And Equipment,203,13/11/2023,2311-00509,0.00,63.06,R,AJM FIXINGS & POWER TOOLS LTD,No
Http://opendatacommunities.org/id/metropolitan-district-council/leeds,Leeds City Council,30/11/2023,Strategy and Resources,Leeds Building Services,Supplies and Services,Operational Furniture And Equipment,203,13/11/2023,2311-00510,0.00,90.00,R,AJM FIXINGS & POWER TOOLS LTD,No
Http://opendatacommunities.org/id/metropolitan-district-council/leeds,Leeds City Council,30/11/2023,Strategy and Resources,Leeds Building Services,Supplies and Services,Operational Furniture And Equipment,203,13/11/2023,2311-00511,0.00,702.50,R,AJM FIXINGS & POWER TOOLS LTD,No
Http://opendatacommunities.org/id/metropolitan-district-council/leeds,Leeds City Council,30/11/2023,Strategy and Resources,Leeds Building Services,Supplies and Services,Operational Furniture And Equipment,203,13/11/2023,2311-00512,0.00,19.47,R,AJM FIXINGS & POWER TOOLS LTD,No
Http://opendatacommunities.org/id/metropolitan-district-council/leeds,Leeds City Council,30/11/2023,Strategy and Resources,Leeds Building Services,Supplies and Services,Operational Furniture And Equipment,203,13/11/2023,2311-00513,0.00,338.00,R,AJM FIXINGS & POWER TOOLS LTD,No
Http://opendatacommunities.org/id/metropolitan-district-council/leeds,Leeds City Council,30/11/2023,Strategy and Resources,Leeds Building Services,Supplies and Services,Operational Furniture And Equipment,203,13/11/2023,2311-00514,0.00,441.00,R,AJM FIXINGS & POWER TOOLS LTD,No
Http://opendatacommunities.org/id/metropolitan-district-council/leeds,Leeds City Council,30/11/2023,Strategy and Resources,Leeds Building Services,Premises,Cleaning Maintenance & Toiletries,127,13/11/2023,2311-00515,0.00,1643.10,R,AJM FIXINGS & POWER TOOLS LTD,No
Http://opendatacommunities.org/id/metropolitan-district-council/leeds,Leeds City Council,30/11/2023,Strategy and Resources,Leeds Building Services,Supplies and Services,Operational Furniture And Equipment,203,13/11/2023,2311-00516,0.00,99.00,R,AJM FIXINGS & POWER TOOLS LTD,No
Http://opendatacommunities.org/id/metropolitan-district-council/leeds,Leeds City Council,30/11/2023,Strategy and Resources,Leeds Building Services,Premises,Cleaning Maintenance & Toiletries,127,13/11/2023,2311-00517,0.00,88.44,R,AJM FIXINGS & POWER TOOLS LTD,No
Http://opendatacommunities.org/id/metropolitan-district-council/leeds,Leeds City Council,30/11/2023,Strategy and Resources,Leeds Building Services,Supplies and Services,Operational Furniture And Equipment,203,13/11/2023,2311-00518,0.00,66.35,R,AJM FIXINGS & POWER TOOLS LTD,No
Http://opendatacommunities.org/id/metropolitan-district-council/leeds,Leeds City Council,30/11/2023,Strategy and Resources,Leeds Building Services,Premises,Cleaning Maintenance & Toiletries,127,13/11/2023,2311-00519,0.00,106.50,R,AJM FIXINGS & POWER TOOLS LTD,No
Http://opendatacommunities.org/id/metropolitan-district-council/leeds,Leeds City Council,30/11/2023,Strategy and Resources,Leeds Building Services,Supplies and Services,Operational Furniture And Equipment,203,13/11/2023,2311-00520,0.00,16.62,R,AJM FIXINGS & POWER TOOLS LTD,No
Http://opendatacommunities.org/id/metropolitan-district-council/leeds,Leeds City Council,30/11/2023,Strategy and Resources,Leeds Building Services,Premises,Cleaning Maintenance & Toiletries,127,15/11/2023,2311-00521,0.00,240.60,R,AJM FIXINGS & POWER TOOLS LTD,No
Http://opendatacommunities.org/id/metropolitan-district-council/leeds,Leeds City Council,30/11/2023,Strategy and Resources,Leeds Building Services,Supplies and Services,Operational Furniture And Equipment,203,16/11/2023,2311-00522,0.00,933.14,R,AJM FIXINGS & POWER TOOLS LTD,No
Http://opendatacommunities.org/id/metropolitan-district-council/leeds,Leeds City Council,30/11/2023,Strategy and Resources,Leeds Building Services,Premises,Cleaning Maintenance & Toiletries,127,16/11/2023,2311-00523,0.00,843.95,R,AJM FIXINGS & POWER TOOLS LTD,No
Http://opendatacommunities.org/id/metropolitan-district-council/leeds,Leeds City Council,30/11/2023,Strategy and Resources,Leeds Building Services,Supplies and Services,Operational Furniture And Equipment,203,16/11/2023,2311-00524,0.00,97.00,R,AJM FIXINGS & POWER TOOLS LTD,No
Http://opendatacommunities.org/id/metropolitan-district-council/leeds,Leeds City Council,30/11/2023,Strategy and Resources,Leeds Building Services,Supplies and Services,Operational Furniture And Equipment,203,16/11/2023,2311-00525,0.00,1429.41,R,AJM FIXINGS & POWER TOOLS LTD,No
Http://opendatacommunities.org/id/metropolitan-district-council/leeds,Leeds City Council,30/11/2023,Strategy and Resources,Leeds Building Services,Supplies and Services,Operational Furniture And Equipment,203,16/11/2023,2311-00526,0.00,907.57,R,AJM FIXINGS & POWER TOOLS LTD,No
Http://opendatacommunities.org/id/metropolitan-district-council/leeds,Leeds City Council,30/11/2023,Strategy and Resources,Leeds Building Services,Supplies and Services,Operational Furniture And Equipment,203,16/11/2023,2311-00527,0.00,114.34,R,AJM FIXINGS & POWER TOOLS LTD,No
Http://opendatacommunities.org/id/metropolitan-district-council/leeds,Leeds City Council,30/11/2023,Strategy and Resources,Leeds Building Services,Supplies and Services,Operational Furniture And Equipment,203,16/11/2023,2311-00528,0.00,97.00,R,AJM FIXINGS & POWER TOOLS LTD,No
Http://opendatacommunities.org/id/metropolitan-district-council/leeds,Leeds City Council,30/11/2023,Strategy and Resources,Leeds Building Services,Supplies and Services,Operational Furniture And Equipment,203,16/11/2023,2311-00529,0.00,109.45,R,AJM FIXINGS & POWER TOOLS LTD,No
Http://opendatacommunities.org/id/metropolitan-district-council/leeds,Leeds City Council,30/11/2023,Strategy and Resources,Leeds Building Services,Supplies and Services,Operational Furniture And Equipment,203,17/11/2023,2311-00530,0.00,62.99,R,AJM FIXINGS & POWER TOOLS LTD,No
Http://opendatacommunities.org/id/metropolitan-district-council/leeds,Leeds City Council,30/11/2023,Strategy and Resources,Leeds Building Services,Supplies and Services,Operational Furniture And Equipment,203,17/11/2023,2311-00531,0.00,114.34,R,AJM FIXINGS & POWER TOOLS LTD,No
Http://opendatacommunities.org/id/metropolitan-district-council/leeds,Leeds City Council,30/11/2023,Strategy and Resources,Leeds Building Services,Supplies and Services,Operational Furniture And Equipment,203,17/11/2023,2311-00532,0.00,145.98,R,AJM FIXINGS & POWER TOOLS LTD,No
Http://opendatacommunities.org/id/metropolitan-district-council/leeds,Leeds City Council,30/11/2023,Strategy and Resources,Leeds Building Services,Supplies and Services,Operational Furniture And Equipment,203,22/11/2023,2311-00533,0.00,1485.99,R,AJM FIXINGS & POWER TOOLS LTD,No
Http://opendatacommunities.org/id/metropolitan-district-council/leeds,Leeds City Council,30/11/2023,Strategy and Resources,Leeds Building Services,Supplies and Services,Operational Furniture And Equipment,203,22/11/2023,2311-00534,0.00,162.79,R,AJM FIXINGS & POWER TOOLS LTD,No
Http://opendatacommunities.org/id/metropolitan-district-council/leeds,Leeds City Council,30/11/2023,Strategy and Resources,Leeds Building Services,Premises,Cleaning Maintenance & Toiletries,127,22/11/2023,2311-00535,0.00,449.97,R,AJM FIXINGS & POWER TOOLS LTD,No
Http://opendatacommunities.org/id/metropolitan-district-council/leeds,Leeds City Council,30/11/2023,Strategy and Resources,Leeds Building Services,Supplies and Services,Operational Furniture And Equipment,203,23/11/2023,2311-00536,0.00,270.79,R,AJM FIXINGS & POWER TOOLS LTD,No
Http://opendatacommunities.org/id/metropolitan-district-council/leeds,Leeds City Council,30/11/2023,Strategy and Resources,Leeds Building Services,Premises,Cleaning Maintenance & Toiletries,127,23/11/2023,2311-00537,0.00,394.02,R,AJM FIXINGS & POWER TOOLS LTD,No
Http://opendatacommunities.org/id/metropolitan-district-council/leeds,Leeds City Council,30/11/2023,Strategy and Resources,Leeds Building Services,Premises,Cleaning Maintenance & Toiletries,127,23/11/2023,2311-00538,0.00,115.80,R,AJM FIXINGS & POWER TOOLS LTD,No
Http://opendatacommunities.org/id/metropolitan-district-council/leeds,Leeds City Council,30/11/2023,Strategy and Resources,Leeds Building Services,Premises,Cleaning Maintenance & Toiletries,127,23/11/2023,2311-00539,0.00,2343.80,R,AJM FIXINGS & POWER TOOLS LTD,No
Http://opendatacommunities.org/id/metropolitan-district-council/leeds,Leeds City Council,30/11/2023,Strategy and Resources,Leeds Building Services,Supplies and Services,Operational Furniture And Equipment,203,23/11/2023,2311-00540,0.00,118.99,R,AJM FIXINGS & POWER TOOLS LTD,No
Http://opendatacommunities.org/id/metropolitan-district-council/leeds,Leeds City Council,30/11/2023,Strategy and Resources,Leeds Building Services,Supplies and Services,Operational Furniture And Equipment,203,23/11/2023,2311-00541,0.00,311.28,R,AJM FIXINGS & POWER TOOLS LTD,No
Http://opendatacommunities.org/id/metropolitan-district-council/leeds,Leeds City Council,30/11/2023,Strategy and Resources,Leeds Building Services,Supplies and Services,Operational Furniture And Equipment,203,23/11/2023,2311-00542,0.00,48.00,R,AJM FIXINGS & POWER TOOLS LTD,No
Http://opendatacommunities.org/id/metropolitan-district-council/leeds,Leeds City Council,30/11/2023,Strategy and Resources,Leeds Building Services,Supplies and Services,Operational Furniture And Equipment,203,23/11/2023,2311-00543,0.00,514.50,R,AJM FIXINGS & POWER TOOLS LTD,No
Http://opendatacommunities.org/id/metropolitan-district-council/leeds,Leeds City Council,30/11/2023,Strategy and Resources,Leeds Building Services,Supplies and Services,Operational Furniture And Equipment,203,23/11/2023,2311-00544,0.00,254.10,R,AJM FIXINGS & POWER TOOLS LTD,No
Http://opendatacommunities.org/id/metropolitan-district-council/leeds,Leeds City Council,30/11/2023,Strategy and Resources,Leeds Building Services,Supplies and Services,Operational Furniture And Equipment,203,23/11/2023,2311-00545,0.00,1038.81,R,AJM FIXINGS & POWER TOOLS LTD,No
Http://opendatacommunities.org/id/metropolitan-district-council/leeds,Leeds City Council,30/11/2023,Strategy and Resources,Leeds Building Services,Supplies and Services,Operational Furniture And Equipment,203,24/11/2023,2311-00546,0.00,125.98,R,AJM FIXINGS & POWER TOOLS LTD,No
Http://opendatacommunities.org/id/metropolitan-district-council/leeds,Leeds City Council,30/11/2023,Strategy and Resources,Leeds Building Services,Premises,Cleaning Maintenance & Toiletries,127,24/11/2023,2311-00547,0.00,1688.40,R,AJM FIXINGS & POWER TOOLS LTD,No
Http://opendatacommunities.org/id/metropolitan-district-council/leeds,Leeds City Council,30/11/2023,Strategy and Resources,Leeds Building Services,Supplies and Services,Operational Furniture And Equipment,203,24/11/2023,2311-00548,0.00,142.00,R,AJM FIXINGS & POWER TOOLS LTD,No
Http://opendatacommunities.org/id/metropolitan-district-council/leeds,Leeds City Council,30/11/2023,Strategy and Resources,Leeds Building Services,Premises,Cleaning Maintenance & Toiletries,127,29/11/2023,2311-00549,0.00,261.70,R,AJM FIXINGS & POWER TOOLS LTD,No
Http://opendatacommunities.org/id/metropolitan-district-council/leeds,Leeds City Council,30/11/2023,Strategy and Resources,Leeds Building Services,Supplies and Services,Operational Furniture And Equipment,203,29/11/2023,2311-00550,0.00,259.00,R,AJM FIXINGS & POWER TOOLS LTD,No
Http://opendatacommunities.org/id/metropolitan-district-council/leeds,Leeds City Council,30/11/2023,Strategy and Resources,Leeds Building Services,Premises,Cleaning Maintenance & Toiletries,127,29/11/2023,2311-00551,0.00,340.48,R,AJM FIXINGS & POWER TOOLS LTD,No
Http://opendatacommunities.org/id/metropolitan-district-council/leeds,Leeds City Council,30/11/2023,Strategy and Resources,Leeds Building Services,Premises,Cleaning Maintenance & Toiletries,127,29/11/2023,2311-00552,0.00,102.24,R,AJM FIXINGS & POWER TOOLS LTD,No
Http://opendatacommunities.org/id/metropolitan-district-council/leeds,Leeds City Council,30/11/2023,Strategy and Resources,Leeds Building Services,Premises,Cleaning Maintenance & Toiletries,127,29/11/2023,2311-00553,0.00,18.44,R,AJM FIXINGS & POWER TOOLS LTD,No
Http://opendatacommunities.org/id/metropolitan-district-council/leeds,Leeds City Council,30/11/2023,Strategy and Resources,Leeds Building Services,Supplies and Services,Operational Furniture And Equipment,203,29/11/2023,2311-00554,0.00,133.70,R,AJM FIXINGS & POWER TOOLS LTD,No
Http://opendatacommunities.org/id/metropolitan-district-council/leeds,Leeds City Council,30/11/2023,Communities Housing and Environment,Waste Management,Premises,General Maintenance,104,29/11/2023,2311-00555,0.00,3600.00,R,AK Containers Technical Services Ltd,No
Http://opendatacommunities.org/id/metropolitan-district-council/leeds,Leeds City Council,30/11/2023,Children and Families,Social Care ,Appropriations,Leaving Care Grants,635,03/10/2023,2311-00556,0.00,12.45,R,Al Murad,Yes
Http://opendatacommunities.org/id/metropolitan-district-council/leeds,Leeds City Council,30/11/2023,Children and Families,Social Care ,Appropriations,Leaving Care Grants,635,05/10/2023,2311-00557,0.00,64.17,R,Al Murad,Yes
Http://opendatacommunities.org/id/metropolitan-district-council/leeds,Leeds City Council,30/11/2023,City Development,Planning & Sustainable Development,Internal Recharges,Legal Disbursements,411,09/11/2023,2311-00558,0.00,2500.00,R,Alan Evans,No
Http://opendatacommunities.org/id/metropolitan-district-council/leeds,Leeds City Council,30/11/2023,Communities Housing and Environment,Benefits Wlefare and Poverty,Supplies and Services,Grant Related Expenditure,290,22/11/2023,2311-00559,0.00,100.00,R,REDACTED PERSONAL DATA,No
Http://opendatacommunities.org/id/metropolitan-district-council/leeds,Leeds City Council,30/11/2023,Children and Families,Learning,Supplies and Services,Other Hired And Contracted Services,265,24/11/2023,2311-00560,0.00,250.00,R,Alana Middleton,No
Http://opendatacommunities.org/id/metropolitan-district-council/leeds,Leeds City Council,30/11/2023,Children and Families,Social Care,Agency Payments,Services Rendered By Other Organisations,511,03/11/2023,2311-00561,0.00,1058.40,R,REDACTED PERSONAL DATA,No
Http://opendatacommunities.org/id/metropolitan-district-council/leeds,Leeds City Council,30/11/2023,Children and Families,Social Care,Supplies and Services,Operational Furniture And Equipment,203,16/11/2023,2311-00562,0.00,551.39,R,Alarm Radio Monitoring Ltd,No
Http://opendatacommunities.org/id/metropolitan-district-council/leeds,Leeds City Council,30/11/2023,Children and Families,Social Care,Supplies and Services,Operational Furniture And Equipment,203,22/11/2023,2311-00563,0.00,115.85,R,Alarm Radio Monitoring Ltd,No
Http://opendatacommunities.org/id/metropolitan-district-council/leeds,Leeds City Council,30/11/2023,Communities Housing and Environment,Climate Energy & Greenspaces ,Supplies and Services,Operational Materials,205,23/10/2023,2311-00564,0.00,1880.88,R,Alba Trees Plc,Yes
Http://opendatacommunities.org/id/metropolitan-district-council/leeds,Leeds City Council,30/11/2023,Communities Housing and Environment,Climate Energy & Greenspaces ,Supplies and Services,Operational Materials,205,23/10/2023,2311-00565,0.00,8333.33,R,Alba Trees Plc,Yes
Http://opendatacommunities.org/id/metropolitan-district-council/leeds,Leeds City Council,30/11/2023,Communities Housing and Environment,Climate Energy & Greenspaces ,Supplies and Services,Operational Materials,205,23/10/2023,2311-00566,0.00,8333.33,R,Alba Trees Plc,Yes
Http://opendatacommunities.org/id/metropolitan-district-council/leeds,Leeds City Council,30/11/2023,Communities Housing and Environment,Car Parking Services,External Income,Penalties Fines & Car Parking Charges,934,02/11/2023,2311-00567,0.00,114.00,R,Ald Automotive Limited,No
Http://opendatacommunities.org/id/metropolitan-district-council/leeds,Leeds City Council,30/11/2023,Communities Housing and Environment,Car Parking Services,External Income,Penalties Fines & Car Parking Charges,934,02/11/2023,2311-00568,0.00,114.00,R,Ald Automotive Limited,No
Http://opendatacommunities.org/id/metropolitan-district-council/leeds,Leeds City Council,30/11/2023,Communities Housing and Environment,Car Parking Services,External Income,Penalties Fines & Car Parking Charges,934,02/11/2023,2311-00569,0.00,114.00,R,Ald Automotive Limited,No
Http://opendatacommunities.org/id/metropolitan-district-council/leeds,Leeds City Council,30/11/2023,Communities Housing and Environment,Car Parking Services,External Income,Penalties Fines & Car Parking Charges,934,02/11/2023,2311-00570,0.00,114.00,R,Ald Automotive Limited,No
Http://opendatacommunities.org/id/metropolitan-district-council/leeds,Leeds City Council,30/11/2023,Communities Housing and Environment,Car Parking Services,External Income,Penalties Fines & Car Parking Charges,934,02/11/2023,2311-00571,0.00,114.00,R,Ald Automotive Limited,No
Http://opendatacommunities.org/id/metropolitan-district-council/leeds,Leeds City Council,30/11/2023,Communities Housing and Environment,Car Parking Services,External Income,Penalties Fines & Car Parking Charges,934,02/11/2023,2311-00572,0.00,105.00,R,Ald Automotive Limited,No
Http://opendatacommunities.org/id/metropolitan-district-council/leeds,Leeds City Council,30/11/2023,Communities Housing and Environment,Car Parking Services,External Income,Penalties Fines & Car Parking Charges,934,02/11/2023,2311-00573,0.00,114.00,R,Ald Automotive Limited,No
Http://opendatacommunities.org/id/metropolitan-district-council/leeds,Leeds City Council,30/11/2023,Communities Housing and Environment,Car Parking Services,External Income,Penalties Fines & Car Parking Charges,934,02/11/2023,2311-00574,0.00,105.00,R,Ald Automotive Limited,No
Http://opendatacommunities.org/id/metropolitan-district-council/leeds,Leeds City Council,30/11/2023,Communities Housing and Environment,Car Parking Services,External Income,Penalties Fines & Car Parking Charges,934,16/11/2023,2311-00575,0.00,114.00,R,Ald Automotive Ltd,No
Http://opendatacommunities.org/id/metropolitan-district-council/leeds,Leeds City Council,30/11/2023,Children and Families,Social Care ,Supplies and Services,Food & Drink,231,08/10/2023,2311-00576,0.00,12.16,R,Aldi,Yes
Http://opendatacommunities.org/id/metropolitan-district-council/leeds,Leeds City Council,30/11/2023,Communities Housing and Environment,Communities ,Supplies and Services,Food & Drink,231,02/10/2023,2311-00577,0.00,2.54,R,Aldi 40 779,Yes
Http://opendatacommunities.org/id/metropolitan-district-council/leeds,Leeds City Council,30/11/2023,Children and Families,Social Care ,Supplies and Services,Food & Drink,231,10/10/2023,2311-00578,0.00,5.97,R,Aldi 40 779,Yes
Http://opendatacommunities.org/id/metropolitan-district-council/leeds,Leeds City Council,30/11/2023,Communities Housing and Environment,Communities ,Supplies and Services,Food & Drink,231,10/10/2023,2311-00579,0.00,2.89,R,Aldi 40 779,Yes
Http://opendatacommunities.org/id/metropolitan-district-council/leeds,Leeds City Council,30/11/2023,Communities Housing and Environment,Communities ,Supplies and Services,Subsistence,256,16/10/2023,2311-00580,0.00,2.30,R,Aldi 40 779,Yes
Http://opendatacommunities.org/id/metropolitan-district-council/leeds,Leeds City Council,30/11/2023,Children and Families,Social Care ,Supplies and Services,Food & Drink,231,18/10/2023,2311-00581,0.00,18.47,R,Aldi 40 779,Yes
Http://opendatacommunities.org/id/metropolitan-district-council/leeds,Leeds City Council,30/11/2023,Children and Families,Social Care ,Appropriations,Leaving Care Allowances,634,03/10/2023,2311-00582,0.00,15.49,R,Aldi 71 779,Yes
Http://opendatacommunities.org/id/metropolitan-district-council/leeds,Leeds City Council,30/11/2023,Children and Families,Social Care ,Agency Payments,Section 17,551,03/10/2023,2311-00583,0.00,37.45,R,Aldi 71 779,Yes
Http://opendatacommunities.org/id/metropolitan-district-council/leeds,Leeds City Council,30/11/2023,Children and Families,Social Care ,Appropriations,Leaving Care Allowances,634,04/10/2023,2311-00584,0.00,21.88,R,Aldi 71 779,Yes
Http://opendatacommunities.org/id/metropolitan-district-council/leeds,Leeds City Council,30/11/2023,Children and Families,Social Care ,Appropriations,Leaving Care Allowances,634,11/10/2023,2311-00585,0.00,20.76,R,Aldi 71 779,Yes
Http://opendatacommunities.org/id/metropolitan-district-council/leeds,Leeds City Council,30/11/2023,Children and Families,Social Care ,Supplies and Services,Teaching Materials,202,13/10/2023,2311-00586,0.00,32.45,R,Aldi 71 779,Yes
Http://opendatacommunities.org/id/metropolitan-district-council/leeds,Leeds City Council,30/11/2023,Children and Families,Social Care ,Appropriations,Leaving Care Allowances,634,16/10/2023,2311-00587,0.00,29.06,R,Aldi 71 779,Yes
Http://opendatacommunities.org/id/metropolitan-district-council/leeds,Leeds City Council,30/11/2023,Children and Families,Social Care ,Supplies and Services,Food & Drink,231,27/10/2023,2311-00588,0.00,4.66,R,Aldi 71 779,Yes
Http://opendatacommunities.org/id/metropolitan-district-council/leeds,Leeds City Council,30/11/2023,Children and Families,Social Care ,Agency Payments,Section 17,551,02/10/2023,2311-00589,0.00,56.67,R,Aldi 779-126,Yes
Http://opendatacommunities.org/id/metropolitan-district-council/leeds,Leeds City Council,30/11/2023,Children and Families,Social Care ,Appropriations,Leaving Care Allowances,634,02/10/2023,2311-00590,0.00,41.55,R,Aldi 779-126,Yes
Http://opendatacommunities.org/id/metropolitan-district-council/leeds,Leeds City Council,30/11/2023,Communities Housing and Environment,Communities ,Supplies and Services,Food & Drink,231,04/10/2023,2311-00591,0.00,16.52,R,Aldi 85 779,Yes
Http://opendatacommunities.org/id/metropolitan-district-council/leeds,Leeds City Council,30/11/2023,Strategy and Resources,Commercial Services ,Supplies and Services,Food & Drink,231,06/10/2023,2311-00592,0.00,10.27,R,Aldi 85 779,Yes
Http://opendatacommunities.org/id/metropolitan-district-council/leeds,Leeds City Council,30/11/2023,Communities Housing and Environment,Communities ,Supplies and Services,Food & Drink,231,17/10/2023,2311-00593,0.00,41.69,R,Aldi 85 779,Yes
Http://opendatacommunities.org/id/metropolitan-district-council/leeds,Leeds City Council,30/11/2023,Children and Families,Social Care ,Supplies and Services,Food & Drink,231,24/10/2023,2311-00594,0.00,5.10,R,Aldi 85 779,Yes
Http://opendatacommunities.org/id/metropolitan-district-council/leeds,Leeds City Council,30/11/2023,Children and Families,Social Care ,Supplies and Services,Food & Drink,231,09/10/2023,2311-00595,0.00,33.71,R,Aldi 88 779,Yes
Http://opendatacommunities.org/id/metropolitan-district-council/leeds,Leeds City Council,30/11/2023,Children and Families,Social Care ,Supplies and Services,Teaching Materials,202,20/10/2023,2311-00596,0.00,15.69,R,Aldi 88 779,Yes
Http://opendatacommunities.org/id/metropolitan-district-council/leeds,Leeds City Council,30/11/2023,Children and Families,Social Care ,Supplies and Services,Food & Drink,231,30/10/2023,2311-00597,0.00,16.79,R,Aldi 88 779,Yes
Http://opendatacommunities.org/id/metropolitan-district-council/leeds,Leeds City Council,30/11/2023,Children and Families,Social Care ,Appropriations,Young People Expenses,654,04/10/2023,2311-00598,0.00,15.00,R,Aldi 89 779,Yes
Http://opendatacommunities.org/id/metropolitan-district-council/leeds,Leeds City Council,30/11/2023,Children and Families,Social Care ,Supplies and Services,Food & Drink,231,07/10/2023,2311-00599,0.00,73.98,R,Aldi 89 779,Yes
Http://opendatacommunities.org/id/metropolitan-district-council/leeds,Leeds City Council,30/11/2023,Children and Families,Social Care ,Supplies and Services,Food & Drink,231,11/10/2023,2311-00600,0.00,14.96,R,Aldi 89 779,Yes
Http://opendatacommunities.org/id/metropolitan-district-council/leeds,Leeds City Council,30/11/2023,Children and Families,Social Care ,Appropriations,Young People Expenses,654,11/10/2023,2311-00601,0.00,30.00,R,Aldi 89 779,Yes
Http://opendatacommunities.org/id/metropolitan-district-council/leeds,Leeds City Council,30/11/2023,Children and Families,Social Care ,Appropriations,Young People Expenses,654,16/10/2023,2311-00602,0.00,15.00,R,Aldi 89 779,Yes
Http://opendatacommunities.org/id/metropolitan-district-council/leeds,Leeds City Council,30/11/2023,Children and Families,Social Care ,Supplies and Services,Food & Drink,231,16/10/2023,2311-00603,0.00,147.91,R,Aldi 89 779,Yes
Http://opendatacommunities.org/id/metropolitan-district-council/leeds,Leeds City Council,30/11/2023,Children and Families,Social Care ,Supplies and Services,Food & Drink,231,27/10/2023,2311-00604,0.00,83.87,R,Aldi 89 779,Yes
Http://opendatacommunities.org/id/metropolitan-district-council/leeds,Leeds City Council,30/11/2023,Children and Families,Social Care ,Supplies and Services,Food & Drink,231,30/10/2023,2311-00605,0.00,123.46,R,Aldi 89 779,Yes
Http://opendatacommunities.org/id/metropolitan-district-council/leeds,Leeds City Council,30/11/2023,Children and Families,Social Care ,Supplies and Services,Food & Drink,231,30/09/2023,2311-00606,0.00,154.14,R,Aldi Stores,Yes
Http://opendatacommunities.org/id/metropolitan-district-council/leeds,Leeds City Council,30/11/2023,Children and Families,Social Care ,Appropriations,Young People Expenses,654,08/10/2023,2311-00607,0.00,54.75,R,Aldi Stores,Yes
Http://opendatacommunities.org/id/metropolitan-district-council/leeds,Leeds City Council,30/11/2023,Children and Families,Social Care ,Appropriations,Leaving Care Allowances,634,09/10/2023,2311-00608,0.00,35.75,R,Aldi Stores,Yes
Http://opendatacommunities.org/id/metropolitan-district-council/leeds,Leeds City Council,30/11/2023,Children and Families,Social Care ,Appropriations,Leaving Care Allowances,634,30/10/2023,2311-00609,0.00,66.33,R,Aldi Stores,Yes
Http://opendatacommunities.org/id/metropolitan-district-council/leeds,Leeds City Council,30/11/2023,Strategy and Resources,Commercial Services,Supplies and Services,Other Hired And Contracted Services,265,08/11/2023,2311-00610,0.00,400.00,R,ALEX WAGG,No
Http://opendatacommunities.org/id/metropolitan-district-council/leeds,Leeds City Council,30/11/2023,Strategy and Resources,Commercial Services,Supplies and Services,Other Hired And Contracted Services,265,08/11/2023,2311-00611,0.00,70.00,R,ALEX WAGG,No
Http://opendatacommunities.org/id/metropolitan-district-council/leeds,Leeds City Council,30/11/2023,Strategy and Resources,Commercial Services,Supplies and Services,Other Hired And Contracted Services,265,17/11/2023,2311-00612,0.00,175.00,R,ALEX WAGG,No
Http://opendatacommunities.org/id/metropolitan-district-council/leeds,Leeds City Council,30/11/2023,Strategy and Resources,Commercial Services,Supplies and Services,Other Hired And Contracted Services,265,17/11/2023,2311-00613,0.00,195.00,R,ALEX WAGG,No
Http://opendatacommunities.org/id/metropolitan-district-council/leeds,Leeds City Council,30/11/2023,Strategy and Resources,Commercial Services,Supplies and Services,Other Hired And Contracted Services,265,17/11/2023,2311-00614,0.00,175.00,R,ALEX WAGG,No
Http://opendatacommunities.org/id/metropolitan-district-council/leeds,Leeds City Council,30/11/2023,Strategy and Resources,Commercial Services,Supplies and Services,Other Hired And Contracted Services,265,17/11/2023,2311-00615,0.00,150.00,R,ALEX WAGG,No
Http://opendatacommunities.org/id/metropolitan-district-council/leeds,Leeds City Council,30/11/2023,Strategy and Resources,Commercial Services,Supplies and Services,Other Hired And Contracted Services,265,28/11/2023,2311-00616,0.00,190.00,R,ALEX WAGG,No
Http://opendatacommunities.org/id/metropolitan-district-council/leeds,Leeds City Council,30/11/2023,Strategy and Resources,Commercial Services,Supplies and Services,Other Hired And Contracted Services,265,28/11/2023,2311-00617,0.00,175.00,R,ALEX WAGG,No
Http://opendatacommunities.org/id/metropolitan-district-council/leeds,Leeds City Council,30/11/2023,Strategy and Resources,Commercial Services,Supplies and Services,Other Hired And Contracted Services,265,28/11/2023,2311-00618,0.00,220.00,R,ALEX WAGG,No
Http://opendatacommunities.org/id/metropolitan-district-council/leeds,Leeds City Council,30/11/2023,Strategy and Resources,Commercial Services,Supplies and Services,Other Hired And Contracted Services,265,28/11/2023,2311-00619,0.00,150.00,R,ALEX WAGG,No
Http://opendatacommunities.org/id/metropolitan-district-council/leeds,Leeds City Council,30/11/2023,Children and Families,Social Care,Supplies and Services,General Amenity For Clients/Residents,285,21/11/2023,2311-00620,0.00,15.86,R,REDACTED PERSONAL DATA,No
Http://opendatacommunities.org/id/metropolitan-district-council/leeds,Leeds City Council,30/11/2023,Children and Families,Social Care,Transport,Public Transport Expenses,310,21/11/2023,2311-00621,0.00,19.60,R,REDACTED PERSONAL DATA,No
Http://opendatacommunities.org/id/metropolitan-district-council/leeds,Leeds City Council,30/11/2023,Adults and Health,Services For Older People - 65 And Over,Agency Payments,Residential Care Dementia,571,08/11/2023,2311-00622,0.00,22433.48,R,ALEXANDER RESIDENTIAL HOME,No
Http://opendatacommunities.org/id/metropolitan-district-council/leeds,Leeds City Council,30/11/2023,Adults and Health,Services For Older People - 65 And Over,Agency Payments,Residential,580,08/11/2023,2311-00623,0.00,22616.02,R,ALEXANDER RESIDENTIAL HOME,No
Http://opendatacommunities.org/id/metropolitan-district-council/leeds,Leeds City Council as Accountable Body,30/11/2023,Social Services Pooled Budgets,Jcs For People With Learning Disabilitie,Agency Payments,Residential,580,08/11/2023,2311-00624,0.00,3096.00,R,ALEXANDER RESIDENTIAL HOME,No
Http://opendatacommunities.org/id/metropolitan-district-council/leeds,Leeds City Council,30/11/2023,Children and Families,Social Care,Supplies and Services,General Amenity For Clients/Residents,285,30/11/2023,2311-00625,0.00,14.84,R,REDACTED PERSONAL DATA,No
Http://opendatacommunities.org/id/metropolitan-district-council/leeds,Leeds City Council,30/11/2023,Children and Families,Social Care,Transport,Public Transport Expenses,310,30/11/2023,2311-00626,0.00,3.60,R,REDACTED PERSONAL DATA,No
Http://opendatacommunities.org/id/metropolitan-district-council/leeds,Leeds City Council,30/11/2023,Children and Families,Social Care,Supplies and Services,Food & Drink,231,08/11/2023,2311-00627,0.00,8.40,R,REDACTED PERSONAL DATA,No
Http://opendatacommunities.org/id/metropolitan-district-council/leeds,Leeds City Council,30/11/2023,Communities Housing and Environment,Customer Access,Supplies and Services,Bought In Professional Services,277,01/11/2023,2311-00628,0.00,46.20,R,Alexandra Costenco,No
Http://opendatacommunities.org/id/metropolitan-district-council/leeds,Leeds City Council,30/11/2023,Communities Housing and Environment,Customer Access,Supplies and Services,Bought In Professional Services,277,29/11/2023,2311-00629,0.00,18.00,R,Alexandra Costenco,No
Http://opendatacommunities.org/id/metropolitan-district-council/leeds,Leeds City Council,30/11/2023,Adults and Health,Services For Older People - 65 And Over,Agency Payments,Residential Care Dementia,571,08/11/2023,2311-00630,0.00,1366.88,R,ALEXANDRA COURT,No
Http://opendatacommunities.org/id/metropolitan-district-council/leeds,Leeds City Council,30/11/2023,Adults and Health,Services For Older People - 65 And Over,Agency Payments,Residential,580,08/11/2023,2311-00631,0.00,6301.56,R,ALEXANDRA COURT,No
Http://opendatacommunities.org/id/metropolitan-district-council/leeds,Leeds City Council,30/11/2023,Adults and Health,Services For Adults Under 65 Mental/Dis,Agency Payments,Residential,580,03/11/2023,2311-00632,0.00,396.00,R,Alexandra Court Residential,No
Http://opendatacommunities.org/id/metropolitan-district-council/leeds,Leeds City Council,30/11/2023,Adults and Health,Services For Older People - 65 And Over ,Supplies and Services,Clothing & Uniforms,241,30/10/2023,2311-00633,0.00,53.97,R,Alexandra Website,Yes
Http://opendatacommunities.org/id/metropolitan-district-council/leeds,Leeds City Council,30/11/2023,Communities Housing and Environment,Benefits Wlefare and Poverty,Supplies and Services,Grant Related Expenditure,290,27/11/2023,2311-00634,0.00,100.00,R,REDACTED PERSONAL DATA,No
Http://opendatacommunities.org/id/metropolitan-district-council/leeds,Leeds City Council,30/11/2023,Strategy and Resources,Leeds Building Services,Supplies and Services,Other Hired And Contracted Services,265,02/11/2023,2311-00635,0.00,879.01,R,Alfred Bagnall & Sons (Leeds) Ltd,No
Http://opendatacommunities.org/id/metropolitan-district-council/leeds,Leeds City Council,30/11/2023,Strategy and Resources,Leeds Building Services,Supplies and Services,Other Hired And Contracted Services,265,02/11/2023,2311-00636,0.00,4930.22,R,Alfred Bagnall & Sons (Leeds) Ltd,No
Http://opendatacommunities.org/id/metropolitan-district-council/leeds,Leeds City Council,30/11/2023,Strategy and Resources,Leeds Building Services,Supplies and Services,Other Hired And Contracted Services,265,02/11/2023,2311-00637,0.00,319.80,R,Alfred Bagnall & Sons (Leeds) Ltd,No
Http://opendatacommunities.org/id/metropolitan-district-council/leeds,Leeds City Council,30/11/2023,Strategy and Resources,Leeds Building Services,Supplies and Services,Other Hired And Contracted Services,265,02/11/2023,2311-00638,0.00,270.00,R,Alfred Bagnall & Sons (Leeds) Ltd,No
Http://opendatacommunities.org/id/metropolitan-district-council/leeds,Leeds City Council,30/11/2023,Strategy and Resources,Leeds Building Services,Supplies and Services,Other Hired And Contracted Services,265,08/11/2023,2311-00639,0.00,1450.00,R,Alfred Bagnall & Sons (Leeds) Ltd,No
Http://opendatacommunities.org/id/metropolitan-district-council/leeds,Leeds City Council,30/11/2023,City Development,Recreation,Premises,Maintenance Of Buildings,101,08/11/2023,2311-00640,0.00,807.00,R,Alfred Bagnall & Sons (Leeds) Ltd,No
Http://opendatacommunities.org/id/metropolitan-district-council/leeds,Leeds City Council,30/11/2023,Strategy and Resources,Leeds Building Services,Supplies and Services,Other Hired And Contracted Services,265,10/11/2023,2311-00641,0.00,896.00,R,Alfred Bagnall & Sons (Leeds) Ltd,No
Http://opendatacommunities.org/id/metropolitan-district-council/leeds,Leeds City Council,30/11/2023,Strategy and Resources,Leeds Building Services,Supplies and Services,Other Hired And Contracted Services,265,10/11/2023,2311-00642,0.00,730.00,R,Alfred Bagnall & Sons (Leeds) Ltd,No
Http://opendatacommunities.org/id/metropolitan-district-council/leeds,Leeds City Council,30/11/2023,Strategy and Resources,Leeds Building Services,Supplies and Services,Other Hired And Contracted Services,265,10/11/2023,2311-00643,0.00,2560.00,R,Alfred Bagnall & Sons (Leeds) Ltd,No
Http://opendatacommunities.org/id/metropolitan-district-council/leeds,Leeds City Council,30/11/2023,Strategy and Resources,Leeds Building Services,Supplies and Services,Other Hired And Contracted Services,265,10/11/2023,2311-00644,0.00,690.00,R,Alfred Bagnall & Sons (Leeds) Ltd,No
Http://opendatacommunities.org/id/metropolitan-district-council/leeds,Leeds City Council,30/11/2023,City Development,Libraries Arts & Heritage,Supplies and Services,Other Hired And Contracted Services,265,10/11/2023,2311-00645,0.00,3768.29,R,Alfred Bagnall & Sons (Leeds) Ltd,No
Http://opendatacommunities.org/id/metropolitan-district-council/leeds,Leeds City Council,30/11/2023,Strategy and Resources,Leeds Building Services,Supplies and Services,Other Hired And Contracted Services,265,17/11/2023,2311-00646,0.00,250.00,R,Alfred Bagnall & Sons (Leeds) Ltd,No
Http://opendatacommunities.org/id/metropolitan-district-council/leeds,Leeds City Council,30/11/2023,Communities Housing and Environment,Climate Energy & Greenspaces,Premises,Painting Interior,193,17/11/2023,2311-00647,0.00,1830.90,R,Alfred Bagnall & Sons (Leeds) Ltd,No
Http://opendatacommunities.org/id/metropolitan-district-council/leeds,Leeds City Council,30/11/2023,Strategy and Resources,Leeds Building Services,Supplies and Services,Other Hired And Contracted Services,265,24/11/2023,2311-00648,0.00,980.00,R,Alfred Bagnall & Sons (Leeds) Ltd,No
Http://opendatacommunities.org/id/metropolitan-district-council/leeds,Leeds City Council,30/11/2023,Strategy and Resources,Leeds Building Services,Supplies and Services,Other Hired And Contracted Services,265,24/11/2023,2311-00649,0.00,2670.00,R,Alfred Bagnall & Sons (Leeds) Ltd,No
Http://opendatacommunities.org/id/metropolitan-district-council/leeds,Leeds City Council,30/11/2023,Strategy and Resources,Leeds Building Services,Supplies and Services,Other Hired And Contracted Services,265,24/11/2023,2311-00650,0.00,350.00,R,Alfred Bagnall & Sons (Leeds) Ltd,No
Http://opendatacommunities.org/id/metropolitan-district-council/leeds,Leeds City Council,30/11/2023,Communities Housing and Environment,Climate Energy & Greenspaces,Transport,Hire Of Movable Plant & Machinery,315,09/11/2023,2311-00651,0.00,165.49,R,ALGECO UK LIMITED,No
Http://opendatacommunities.org/id/metropolitan-district-council/leeds,Leeds City Council,30/11/2023,Communities Housing and Environment,Climate Energy & Greenspaces,Transport,Hire Of Movable Plant & Machinery,315,09/11/2023,2311-00652,0.00,35.98,R,ALGECO UK LIMITED,No
Http://opendatacommunities.org/id/metropolitan-district-council/leeds,Leeds City Council,30/11/2023,Children and Families,Social Care,Appropriations,Leaving Care Allowances,634,30/11/2023,2311-00653,0.00,122.10,R,REDACTED PERSONAL DATA,No
Http://opendatacommunities.org/id/metropolitan-district-council/leeds,Leeds City Council,30/11/2023,Communities Housing and Environment,Customer Access,Supplies and Services,Bought In Professional Services,277,01/11/2023,2311-00654,0.00,18.00,R,Ali Pourakaberian,No
Http://opendatacommunities.org/id/metropolitan-district-council/leeds,Leeds City Council,30/11/2023,Communities Housing and Environment,Customer Access,Supplies and Services,Bought In Professional Services,277,01/11/2023,2311-00655,0.00,18.00,R,Ali Pourakaberian,No
Http://opendatacommunities.org/id/metropolitan-district-council/leeds,Leeds City Council,30/11/2023,Communities Housing and Environment,Customer Access,Supplies and Services,Bought In Professional Services,277,08/11/2023,2311-00656,0.00,18.00,R,Ali Pourakaberian,No
Http://opendatacommunities.org/id/metropolitan-district-council/leeds,Leeds City Council,30/11/2023,Communities Housing and Environment,Customer Access,Supplies and Services,Bought In Professional Services,277,08/11/2023,2311-00657,0.00,18.00,R,Ali Pourakaberian,No
Http://opendatacommunities.org/id/metropolitan-district-council/leeds,Leeds City Council,30/11/2023,Communities Housing and Environment,Customer Access,Supplies and Services,Bought In Professional Services,277,15/11/2023,2311-00658,0.00,36.30,R,Ali Pourakaberian,No
Http://opendatacommunities.org/id/metropolitan-district-council/leeds,Leeds City Council,30/11/2023,Communities Housing and Environment,Customer Access,Supplies and Services,Bought In Professional Services,277,15/11/2023,2311-00659,0.00,45.00,R,Ali Pourakaberian,No
Http://opendatacommunities.org/id/metropolitan-district-council/leeds,Leeds City Council,30/11/2023,Communities Housing and Environment,Customer Access,Supplies and Services,Bought In Professional Services,277,22/11/2023,2311-00660,0.00,18.00,R,Ali Pourakaberian,No
Http://opendatacommunities.org/id/metropolitan-district-council/leeds,Leeds City Council,30/11/2023,Communities Housing and Environment,Customer Access,Supplies and Services,Bought In Professional Services,277,22/11/2023,2311-00661,0.00,18.00,R,Ali Pourakaberian,No
Http://opendatacommunities.org/id/metropolitan-district-council/leeds,Leeds City Council,30/11/2023,Communities Housing and Environment,Customer Access,Supplies and Services,Bought In Professional Services,277,22/11/2023,2311-00662,0.00,27.00,R,Ali Pourakaberian,No
Http://opendatacommunities.org/id/metropolitan-district-council/leeds,Leeds City Council,30/11/2023,Communities Housing and Environment,Customer Access,Supplies and Services,Bought In Professional Services,277,29/11/2023,2311-00663,0.00,18.00,R,Ali Pourakaberian,No
Http://opendatacommunities.org/id/metropolitan-district-council/leeds,Leeds City Council,30/11/2023,Communities Housing and Environment,Customer Access,Supplies and Services,Bought In Professional Services,277,29/11/2023,2311-00664,0.00,36.00,R,Ali Pourakaberian,No
Http://opendatacommunities.org/id/metropolitan-district-council/leeds,Leeds City Council,30/11/2023,City Development,Recreation,Supplies and Services,Bought In Professional Services,277,01/11/2023,2311-00665,0.00,80.00,R,Alice M Richardson,No
Http://opendatacommunities.org/id/metropolitan-district-council/leeds,Leeds City Council,30/11/2023,City Development,Recreation,Supplies and Services,Bought In Professional Services,277,01/11/2023,2311-00666,0.00,60.00,R,Alice M Richardson,No
Http://opendatacommunities.org/id/metropolitan-district-council/leeds,Leeds City Council,30/11/2023,City Development,Recreation,Supplies and Services,Bought In Professional Services,277,01/11/2023,2311-00667,0.00,100.00,R,Alice M Richardson,No
Http://opendatacommunities.org/id/metropolitan-district-council/leeds,Leeds City Council,30/11/2023,City Development,Recreation,Supplies and Services,Bought In Professional Services,277,27/11/2023,2311-00668,0.00,80.00,R,Alice M Richardson,No
Http://opendatacommunities.org/id/metropolitan-district-council/leeds,Leeds City Council,30/11/2023,City Development,Recreation,Supplies and Services,Bought In Professional Services,277,27/11/2023,2311-00669,0.00,80.00,R,Alice M Richardson,No
Http://opendatacommunities.org/id/metropolitan-district-council/leeds,Leeds City Council,30/11/2023,City Development,Recreation,Supplies and Services,Bought In Professional Services,277,27/11/2023,2311-00670,0.00,20.00,R,Alice M Richardson,No
Http://opendatacommunities.org/id/metropolitan-district-council/leeds,Leeds City Council,30/11/2023,Children and Families,Social Care,Agency Payments,Placement Support,550,13/11/2023,2311-00671,0.00,36.00,R,REDACTED PERSONAL DATA,No
Http://opendatacommunities.org/id/metropolitan-district-council/leeds,Leeds City Council,30/11/2023,Children and Families,Social Care,Appropriations,Leaving Care Grants,635,22/11/2023,2311-00672,0.00,150.00,R,REDACTED PERSONAL DATA,No
Http://opendatacommunities.org/id/metropolitan-district-council/leeds,Leeds City Council,30/11/2023,Children and Families,Social Care,Agency Payments,Placement Support,550,27/11/2023,2311-00673,0.00,60.00,R,REDACTED PERSONAL DATA,No
Http://opendatacommunities.org/id/metropolitan-district-council/leeds,Leeds City Council,30/11/2023,Children and Families,Social Care,Agency Payments,Services Rendered By Other Organisations,511,03/11/2023,2311-00674,0.00,264.60,R,REDACTED PERSONAL DATA,No
Http://opendatacommunities.org/id/metropolitan-district-council/leeds,Leeds City Council,30/11/2023,Children and Families,Social Care,Internal Recharges,Legal Disbursements,411,03/11/2023,2311-00675,0.00,540.00,R,Alison Davenport,No
Http://opendatacommunities.org/id/metropolitan-district-council/leeds,Leeds City Council,30/11/2023,Children and Families,Social Care,Internal Recharges,Legal Disbursements,411,17/11/2023,2311-00676,0.00,450.00,R,Alison Davenport,No
Http://opendatacommunities.org/id/metropolitan-district-council/leeds,Leeds City Council,30/11/2023,Children and Families,Social Care,Internal Recharges,Legal Disbursements,411,24/11/2023,2311-00677,0.00,600.00,R,Alison Davenport,No
Http://opendatacommunities.org/id/metropolitan-district-council/leeds,Leeds City Council,30/11/2023,Communities Housing and Environment,Strategic Housing Partnership & Support,Supplies and Services,Other Hired And Contracted Services,265,13/11/2023,2311-00678,0.00,594.00,R,REDACTED PERSONAL DATA,No
Http://opendatacommunities.org/id/metropolitan-district-council/leeds,Leeds City Council,30/11/2023,Insurance,Insurance,Supplies and Services,Insurance Claims,248,09/11/2023,2311-00679,0.00,2000.00,R,REDACTED PERSONAL DATA,No
Http://opendatacommunities.org/id/metropolitan-district-council/leeds,Leeds City Council,30/11/2023,Children and Families,Social Care,Agency Payments,Allowances,546,01/11/2023,2311-00680,0.00,100.00,R,REDACTED PERSONAL DATA,No
Http://opendatacommunities.org/id/metropolitan-district-council/leeds,Leeds City Council,30/11/2023,Children and Families,Social Care,Agency Payments,Placement Support,550,01/11/2023,2311-00681,0.00,240.00,R,REDACTED PERSONAL DATA,No
Http://opendatacommunities.org/id/metropolitan-district-council/leeds,Leeds City Council,30/11/2023,Strategy and Resources,Commercial Services,Supplies and Services,Other Hired And Contracted Services,265,27/11/2023,2311-00682,0.00,392.00,R,REDACTED PERSONAL DATA,No
Http://opendatacommunities.org/id/metropolitan-district-council/leeds,Leeds City Council,30/11/2023,Communities Housing and Environment,Communities,Supplies and Services,'Well Being' Large Grants Projects,230,06/11/2023,2311-00683,0.00,750.00,R,All Community Connect,No
Http://opendatacommunities.org/id/metropolitan-district-council/leeds,Leeds City Council,30/11/2023,Communities Housing and Environment,Communities,Supplies and Services,'Well Being' Large Grants Projects,230,08/11/2023,2311-00684,0.00,90.00,R,All Hallows Church,No
Http://opendatacommunities.org/id/metropolitan-district-council/leeds,Leeds City Council,30/11/2023,Strategic Accounts,Miscellaneous,Supplies and Services,Non-Recurring Grants,227,20/11/2023,2311-00685,0.00,120.00,R,All Hallows Church,No
Http://opendatacommunities.org/id/metropolitan-district-council/leeds,Leeds City Council,30/11/2023,Children and Families,Social Care,Agency Payments,Services Rendered By Other Organisations,511,01/11/2023,2311-00686,0.00,1517.10,R,All Stars Childcare,No
Http://opendatacommunities.org/id/metropolitan-district-council/leeds,Leeds City Council,30/11/2023,Children and Families,Social Care,Agency Payments,Services Rendered By Other Organisations,511,03/11/2023,2311-00687,0.00,6306.30,R,All Stars Childcare,No
Http://opendatacommunities.org/id/metropolitan-district-council/leeds,Leeds City Council as Accountable Body,30/11/2023,Social Services Pooled Budgets,Jcs For People With Learning Disabilitie,Agency Payments,Sheltered Accommodation,569,08/11/2023,2311-00688,0.00,25207.52,R,Allerton Avenue,No
Http://opendatacommunities.org/id/metropolitan-district-council/leeds,Leeds City Council,30/11/2023,Strategic Accounts,Miscellaneous,Supplies and Services,Non-Recurring Grants,227,06/11/2023,2311-00689,0.00,820.00,R,Allerton Bywater Cricket Club,No
Http://opendatacommunities.org/id/metropolitan-district-council/leeds,Leeds City Council,30/11/2023,Adults and Health,Public Health,Agency Payments,Public Health Commissioned Services,526,07/11/2023,2311-00690,0.00,461.56,R,Allerton Medical Centre,No
Http://opendatacommunities.org/id/metropolitan-district-council/leeds,Leeds City Council,30/11/2023,Adults and Health,Services For Older People - 65 And Over,Agency Payments,Nursing Care Dementia,574,08/11/2023,2311-00691,0.00,2125.04,R,ALLERTON PARK N H,No
Http://opendatacommunities.org/id/metropolitan-district-council/leeds,Leeds City Council,30/11/2023,Strategy and Resources,Finance,Supplies and Services,Bank Charges,263,06/11/2023,2311-00692,0.00,100.00,R,ALLIANCE & LEICESTER COMMERCIAL BANK,No
Http://opendatacommunities.org/id/metropolitan-district-council/leeds,Leeds City Council,30/11/2023,Strategy and Resources,Finance,Supplies and Services,Bank Charges,263,06/11/2023,2311-00693,0.00,151.70,R,ALLIANCE & LEICESTER COMMERCIAL BANK,No
Http://opendatacommunities.org/id/metropolitan-district-council/leeds,Leeds City Council,30/11/2023,Strategy and Resources,Commercial Services,Transport,Vehicle Spares,345,02/11/2023,2311-00694,0.00,-13.57,R,Alliance Automotive UK CV LTD,No
Http://opendatacommunities.org/id/metropolitan-district-council/leeds,Leeds City Council,30/11/2023,Strategy and Resources,Commercial Services,Transport,Vehicle Spares,345,02/11/2023,2311-00695,0.00,-10.75,R,Alliance Automotive UK CV LTD,No
Http://opendatacommunities.org/id/metropolitan-district-council/leeds,Leeds City Council,30/11/2023,Strategy and Resources,Commercial Services,Transport,Vehicle Spares,345,02/11/2023,2311-00696,0.00,-130.09,R,Alliance Automotive UK CV LTD,No
Http://opendatacommunities.org/id/metropolitan-district-council/leeds,Leeds City Council,30/11/2023,Strategy and Resources,Commercial Services,Transport,Vehicle Spares,345,02/11/2023,2311-00697,0.00,-284.12,R,Alliance Automotive UK CV LTD,No
Http://opendatacommunities.org/id/metropolitan-district-council/leeds,Leeds City Council,30/11/2023,Strategy and Resources,Commercial Services,Transport,Vehicle Spares,345,02/11/2023,2311-00698,0.00,126.84,R,Alliance Automotive UK CV LTD,No
Http://opendatacommunities.org/id/metropolitan-district-council/leeds,Leeds City Council,30/11/2023,Strategy and Resources,Commercial Services,Transport,Vehicle Spares,345,02/11/2023,2311-00699,0.00,13.67,R,Alliance Automotive UK CV LTD,No
Http://opendatacommunities.org/id/metropolitan-district-council/leeds,Leeds City Council,30/11/2023,Strategy and Resources,Commercial Services,Transport,Vehicle Spares,345,02/11/2023,2311-00700,0.00,37.33,R,Alliance Automotive UK CV LTD,No
Http://opendatacommunities.org/id/metropolitan-district-council/leeds,Leeds City Council,30/11/2023,Strategy and Resources,Commercial Services,Transport,Vehicle Spares,345,02/11/2023,2311-00701,0.00,308.62,R,Alliance Automotive UK CV LTD,No
Http://opendatacommunities.org/id/metropolitan-district-council/leeds,Leeds City Council,30/11/2023,Strategy and Resources,Commercial Services,Transport,Vehicle Spares,345,02/11/2023,2311-00702,0.00,13.84,R,Alliance Automotive UK CV LTD,No
Http://opendatacommunities.org/id/metropolitan-district-council/leeds,Leeds City Council,30/11/2023,Strategy and Resources,Commercial Services,Transport,Vehicle Spares,345,02/11/2023,2311-00703,0.00,24.59,R,Alliance Automotive UK CV LTD,No
Http://opendatacommunities.org/id/metropolitan-district-council/leeds,Leeds City Council,30/11/2023,Strategy and Resources,Commercial Services,Transport,Vehicle Spares,345,02/11/2023,2311-00704,0.00,28.56,R,Alliance Automotive UK CV LTD,No
Http://opendatacommunities.org/id/metropolitan-district-council/leeds,Leeds City Council,30/11/2023,Strategy and Resources,Commercial Services,Transport,Vehicle Spares,345,02/11/2023,2311-00705,0.00,54.18,R,Alliance Automotive UK CV LTD,No
Http://opendatacommunities.org/id/metropolitan-district-council/leeds,Leeds City Council,30/11/2023,Strategy and Resources,Commercial Services,Transport,Vehicle Spares,345,02/11/2023,2311-00706,0.00,276.00,R,Alliance Automotive UK CV LTD,No
Http://opendatacommunities.org/id/metropolitan-district-council/leeds,Leeds City Council,30/11/2023,Strategy and Resources,Commercial Services,Transport,Vehicle Spares,345,02/11/2023,2311-00707,0.00,39.43,R,Alliance Automotive UK CV LTD,No
Http://opendatacommunities.org/id/metropolitan-district-council/leeds,Leeds City Council,30/11/2023,Strategy and Resources,Commercial Services,Transport,Vehicle Spares,345,02/11/2023,2311-00708,0.00,63.36,R,Alliance Automotive UK CV LTD,No
Http://opendatacommunities.org/id/metropolitan-district-council/leeds,Leeds City Council,30/11/2023,Strategy and Resources,Commercial Services,Transport,Vehicle Spares,345,02/11/2023,2311-00709,0.00,667.05,R,Alliance Automotive UK CV LTD,No
Http://opendatacommunities.org/id/metropolitan-district-council/leeds,Leeds City Council,30/11/2023,Strategy and Resources,Commercial Services,Transport,Vehicle Spares,345,02/11/2023,2311-00710,0.00,45.62,R,Alliance Automotive UK CV LTD,No
Http://opendatacommunities.org/id/metropolitan-district-council/leeds,Leeds City Council,30/11/2023,Strategy and Resources,Commercial Services,Transport,Vehicle Spares,345,02/11/2023,2311-00711,0.00,271.76,R,Alliance Automotive UK CV LTD,No
Http://opendatacommunities.org/id/metropolitan-district-council/leeds,Leeds City Council,30/11/2023,Strategy and Resources,Commercial Services,Transport,Vehicle Spares,345,02/11/2023,2311-00712,0.00,58.95,R,Alliance Automotive UK CV LTD,No
Http://opendatacommunities.org/id/metropolitan-district-council/leeds,Leeds City Council,30/11/2023,Strategy and Resources,Commercial Services,Transport,Vehicle Spares,345,02/11/2023,2311-00713,0.00,57.13,R,Alliance Automotive UK CV LTD,No
Http://opendatacommunities.org/id/metropolitan-district-council/leeds,Leeds City Council,30/11/2023,Strategy and Resources,Commercial Services,Transport,Vehicle Spares,345,02/11/2023,2311-00714,0.00,61.23,R,Alliance Automotive UK CV LTD,No
Http://opendatacommunities.org/id/metropolitan-district-council/leeds,Leeds City Council,30/11/2023,Strategy and Resources,Commercial Services,Transport,Vehicle Spares,345,02/11/2023,2311-00715,0.00,831.68,R,Alliance Automotive UK CV LTD,No
Http://opendatacommunities.org/id/metropolitan-district-council/leeds,Leeds City Council,30/11/2023,Strategy and Resources,Commercial Services,Transport,Vehicle Spares,345,02/11/2023,2311-00716,0.00,11.76,R,Alliance Automotive UK CV LTD,No
Http://opendatacommunities.org/id/metropolitan-district-council/leeds,Leeds City Council,30/11/2023,Strategy and Resources,Commercial Services,Transport,Vehicle Spares,345,02/11/2023,2311-00717,0.00,99.38,R,Alliance Automotive UK CV LTD,No
Http://opendatacommunities.org/id/metropolitan-district-council/leeds,Leeds City Council,30/11/2023,Strategy and Resources,Commercial Services,Transport,Vehicle Spares,345,02/11/2023,2311-00718,0.00,720.06,R,Alliance Automotive UK CV LTD,No
Http://opendatacommunities.org/id/metropolitan-district-council/leeds,Leeds City Council,30/11/2023,Strategy and Resources,Commercial Services,Transport,Vehicle Spares,345,02/11/2023,2311-00719,0.00,579.65,R,Alliance Automotive UK CV LTD,No
Http://opendatacommunities.org/id/metropolitan-district-council/leeds,Leeds City Council,30/11/2023,Strategy and Resources,Commercial Services,Transport,Vehicle Spares,345,02/11/2023,2311-00720,0.00,127.83,R,Alliance Automotive UK CV LTD,No
Http://opendatacommunities.org/id/metropolitan-district-council/leeds,Leeds City Council,30/11/2023,Strategy and Resources,Commercial Services,Transport,Vehicle Spares,345,02/11/2023,2311-00721,0.00,10.35,R,Alliance Automotive UK CV LTD,No
Http://opendatacommunities.org/id/metropolitan-district-council/leeds,Leeds City Council,30/11/2023,Strategy and Resources,Commercial Services,Transport,Vehicle Spares,345,02/11/2023,2311-00722,0.00,101.62,R,Alliance Automotive UK CV LTD,No
Http://opendatacommunities.org/id/metropolitan-district-council/leeds,Leeds City Council,30/11/2023,Strategy and Resources,Commercial Services,Transport,Vehicle Spares,345,02/11/2023,2311-00723,0.00,225.16,R,Alliance Automotive UK CV LTD,No
Http://opendatacommunities.org/id/metropolitan-district-council/leeds,Leeds City Council,30/11/2023,Strategy and Resources,Commercial Services,Transport,Vehicle Spares,345,03/11/2023,2311-00724,0.00,-193.70,R,Alliance Automotive UK CV LTD,No
Http://opendatacommunities.org/id/metropolitan-district-council/leeds,Leeds City Council,30/11/2023,Strategy and Resources,Commercial Services,Transport,Vehicle Spares,345,03/11/2023,2311-00725,0.00,-77.02,R,Alliance Automotive UK CV LTD,No
Http://opendatacommunities.org/id/metropolitan-district-council/leeds,Leeds City Council,30/11/2023,Strategy and Resources,Commercial Services,Transport,Vehicle Spares,345,03/11/2023,2311-00726,0.00,29.40,R,Alliance Automotive UK CV LTD,No
Http://opendatacommunities.org/id/metropolitan-district-council/leeds,Leeds City Council,30/11/2023,Strategy and Resources,Commercial Services,Transport,Vehicle Spares,345,03/11/2023,2311-00727,0.00,12.04,R,Alliance Automotive UK CV LTD,No
Http://opendatacommunities.org/id/metropolitan-district-council/leeds,Leeds City Council,30/11/2023,Strategy and Resources,Commercial Services,Transport,Vehicle Spares,345,03/11/2023,2311-00728,0.00,94.04,R,Alliance Automotive UK CV LTD,No
Http://opendatacommunities.org/id/metropolitan-district-council/leeds,Leeds City Council,30/11/2023,Strategy and Resources,Commercial Services,Transport,Vehicle Spares,345,03/11/2023,2311-00729,0.00,13.67,R,Alliance Automotive UK CV LTD,No
Http://opendatacommunities.org/id/metropolitan-district-council/leeds,Leeds City Council,30/11/2023,Strategy and Resources,Commercial Services,Transport,Vehicle Spares,345,03/11/2023,2311-00730,0.00,742.41,R,Alliance Automotive UK CV LTD,No
Http://opendatacommunities.org/id/metropolitan-district-council/leeds,Leeds City Council,30/11/2023,Strategy and Resources,Commercial Services,Transport,Vehicle Spares,345,03/11/2023,2311-00731,0.00,172.11,R,Alliance Automotive UK CV LTD,No
Http://opendatacommunities.org/id/metropolitan-district-council/leeds,Leeds City Council,30/11/2023,Strategy and Resources,Commercial Services,Transport,Vehicle Spares,345,03/11/2023,2311-00732,0.00,134.37,R,Alliance Automotive UK CV LTD,No
Http://opendatacommunities.org/id/metropolitan-district-council/leeds,Leeds City Council,30/11/2023,Strategy and Resources,Commercial Services,Transport,Vehicle Spares,345,03/11/2023,2311-00733,0.00,278.19,R,Alliance Automotive UK CV LTD,No
Http://opendatacommunities.org/id/metropolitan-district-council/leeds,Leeds City Council,30/11/2023,Strategy and Resources,Commercial Services,Transport,Vehicle Spares,345,03/11/2023,2311-00734,0.00,31.78,R,Alliance Automotive UK CV LTD,No
Http://opendatacommunities.org/id/metropolitan-district-council/leeds,Leeds City Council,30/11/2023,Strategy and Resources,Commercial Services,Transport,Vehicle Spares,345,03/11/2023,2311-00735,0.00,92.57,R,Alliance Automotive UK CV LTD,No
Http://opendatacommunities.org/id/metropolitan-district-council/leeds,Leeds City Council,30/11/2023,Strategy and Resources,Commercial Services,Transport,Vehicle Spares,345,03/11/2023,2311-00736,0.00,43.57,R,Alliance Automotive UK CV LTD,No
Http://opendatacommunities.org/id/metropolitan-district-council/leeds,Leeds City Council,30/11/2023,Strategy and Resources,Commercial Services,Transport,Vehicle Spares,345,03/11/2023,2311-00737,0.00,451.34,R,Alliance Automotive UK CV LTD,No
Http://opendatacommunities.org/id/metropolitan-district-council/leeds,Leeds City Council,30/11/2023,Strategy and Resources,Commercial Services,Transport,Vehicle Spares,345,03/11/2023,2311-00738,0.00,311.94,R,Alliance Automotive UK CV LTD,No
Http://opendatacommunities.org/id/metropolitan-district-council/leeds,Leeds City Council,30/11/2023,Strategy and Resources,Commercial Services,Transport,Vehicle Spares,345,03/11/2023,2311-00739,0.00,35.54,R,Alliance Automotive UK CV LTD,No
Http://opendatacommunities.org/id/metropolitan-district-council/leeds,Leeds City Council,30/11/2023,Strategy and Resources,Commercial Services,Transport,Vehicle Spares,345,03/11/2023,2311-00740,0.00,237.09,R,Alliance Automotive UK CV LTD,No
Http://opendatacommunities.org/id/metropolitan-district-council/leeds,Leeds City Council,30/11/2023,Strategy and Resources,Commercial Services,Transport,Vehicle Spares,345,03/11/2023,2311-00741,0.00,6.92,R,Alliance Automotive UK CV LTD,No
Http://opendatacommunities.org/id/metropolitan-district-council/leeds,Leeds City Council,30/11/2023,Strategy and Resources,Commercial Services,Transport,Vehicle Spares,345,03/11/2023,2311-00742,0.00,27.35,R,Alliance Automotive UK CV LTD,No
Http://opendatacommunities.org/id/metropolitan-district-council/leeds,Leeds City Council,30/11/2023,Strategy and Resources,Commercial Services,Transport,Vehicle Spares,345,03/11/2023,2311-00743,0.00,6.92,R,Alliance Automotive UK CV LTD,No
Http://opendatacommunities.org/id/metropolitan-district-council/leeds,Leeds City Council,30/11/2023,Strategy and Resources,Commercial Services,Transport,Vehicle Spares,345,03/11/2023,2311-00744,0.00,125.04,R,Alliance Automotive UK CV LTD,No
Http://opendatacommunities.org/id/metropolitan-district-council/leeds,Leeds City Council,30/11/2023,Strategy and Resources,Commercial Services,Transport,Vehicle Spares,345,03/11/2023,2311-00745,0.00,35.64,R,Alliance Automotive UK CV LTD,No
Http://opendatacommunities.org/id/metropolitan-district-council/leeds,Leeds City Council,30/11/2023,Strategy and Resources,Commercial Services,Transport,Vehicle Spares,345,03/11/2023,2311-00746,0.00,66.83,R,Alliance Automotive UK CV LTD,No
Http://opendatacommunities.org/id/metropolitan-district-council/leeds,Leeds City Council,30/11/2023,Strategy and Resources,Commercial Services,Transport,Vehicle Spares,345,09/11/2023,2311-00747,0.00,29.49,R,Alliance Automotive UK CV LTD,No
Http://opendatacommunities.org/id/metropolitan-district-council/leeds,Leeds City Council,30/11/2023,Strategy and Resources,Commercial Services,Transport,Vehicle Spares,345,09/11/2023,2311-00748,0.00,175.23,R,Alliance Automotive UK CV LTD,No
Http://opendatacommunities.org/id/metropolitan-district-council/leeds,Leeds City Council,30/11/2023,Strategy and Resources,Commercial Services,Transport,Vehicle Spares,345,09/11/2023,2311-00749,0.00,86.73,R,Alliance Automotive UK CV LTD,No
Http://opendatacommunities.org/id/metropolitan-district-council/leeds,Leeds City Council,30/11/2023,Strategy and Resources,Commercial Services,Transport,Vehicle Spares,345,09/11/2023,2311-00750,0.00,328.96,R,Alliance Automotive UK CV LTD,No
Http://opendatacommunities.org/id/metropolitan-district-council/leeds,Leeds City Council,30/11/2023,Strategy and Resources,Commercial Services,Transport,Vehicle Spares,345,09/11/2023,2311-00751,0.00,45.00,R,Alliance Automotive UK CV LTD,No
Http://opendatacommunities.org/id/metropolitan-district-council/leeds,Leeds City Council,30/11/2023,Strategy and Resources,Commercial Services,Transport,Vehicle Spares,345,09/11/2023,2311-00752,0.00,80.36,R,Alliance Automotive UK CV LTD,No
Http://opendatacommunities.org/id/metropolitan-district-council/leeds,Leeds City Council,30/11/2023,Strategy and Resources,Commercial Services,Transport,Vehicle Spares,345,09/11/2023,2311-00753,0.00,107.28,R,Alliance Automotive UK CV LTD,No
Http://opendatacommunities.org/id/metropolitan-district-council/leeds,Leeds City Council,30/11/2023,Strategy and Resources,Commercial Services,Transport,Vehicle Spares,345,09/11/2023,2311-00754,0.00,107.28,R,Alliance Automotive UK CV LTD,No
Http://opendatacommunities.org/id/metropolitan-district-council/leeds,Leeds City Council,30/11/2023,Strategy and Resources,Commercial Services,Transport,Vehicle Spares,345,09/11/2023,2311-00755,0.00,18.35,R,Alliance Automotive UK CV LTD,No
Http://opendatacommunities.org/id/metropolitan-district-council/leeds,Leeds City Council,30/11/2023,Strategy and Resources,Commercial Services,Transport,Vehicle Spares,345,09/11/2023,2311-00756,0.00,127.88,R,Alliance Automotive UK CV LTD,No
Http://opendatacommunities.org/id/metropolitan-district-council/leeds,Leeds City Council,30/11/2023,Strategy and Resources,Commercial Services,Transport,Vehicle Spares,345,09/11/2023,2311-00757,0.00,19.29,R,Alliance Automotive UK CV LTD,No
Http://opendatacommunities.org/id/metropolitan-district-council/leeds,Leeds City Council,30/11/2023,Strategy and Resources,Commercial Services,Transport,Vehicle Spares,345,09/11/2023,2311-00758,0.00,45.73,R,Alliance Automotive UK CV LTD,No
Http://opendatacommunities.org/id/metropolitan-district-council/leeds,Leeds City Council,30/11/2023,Strategy and Resources,Commercial Services,Transport,Vehicle Spares,345,09/11/2023,2311-00759,0.00,138.80,R,Alliance Automotive UK CV LTD,No
Http://opendatacommunities.org/id/metropolitan-district-council/leeds,Leeds City Council,30/11/2023,Strategy and Resources,Commercial Services,Transport,Vehicle Spares,345,09/11/2023,2311-00760,0.00,429.03,R,Alliance Automotive UK CV LTD,No
Http://opendatacommunities.org/id/metropolitan-district-council/leeds,Leeds City Council,30/11/2023,Strategy and Resources,Commercial Services,Transport,Vehicle Spares,345,09/11/2023,2311-00761,0.00,920.71,R,Alliance Automotive UK CV LTD,No
Http://opendatacommunities.org/id/metropolitan-district-council/leeds,Leeds City Council,30/11/2023,Strategy and Resources,Commercial Services,Transport,Vehicle Spares,345,09/11/2023,2311-00762,0.00,212.69,R,Alliance Automotive UK CV LTD,No
Http://opendatacommunities.org/id/metropolitan-district-council/leeds,Leeds City Council,30/11/2023,Strategy and Resources,Commercial Services,Transport,Vehicle Spares,345,09/11/2023,2311-00763,0.00,53.61,R,Alliance Automotive UK CV LTD,No
Http://opendatacommunities.org/id/metropolitan-district-council/leeds,Leeds City Council,30/11/2023,Strategy and Resources,Commercial Services,Transport,Vehicle Spares,345,10/11/2023,2311-00764,0.00,-57.85,R,Alliance Automotive UK CV LTD,No
Http://opendatacommunities.org/id/metropolitan-district-council/leeds,Leeds City Council,30/11/2023,Strategy and Resources,Commercial Services,Transport,Vehicle Spares,345,10/11/2023,2311-00765,0.00,-13.67,R,Alliance Automotive UK CV LTD,No
Http://opendatacommunities.org/id/metropolitan-district-council/leeds,Leeds City Council,30/11/2023,Strategy and Resources,Commercial Services,Transport,Vehicle Spares,345,10/11/2023,2311-00766,0.00,-45.98,R,Alliance Automotive UK CV LTD,No
Http://opendatacommunities.org/id/metropolitan-district-council/leeds,Leeds City Council,30/11/2023,Strategy and Resources,Commercial Services,Transport,Vehicle Spares,345,10/11/2023,2311-00767,0.00,-162.01,R,Alliance Automotive UK CV LTD,No
Http://opendatacommunities.org/id/metropolitan-district-council/leeds,Leeds City Council,30/11/2023,Strategy and Resources,Commercial Services,Transport,Vehicle Spares,345,10/11/2023,2311-00768,0.00,-826.40,R,Alliance Automotive UK CV LTD,No
Http://opendatacommunities.org/id/metropolitan-district-council/leeds,Leeds City Council,30/11/2023,Strategy and Resources,Commercial Services,Transport,Vehicle Spares,345,10/11/2023,2311-00769,0.00,-162.40,R,Alliance Automotive UK CV LTD,No
Http://opendatacommunities.org/id/metropolitan-district-council/leeds,Leeds City Council,30/11/2023,Strategy and Resources,Commercial Services,Transport,Vehicle Spares,345,10/11/2023,2311-00770,0.00,210.87,R,Alliance Automotive UK CV LTD,No
Http://opendatacommunities.org/id/metropolitan-district-council/leeds,Leeds City Council,30/11/2023,Strategy and Resources,Commercial Services,Transport,Vehicle Spares,345,10/11/2023,2311-00771,0.00,58.41,R,Alliance Automotive UK CV LTD,No
Http://opendatacommunities.org/id/metropolitan-district-council/leeds,Leeds City Council,30/11/2023,Strategy and Resources,Commercial Services,Transport,Vehicle Spares,345,10/11/2023,2311-00772,0.00,91.93,R,Alliance Automotive UK CV LTD,No
Http://opendatacommunities.org/id/metropolitan-district-council/leeds,Leeds City Council,30/11/2023,Strategy and Resources,Commercial Services,Transport,Vehicle Spares,345,10/11/2023,2311-00773,0.00,101.06,R,Alliance Automotive UK CV LTD,No
Http://opendatacommunities.org/id/metropolitan-district-council/leeds,Leeds City Council,30/11/2023,Strategy and Resources,Commercial Services,Transport,Vehicle Spares,345,10/11/2023,2311-00774,0.00,120.52,R,Alliance Automotive UK CV LTD,No
Http://opendatacommunities.org/id/metropolitan-district-council/leeds,Leeds City Council,30/11/2023,Strategy and Resources,Commercial Services,Transport,Vehicle Spares,345,10/11/2023,2311-00775,0.00,69.24,R,Alliance Automotive UK CV LTD,No
Http://opendatacommunities.org/id/metropolitan-district-council/leeds,Leeds City Council,30/11/2023,Strategy and Resources,Commercial Services,Transport,Vehicle Spares,345,10/11/2023,2311-00776,0.00,741.63,R,Alliance Automotive UK CV LTD,No
Http://opendatacommunities.org/id/metropolitan-district-council/leeds,Leeds City Council,30/11/2023,Strategy and Resources,Commercial Services,Transport,Vehicle Spares,345,10/11/2023,2311-00777,0.00,115.83,R,Alliance Automotive UK CV LTD,No
Http://opendatacommunities.org/id/metropolitan-district-council/leeds,Leeds City Council,30/11/2023,Strategy and Resources,Commercial Services,Transport,Vehicle Spares,345,10/11/2023,2311-00778,0.00,10.62,R,Alliance Automotive UK CV LTD,No
Http://opendatacommunities.org/id/metropolitan-district-council/leeds,Leeds City Council,30/11/2023,Strategy and Resources,Commercial Services,Transport,Vehicle Spares,345,10/11/2023,2311-00779,0.00,289.99,R,Alliance Automotive UK CV LTD,No
Http://opendatacommunities.org/id/metropolitan-district-council/leeds,Leeds City Council,30/11/2023,Strategy and Resources,Commercial Services,Transport,Vehicle Spares,345,10/11/2023,2311-00780,0.00,82.67,R,Alliance Automotive UK CV LTD,No
Http://opendatacommunities.org/id/metropolitan-district-council/leeds,Leeds City Council,30/11/2023,Strategy and Resources,Commercial Services,Transport,Vehicle Spares,345,10/11/2023,2311-00781,0.00,394.03,R,Alliance Automotive UK CV LTD,No
Http://opendatacommunities.org/id/metropolitan-district-council/leeds,Leeds City Council,30/11/2023,Strategy and Resources,Commercial Services,Transport,Vehicle Spares,345,10/11/2023,2311-00782,0.00,57.42,R,Alliance Automotive UK CV LTD,No
